Effective Date,Directorate,Service Category,Service Category URI,Supplier Name,Payment Date,Transaction Number,Net Amount,Purpose_of_the_expenditure,Merchant Category
30/03/2023,Finance,Corporate and Democratic Core,131A,NATWEST BANK,03/03/2023,WPST00098144,741.46,03FEB GRP 99795000,Bank Charges
30/03/2023,Finance,Corporate and Democratic Core,131A,NATWEST BANK,23/03/2023,WPST00100369,2631.51,WORLDPAYWP4W37 246273659,Bank Charges
30/03/2023,Finance,Corporate and Democratic Core,131A,NATWEST BANK,23/03/2023,WPST00100374,2076.04,WORLDPAYWP4W37 246316226,Bank Charges
30/03/2023,Resources,Support Services,135B,Insight Direct (UK) Limited,24/03/2023,RS148285,566.97,"StarTech.com 24U Server Rack Cabinet, 4-Post Adjustable Depth (2`` to 30``) Network Equipment Rack Enclosure w/Casters/Cable Management/Shelf/Locking t/Shelf/Locking Dell PowerEdge, HP ProLiant ThinkServer - 24U Rack.Cabinet (RK2433BKM) - rack - 24U.M",Comp Hardware Purchases
30/03/2023,Resources,Support Services,135B,Insight Direct (UK) Limited,29/03/2023,RS148425,890.14,"Epson WorkForce DS-790WN - document scanner - desktop - USB 3.0, Gigabit LAN, Wi-Fi(n), USB 2.0 (Host).Mfr Name: EPSON.Mfr Part No.: B11B265401BY.",Comp Hardware Purchases
30/03/2023,Resources,Support Services,135B,Insight Direct (UK) Limited,22/03/2023,RS148223,957.26,Tripp Lite 16-Port Rack Console VGA KVM.Switch w/ 19`` LCD 1U TAA - KVM switch - 16 ports - rack-mountable.Mfr Name: TRIPP LITEMfr Part No.: B040-016-19,Comp Hardware Purchases
30/03/2023,People and Places,Cultural and Related Services,132A,Arco LTD,14/03/2023,PE148055,26.44,1 ladies waterproof trousers,Community Arts
30/03/2023,People and Places,Support Services,135B,Arco LTD,08/03/2023,PE147872,267.43,Clothing,Protective Clothing
30/03/2023,People and Places,Support Services,135B,Arco LTD,22/03/2023,PE148210,293.85,ClothingEngineers Ken White,Protective Clothing
30/03/2023,People and Places,Support Services,135B,Arco LTD,22/03/2023,PE148239,136.72,ClothingEngineers Ken White,Protective Clothing
30/03/2023,People and Places,Support Services,135B,Arco LTD,29/03/2023,PE148431,119.63,ClothingEngineers Ken White,Protective Clothing
30/03/2023,People and Places,Planning and Development Servs,132C,Blackpool Council,08/03/2023,PE147844,25000,"Hillhouse EZ Support 2022/23 - R Green, M Harrison, A Ogden",Other Local Authorities
30/03/2023,Resources,Cultural and Related Services,132A,Blackpool Council,21/03/2023,RS148175,1473.66,Payment for Hayley McGuffie and Alex Holt to attend the Birmingham British Travel & Tourism Show including stand cost and accommodation,Guides
30/03/2023,People and Places,Planning and Development Servs,132C,National World Publishing Ltd,06/03/2023,PE147729,432,Press notice for Garstang Courier and Blackpool Gazette 11.01.23,Advertising - Statutory Notices
30/03/2023,People and Places,Planning and Development Servs,132C,National World Publishing Ltd,24/03/2023,PE148326,462.3,Press notice for Blackpool and Garstang publications 22.03.23,Advertising - Statutory Notices
30/03/2023,People and Places,Planning and Development Servs,132C,National World Publishing Ltd,13/03/2023,PE147989,166.32,Press notice for Fleetwood weekly news 08.03.23,Advertising - Statutory Notices
30/03/2023,People and Places,Planning and Development Servs,132C,National World Publishing Ltd,13/03/2023,PE147990,215.74,Press notice for Blackpool and Garstang publications 08.03.23,Advertising - Statutory Notices
30/03/2023,Resources,Housing General Fund,134A,St Gobain Building Distribution LTD,06/03/2023,RS147674,249.16,invoice 154725,Materials and Consumables
30/03/2023,Resources,Housing General Fund,134A,St Gobain Building Distribution LTD,13/03/2023,RS147998,159.75,Payment of invoice - 0963/00118519,Materials and Consumables
30/03/2023,People and Places,Support Services,135B,St Gobain Building Distribution LTD,22/03/2023,PE148171,127.65,Clothing  Keith Urwin,Protective Clothing
30/03/2023,People and Places,Support Services,135B,St Gobain Building Distribution LTD,22/03/2023,PE148170,75,Makita Grinder,Purchase of Tools or Equipment
30/03/2023,Resources,Corporate and Democratic Core,131A,PR Chauffeuring Services,13/03/2023,RS147988,770,February 2023 - Monthly chauffeuring service.,Attendant Chauffeur Service
30/03/2023,Resources,Central Services to the Public,131C,Civica UK LTD,14/03/2023,RS148048,110,Civica Training Xpress Queues Part 2 - 10 February 2023,Technical Training
30/03/2023,Resources,Support Services,135B,Civica UK LTD,27/03/2023,RS143422,140,CivicaPay - Setup and delivery. Payment on UAT signoff,Software Maintenance
30/03/2023,Resources,Support Services,135B,Civica UK LTD,27/03/2023,RS143422,685,CivicaPay - Administration Fee. Payment on UAT signoff,Software Maintenance
30/03/2023,Resources,Support Services,135B,Civica UK LTD,27/03/2023,RS143422,840,CivicaPay - P400 Annual Fees. Payment on UAT signoff,Software Maintenance
30/03/2023,Resources,Support Services,135B,Civica UK LTD,15/03/2023,RS145176,735,"CivicaPay - P400 annual fees (chip and pin), Year 2 - (01/12/22 - 30/06/23)",Software Maintenance
30/03/2023,People and Places,Environmental Services,132B,The Columbaria Company,14/03/2023,PE148050,341.5,REDACT,Plaque Inscriptions and Furniture
30/03/2023,People and Places,Environmental Services,132B,The Columbaria Company,14/03/2023,PE148053,396.5,REDACT,Plaque Inscriptions and Furniture
30/03/2023,People and Places,Environmental Services,132B,The Columbaria Company,14/03/2023,PE148038,197,REDACT,Plaque Inscriptions and Furniture
30/03/2023,People and Places,Environmental Services,132B,Dennis Eagle LTD,21/03/2023,PE147915,-1367.25,Offse via PE147915,Daywork Materials (Excl.Tyres)
30/03/2023,People and Places,Cultural and Related Services,132A,EAS Electrical Mechanical,03/03/2023,PE147712,559.86,Kite Club: hire of industrial dehumidifiers as requested via WBC. Delivered and collected via EAS,Responsive Building Maintenance
30/03/2023,People and Places,Cultural and Related Services,132A,EAS Electrical Mechanical,28/03/2023,PE148375,39,Labour and Trainee. Walked round the Mount to find green pole only to find all cables and adaptable box had disappeared.,Responsive Building Maintenance
30/03/2023,People and Places,Cultural and Related Services,132A,EAS Electrical Mechanical,28/03/2023,PE148415,56.1,Reattach toilet handle and replace damaged toilet handle,Responsive Building Maintenance
30/03/2023,People and Places,Cultural and Related Services,132A,EAS Electrical Mechanical,28/03/2023,PE148378,61.23,Investigate fault on toilet in gents. Remove and replace faulty inlet and test.,Responsive Building Maintenance
30/03/2023,People and Places,Support Services,135B,EAS Electrical Mechanical,28/03/2023,PE148374,286.79,Instalation of digital clock via existing kitchen circuit. Installed timeclock for water cooler.,Responsive Building Maintenance
30/03/2023,People and Places,Support Services,135B,EAS Electrical Mechanical,28/03/2023,PE148377,409.81,turned off valves. Leak found front of building. Repair leak in Mckee centre.,Responsive Building Maintenance
30/03/2023,People and Places,Support Services,135B,EAS Electrical Mechanical,22/03/2023,PE148188,95.93,"Investigate fault on toilet, isolate toilet and disconnect cistern at Civic Centre",Responsive Building Maintenance
30/03/2023,People and Places,Support Services,135B,EAS Electrical Mechanical,29/03/2023,PE148426,251.6,"Investigate fault and found tap to be faulty. Order new part. Drain heater, replace part, fill and test. all AOK.",Responsive Building Maintenance
30/03/2023,People and Places,Support Services,135B,EAS Electrical Mechanical,29/03/2023,PE148427,5550,"carpark leaking pipe, no leak found, made good trench. Completed further leak detechtion injecting gas into pipework, highlighted leak. Video supplied to WBC. Quote compiled.",Responsive Building Maintenance
30/03/2023,People and Places,Support Services,135B,EAS Electrical Mechanical,20/03/2023,PE148148,196.66,Civic Centre: Converted 4ft twin store to led. Installed PIR in small store fed off mains from existing PPIR in printer room,Responsive Building Maintenance
30/03/2023,People and Places,Support Services,135B,EAS Electrical Mechanical,28/03/2023,PE148412,200.55,Installed x3 pull cords,Responsive Building Maintenance
30/03/2023,People and Places,Support Services,135B,EAS Electrical Mechanical,28/03/2023,PE148414,111.35,"Investigating leaking toilet, disconnect toilet and replace close couple kit. Install flexi with isolation valve and test.",Responsive Building Maintenance
30/03/2023,People and Places,Planning and Development Servs,132C,EAS Electrical Mechanical,08/03/2023,PE147846,120,Isolate and drain heater replace and test at Fleetwood Market,Responsive Building Maintenance
30/03/2023,People and Places,Planning and Development Servs,132C,EAS Electrical Mechanical,09/03/2023,PE147892,1016.5,Fleetwood Market: Remove and replace faulty water boiler and test,Responsive Building Maintenance
30/03/2023,People and Places,Planning and Development Servs,132C,EAS Electrical Mechanical,22/03/2023,PE148187,78,"Isolate power, remove door covers, rehang door & test at Fleetwood Market",Responsive Building Maintenance
30/03/2023,People and Places,Planning and Development Servs,132C,EAS Electrical Mechanical,22/03/2023,PE148219,349.53,Installed double socket above clocking in machine and rehung 2 doors at Fleetwood Market,Responsive Building Maintenance
30/03/2023,People and Places,Cultural and Related Services,132A,EAS Electrical Mechanical,07/03/2023,PE147819,48,"Marine Hall: no power on fan or heater, room thermostat turned down, turned up fan kicked in but no heat as switch had been turned off for days turned on and told staff to notify us tomorrow when economy 7 has been on",Responsive Building Maintenance
30/03/2023,People and Places,Cultural and Related Services,132A,EAS Electrical Mechanical,28/03/2023,PE148380,48,Contacts removed and cleaned the put back.,Responsive Building Maintenance
30/03/2023,People and Places,Cultural and Related Services,132A,EAS Electrical Mechanical,28/03/2023,PE148379,124.08,New taps fitted,Responsive Building Maintenance
30/03/2023,People and Places,Cultural and Related Services,132A,EAS Electrical Mechanical,28/03/2023,PE148376,69.03,change 3 brass cockets to white PVC sets,Responsive Building Maintenance
30/03/2023,People and Places,Cultural and Related Services,132A,EAS Electrical Mechanical,09/03/2023,PE147891,1284.8,Marine Hall: Hire of x 2 space heaters - Hire continues,Responsive Building Maintenance
30/03/2023,People and Places,Cultural and Related Services,132A,EAS Electrical Mechanical,28/03/2023,PE148413,226.57,"Drained down tank, replaced the temperature and pressure valve filled back up and tested",Responsive Building Maintenance
30/03/2023,People and Places,Environmental Services,132B,EAS Electrical Mechanical,22/03/2023,PE148227,279,"Ivestigate blocked toilet, check manhole and arranged jetters at Beach Road Cemetery",Responsive Building Maintenance
30/03/2023,People and Places,Cultural and Related Services,132A,EAS Electrical Mechanical,22/03/2023,PE148220,5790.37,Sump Pump Repairs at YMCA fleetwood,Responsive Building Maintenance
30/03/2023,People and Places,Planning and Development Servs,132C,EAS Electrical Mechanical,22/03/2023,PE148226,423.75,"Remove, replace faulty heater and time clock at Copse Road Depot",Responsive Building Maintenance
30/03/2023,People and Places,Planning and Development Servs,132C,EAS Electrical Mechanical,27/03/2023,PE148287,144.64,Fleetwood MArket: Remove and replace batteries on all fire doors,Responsive Building Maintenance
30/03/2023,People and Places,Planning and Development Servs,132C,EAS Electrical Mechanical,22/03/2023,PE148218,1123.46,Installed extra sockets to workshop area in kitchen at Copse Road,Responsive Building Maintenance
30/03/2023,People and Places,Planning and Development Servs,132C,EAS Electrical Mechanical,22/03/2023,PE148228,385.91,"Investigate leak on water heater, remove and replace at Copse Road",Responsive Building Maintenance
30/03/2023,People and Places,Cultural and Related Services,132A,EAS Electrical Mechanical,22/03/2023,PE148225,2580,Complete EICR and compile report at Thornton Little Theatre,Planned Building Maintenance
30/03/2023,People and Places,Support Services,135B,EK Motors Factors LTD,10/03/2023,PE147948,3.98,Parts,Daywork Materials (Excl.Tyres)
30/03/2023,People and Places,Support Services,135B,EK Motors Factors LTD,10/03/2023,PE147947,90.81,Parts,Daywork Materials (Excl.Tyres)
30/03/2023,People and Places,Support Services,135B,EK Motors Factors LTD,13/03/2023,PE147934,24.73,Parts,Daywork Materials (Excl.Tyres)
30/03/2023,People and Places,Support Services,135B,EK Motors Factors LTD,28/03/2023,PE148399,90.12,Parts,Daywork Materials (Excl.Tyres)
30/03/2023,People and Places,Support Services,135B,EK Motors Factors LTD,29/03/2023,PE148484,84.24,Parts,Daywork Materials (Excl.Tyres)
30/03/2023,People and Places,Support Services,135B,EK Motors Factors LTD,28/03/2023,PE148397,62.12,Parts,Daywork Materials (Excl.Tyres)
30/03/2023,People and Places,Support Services,135B,EK Motors Factors LTD,28/03/2023,PE148400,50.71,Parts,Daywork Materials (Excl.Tyres)
30/03/2023,People and Places,Environmental Services,132B,EK Motors Factors LTD,28/03/2023,PE148401,36.5,Parts,Daywork Materials (Excl.Tyres)
30/03/2023,People and Places,Cultural and Related Services,132A,EK Motors Factors LTD,29/03/2023,PE148485,6.55,Parts,Daywork Materials (Excl.Tyres)
30/03/2023,People and Places,Cultural and Related Services,132A,EK Motors Factors LTD,29/03/2023,PE148486,6.55,Parts,Daywork Materials (Excl.Tyres)
30/03/2023,People and Places,Cultural and Related Services,132A,EK Motors Factors LTD,28/03/2023,PE148407,24.27,Parts,Daywork Materials (Excl.Tyres)
30/03/2023,People and Places,Cultural and Related Services,132A,EK Motors Factors LTD,28/03/2023,PE148408,74.98,Parts,Daywork Materials (Excl.Tyres)
30/03/2023,People and Places,Cultural and Related Services,132A,EK Motors Factors LTD,13/03/2023,PE147961,32.08,Parts,Daywork Materials (Excl.Tyres)
30/03/2023,People and Places,Cultural and Related Services,132A,EK Motors Factors LTD,13/03/2023,PE147960,32.08,Parts,Daywork Materials (Excl.Tyres)
30/03/2023,People and Places,Environmental Services,132B,EK Motors Factors LTD,28/03/2023,PE148405,32.51,Parts,Daywork Materials (Excl.Tyres)
30/03/2023,People and Places,Environmental Services,132B,EK Motors Factors LTD,28/03/2023,PE148404,32.51,Parts,Daywork Materials (Excl.Tyres)
30/03/2023,People and Places,Environmental Services,132B,EK Motors Factors LTD,13/03/2023,PE147959,16.92,Parts,Daywork Materials (Excl.Tyres)
30/03/2023,People and Places,Environmental Services,132B,EK Motors Factors LTD,13/03/2023,PE147958,33.84,Parts,Daywork Materials (Excl.Tyres)
30/03/2023,People and Places,Environmental Services,132B,EK Motors Factors LTD,10/03/2023,PE147957,11.98,Parts,Daywork Materials (Excl.Tyres)
30/03/2023,People and Places,Environmental Services,132B,EK Motors Factors LTD,13/03/2023,PE147951,54.99,Parts,Daywork Materials (Excl.Tyres)
30/03/2023,People and Places,Environmental Services,132B,EK Motors Factors LTD,13/03/2023,PE147950,73.5,Parts,Daywork Materials (Excl.Tyres)
30/03/2023,People and Places,Environmental Services,132B,EK Motors Factors LTD,13/03/2023,PE147949,6.97,Parts,Daywork Materials (Excl.Tyres)
30/03/2023,People and Places,Environmental Services,132B,EK Motors Factors LTD,28/03/2023,PE148403,9.61,Parts,Daywork Materials (Excl.Tyres)
30/03/2023,People and Places,Environmental Services,132B,EK Motors Factors LTD,28/03/2023,PE148402,21.98,Parts,Daywork Materials (Excl.Tyres)
30/03/2023,People and Places,Support Services,135B,EK Motors Factors LTD,13/03/2023,PE147944,54.68,Parts,Materials and Consumables
30/03/2023,People and Places,Support Services,135B,EK Motors Factors LTD,13/03/2023,PE147943,190.59,Parts,Materials and Consumables
30/03/2023,People and Places,Support Services,135B,EK Motors Factors LTD,13/03/2023,PE147946,25.64,Parts,Materials and Consumables
30/03/2023,People and Places,Support Services,135B,EK Motors Factors LTD,13/03/2023,PE147945,54.88,Parts,Materials and Consumables
30/03/2023,People and Places,Environmental Services,132B,EK Motors Factors LTD,10/03/2023,PE147948,3.98,Parts,Daywork Materials (Excl.Tyres)
30/03/2023,People and Places,Environmental Services,132B,EK Motors Factors LTD,10/03/2023,PE147952,19.6,Parts,Daywork Materials (Excl.Tyres)
30/03/2023,People and Places,Environmental Services,132B,EK Motors Factors LTD,13/03/2023,PE147954,59.38,Parts,Daywork Materials (Excl.Tyres)
30/03/2023,People and Places,Environmental Services,132B,EK Motors Factors LTD,13/03/2023,PE147956,449.98,Parts,Daywork Materials (Excl.Tyres)
30/03/2023,People and Places,Environmental Services,132B,EK Motors Factors LTD,13/03/2023,PE147955,126.53,Parts,Daywork Materials (Excl.Tyres)
30/03/2023,People and Places,Support Services,135B,EK Motors Factors LTD,28/03/2023,PE148398,9.48,Parts,Daywork Materials (Excl.Tyres)
30/03/2023,People and Places,Environmental Services,132B,EK Motors Factors LTD,28/03/2023,PE148406,32.51,Parts,Daywork Materials (Excl.Tyres)
30/03/2023,People and Places,Support Services,135B,EK Motors Factors LTD,13/03/2023,PE147932,16.71,Parts,Daywork Materials (Excl.Tyres)
30/03/2023,People and Places,Support Services,135B,EK Motors Factors LTD,13/03/2023,PE147933,16.71,Parts,Daywork Materials (Excl.Tyres)
30/03/2023,People and Places,Support Services,135B,EK Motors Factors LTD,10/03/2023,PE147942,19.6,Parts,Materials and Consumables
30/03/2023,People and Places,Support Services,135B,EK Motors Factors LTD,10/03/2023,PE147941,68.41,Parts,Materials and Consumables
30/03/2023,People and Places,Support Services,135B,EK Motors Factors LTD,10/03/2023,PE147938,57.12,Parts,Materials and Consumables
30/03/2023,People and Places,Support Services,135B,EK Motors Factors LTD,13/03/2023,PE147940,25.34,Parts,Materials and Consumables
30/03/2023,People and Places,Support Services,135B,EK Motors Factors LTD,13/03/2023,PE147937,36,Parts,Materials and Consumables
30/03/2023,People and Places,Support Services,135B,EK Motors Factors LTD,13/03/2023,PE147936,6.64,Parts,Daywork Materials (Excl.Tyres)
30/03/2023,People and Places,Support Services,135B,EK Motors Factors LTD,13/03/2023,PE147935,6.64,Parts,Daywork Materials (Excl.Tyres)
30/03/2023,People and Places,Support Services,135B,FR Sharrock LTD,24/03/2023,PE148314,198.43,Parts,Daywork Materials (Excl.Tyres)
30/03/2023,People and Places,Support Services,135B,FR Sharrock LTD,15/03/2023,PE147709,113.28,Parts,Daywork Materials (Excl.Tyres)
30/03/2023,People and Places,Support Services,135B,FR Sharrock LTD,24/03/2023,PE148314,198.43,Parts,Daywork Materials (Excl.Tyres)
30/03/2023,People and Places,Support Services,135B,FR Sharrock LTD,15/03/2023,PE147709,113.28,Parts,Daywork Materials (Excl.Tyres)
30/03/2023,People and Places,Support Services,135B,FR Sharrock LTD,15/03/2023,PE147709,113.29,Parts,Daywork Materials (Excl.Tyres)
30/03/2023,People and Places,Support Services,135B,FR Sharrock LTD,24/03/2023,PE148314,198.43,Parts,Daywork Materials (Excl.Tyres)
30/03/2023,Resources,Corporate and Democratic Core,131A,Best Western Garstang Country Hotel & Golf Club,13/03/2023,RS147985,4227.17,"Mayoral Ball 25/02/2023  Venue and food: 162 covers @ 27.50 per head (inclusive of VAT), plus house DJ fee, plus sandwiches for mayors attendants 57.60.",Mayoral Ball
30/03/2023,People and Places,Highways,133B,Glasdon UK LTD,15/03/2023,PE148056,535.38,"Supply one black phoenix memorial bench with plaque.Plaque inscription to read In Memory of Sydney Walton Gee25/06/1924 to 17/10/2022Loving Husband, Father and Brother Please deliver bench to Copse Road Depot, Copse Road, Fleetwood.  Pleas",Seats and Shelters (Non BM)
30/03/2023,People and Places,Highways,133B,Glasdon UK LTD,02/03/2023,PE147662,535.37,Supply one black phoenix memorial bench with plaque.Plaque inscription to read In Memory of Patricia June Duff S.R.N.S.C.M. H.V.cert (nee Saunby) from 27-05-1934 to 06-07-2019                   �A Fleetwood Lass� Please deliver bench to Copse,Seats and Shelters (Non BM)
30/03/2023,People and Places,Environmental Services,132B,Harrison External Display Systems,22/03/2023,PE148247,856,As per quotation: 3/2023-3220BESPOKE/FLAG 1.83m x 0.91m size printed flag DOUBLE SIDED on reverse on knitted polyester with rope and toggle WITH ANTI FRAY finish �NO DOG AS PER JOB 721078 107.00 856.00,"Signs, Signals etc - Provision and Maint"
30/03/2023,People and Places,Environmental Services,132B,Harrison External Display Systems,22/03/2023,PE148247,14.95,"AS ORIGINAL ARTWORKD10 Docpack Next day delivery 14.9Delivery to Wyre Council, Copse Road Depot, Cospe Road, Fleetwood, FY7 6RP. FAO Tracy Waistle","Signs, Signals etc - Provision and Maint"
30/03/2023,Resources,Support Services,135B,CIPFA Business LTD,08/03/2023,RS147769,4055,CIPFA Publication Subscription 2023/24,Corporate and Professional Subscriptions
30/03/2023,Resources,Support Services,135B,CIPFA Business LTD,13/03/2023,RS148006,295,Training place on 2022-23 Accounts Closedown and Financial Reporting Workshop (Feb 2023) x 2 Veronica Wilson Ben Ralphs,Training - Non HR Controlled
30/03/2023,Resources,Support Services,135B,CIPFA Business LTD,13/03/2023,RS148005,295,Training place on 2022-23 Accounts Closedown and Financial Reporting Workshop (Feb 2023) x 2 Veronica Wilson Ben Ralphs,Training - Non HR Controlled
30/03/2023,People and Places,Environmental Services,132B,Bucher Municipal Limited,21/03/2023,PE148090,322.5,Tyres,Daywork Materials (Excl.Tyres)
30/03/2023,People and Places,Environmental Services,132B,Bucher Municipal Limited,07/03/2023,PE147753,322.5,Tyre - Continental RV20 (front),Daywork Materials (Excl.Tyres)
30/03/2023,People and Places,Environmental Services,132B,Bucher Municipal Limited,21/03/2023,PE148090,322.5,Tyres,Daywork Materials (Excl.Tyres)
30/03/2023,People and Places,Environmental Services,132B,Bucher Municipal Limited,21/03/2023,PE148090,322.5,Tyres,Daywork Materials (Excl.Tyres)
30/03/2023,People and Places,Environmental Services,132B,Bucher Municipal Limited,22/03/2023,PE148137,367.7,Nozzle Wheel Assembly,Daywork Materials (Excl.Tyres)
30/03/2023,People and Places,Environmental Services,132B,Bucher Municipal Limited,02/03/2023,PE147603,1317.59,"invoice 62184985 . 1 x impeller - balanced, HT DC",Daywork Materials (Excl.Tyres)
30/03/2023,People and Places,Environmental Services,132B,Key Engineering & Hygiene Supplies LTD,13/03/2023,PE148013,883,"Supply and deliver 50 boxes of BL090C1 of blue refuse sacks @ 16.91 per box of 200Delivery to Wyre Council, Copse Road Depot, Copse Road, Fleetwood, FY7 6RP","Provision of Bins, Boxes and Sacks"
30/03/2023,People and Places,Environmental Services,132B,Key Engineering & Hygiene Supplies LTD,14/03/2023,PE148040,17.6,"SUPPLY AND DELIVER AS PER QUOTE 16454PU GLOVESDELIVERY TO WYRE COUNCIL, COPSE ROAD DEPOT, COPSE ROAD, FLEETWOOD, FY7 6RP.",Protective Clothing
30/03/2023,People and Places,Cultural and Related Services,132A,Key Engineering & Hygiene Supplies LTD,30/03/2023,PE148488,105.8,"SUPPLY AS PER QUOTATION OF HI-VIS YELLOW VESTS DELIVERY FAO CHRIS WYATT, WYRE COUNCIL, CIVIC CENTRE, BRECK ROAD, POULTON-LE-FYLDE, FY6 7PU",Special Events
30/03/2023,People and Places,Planning and Development Servs,132C,Key Engineering & Hygiene Supplies LTD,21/03/2023,PE148141,30.78,Hi-Viz vests overprinted `Fire Warden`,Purchase of Tools or Equipment
30/03/2023,People and Places,Cultural and Related Services,132A,Key Engineering & Hygiene Supplies LTD,16/03/2023,PE148051,13.83,BLUE 2 ply centrefeed roll 144M x 195mm 400 sheets,Cleaning Materials
30/03/2023,People and Places,Cultural and Related Services,132A,Key Engineering & Hygiene Supplies LTD,16/03/2023,PE148051,8.4,EAUFRESH NON ACIDIC APPLE TOILET CLEANER 1 LTR,Cleaning Materials
30/03/2023,People and Places,Cultural and Related Services,132A,Key Engineering & Hygiene Supplies LTD,16/03/2023,PE148051,12.45,ENSURE ALCOHOL SANITISER 750ML,Cleaning Materials
30/03/2023,People and Places,Planning and Development Servs,132C,Key Engineering & Hygiene Supplies LTD,07/03/2023,PE147834,19.44,EAUFRESH NON ACIDIC APPLE TOILET CLEANER 1 LTR,Cleaning Materials
30/03/2023,People and Places,Planning and Development Servs,132C,Key Engineering & Hygiene Supplies LTD,08/03/2023,PE147835,17.88,FLORATILE GENERAL PURPOSE  CLEANER 5 LTR,Cleaning Materials
30/03/2023,People and Places,Planning and Development Servs,132C,Key Engineering & Hygiene Supplies LTD,08/03/2023,PE147835,4.86,BLUE NITRILE POWDER FREE GLOVES MEDIUM,Cleaning Materials
30/03/2023,People and Places,Support Services,135B,Key Engineering & Hygiene Supplies LTD,14/03/2023,PE148040,17.6,"SUPPLY AND DELIVER AS PER QUOTE 16454PU GLOVESDELIVERY TO WYRE COUNCIL, COPSE ROAD DEPOT, COPSE ROAD, FLEETWOOD, FY7 6RP.",Protective Clothing
30/03/2023,Resources,Support Services,135B,Key Engineering & Hygiene Supplies LTD,06/03/2023,RS147688,4.47,FLORATILE GENERAL PURPOSE  CLEANER 5 LTR,Cleaning Materials
30/03/2023,Resources,Support Services,135B,Key Engineering & Hygiene Supplies LTD,06/03/2023,RS147688,15.04,EVANS FOAMING LEMON SOAP 5L,Cleaning Materials
30/03/2023,Resources,Support Services,135B,Key Engineering & Hygiene Supplies LTD,06/03/2023,RS147688,3.76,KEYPINE GENERAL DISINFECTANT 5LTR,Cleaning Materials
30/03/2023,Resources,Support Services,135B,Key Engineering & Hygiene Supplies LTD,06/03/2023,RS147688,15.54,LIQUID SPRAY POLISH 750ML TRIGGER SPRAY,Cleaning Materials
30/03/2023,Resources,Support Services,135B,Key Engineering & Hygiene Supplies LTD,06/03/2023,RS147688,6.95,SAFE ZONE PLUS  5 LITRE,Cleaning Materials
30/03/2023,Resources,Support Services,135B,Key Engineering & Hygiene Supplies LTD,06/03/2023,RS147688,4.86,LATEX POWDER FREE GLOVES MED,Cleaning Materials
30/03/2023,Resources,Support Services,135B,Key Engineering & Hygiene Supplies LTD,06/03/2023,RS147688,9.72,LATEX POWDER FREE GLOVES SMALL,Cleaning Materials
30/03/2023,Resources,Support Services,135B,Key Engineering & Hygiene Supplies LTD,06/03/2023,RS147688,30.12,POT POURRI AIR FRESHENER,Cleaning Materials
30/03/2023,Resources,Support Services,135B,Key Engineering & Hygiene Supplies LTD,06/03/2023,RS147688,1.68,SOFT DUSTPAN + BRUSH SET,Cleaning Materials
30/03/2023,Resources,Support Services,135B,Key Engineering & Hygiene Supplies LTD,24/03/2023,RS148290,14.58,BLUE NITRILE POWDER FREE GLOVES MEDIUM,Cleaning Materials
30/03/2023,Resources,Support Services,135B,Key Engineering & Hygiene Supplies LTD,24/03/2023,RS148290,14.58,NITRILE BLUE POWDER FREE GLOVES SMALL,Cleaning Materials
30/03/2023,Resources,Support Services,135B,Key Engineering & Hygiene Supplies LTD,24/03/2023,RS148290,4.86,BLUE NITRILE POWDER FREE GLOVES LARGE,Cleaning Materials
30/03/2023,Resources,Support Services,135B,Key Engineering & Hygiene Supplies LTD,10/03/2023,RS147919,4.86,LATEX POWDER FREE GLOVES SMALL,Cleaning Materials
30/03/2023,Resources,Support Services,135B,Key Engineering & Hygiene Supplies LTD,06/03/2023,RS147688,52.92,THICKENED BLEACH 750ML,Cleaning Materials
30/03/2023,Resources,Support Services,135B,Key Engineering & Hygiene Supplies LTD,06/03/2023,RS147688,20.16,EAUFRESH NON ACIDIC POT POURRI TOILET CLEANER 1 LTR,Cleaning Materials
30/03/2023,Resources,Support Services,135B,Key Engineering & Hygiene Supplies LTD,06/03/2023,RS147688,5.67,WASHING UP LIQUID 5 LTR,Cleaning Materials
30/03/2023,Resources,Support Services,135B,Key Engineering & Hygiene Supplies LTD,06/03/2023,RS147688,204,WHITE 2PLY LUXURY TOILET ROLL 320 40 PER PACK,Cleaning Materials
30/03/2023,Resources,Support Services,135B,Key Engineering & Hygiene Supplies LTD,06/03/2023,RS147688,270.05,1 PLY BLUE INTERFOLD 3600 SHEETS,Cleaning Materials
30/03/2023,Resources,Support Services,135B,Key Engineering & Hygiene Supplies LTD,06/03/2023,RS147688,43.76,MEDIUM BLACK REFUSE SACK 18X29X34 100G,Cleaning Materials
30/03/2023,People and Places,Planning and Development Servs,132C,Key Engineering & Hygiene Supplies LTD,30/03/2023,PE148489,15.68,fleece,Cleaning Materials
30/03/2023,Resources,Support Services,135B,Konica Minolta Business Solutions UK LTD,22/03/2023,RS148181,88.76,WECP -1840141295,Central Printer/Copier Expenses
30/03/2023,Resources,Planning and Development Servs,132C,Konica Minolta Business Solutions UK LTD,22/03/2023,RS148181,29,Fleetwood Market - 1840080773,Hire of Tools or Equipment
30/03/2023,Resources,Support Services,135B,Konica Minolta Business Solutions UK LTD,02/03/2023,RS147581,825.88,Copy and print charges 1st March 2022 - 28th February 2023  1823533444 - Bizhub PRO 1100 1823440258 - Bizhub C458,Hire of Tools or Equipment
30/03/2023,Resources,Support Services,135B,Konica Minolta Business Solutions UK LTD,20/03/2023,RS148125,723.45,Rental Charges - Bizhub PRO 1100 A799021001634 - Equipment no 1823533444                             Bizhub C458 A79M021038576 - Equipment no 1823440258  For the period of 1st June 2022 - 31st May 2023,Hire of Tools or Equipment
30/03/2023,Resources,Support Services,135B,Konica Minolta Business Solutions UK LTD,15/03/2023,RS147569,1510.65,Bizhub C300i last quarter,Hire of Tools or Equipment
30/03/2023,Resources,Cultural and Related Services,132A,Konica Minolta Business Solutions UK LTD,22/03/2023,RS148181,17.63,Copy and print charges Visit Garstang - 18401412710,Hire of Tools or Equipment
30/03/2023,Resources,Support Services,135B,Konica Minolta Business Solutions UK LTD,21/03/2023,RS147527,579.56,"Maintenance, ink cyan, magenta yellow black",Materials and Consumables
30/03/2023,People and Places,Cultural and Related Services,132A,Lancashire County Council,24/03/2023,PE148316,6800,Annual contribution to the Forest of Bowland AONB management delivery 2021 - 22,Forest of Bowland Joint Advise Com Contr
30/03/2023,People and Places,Cultural and Related Services,132A,Lancashire County Council,22/03/2023,PE148221,196.04,INS284940 Fleetwood Rossall Point Observatory - Lightning Protection  Inspection,Planned Building Maintenance
30/03/2023,Resources,Support Services,135B,Lancashire County Council,06/03/2023,RS147742,47,"RSA1 - Road Space Application for works to cut hedges on both sides of the highway on Fleetwood Road, Fleetwood, FY7 8JZ. Proposed date Monday 13th February 2023 to Friday 17th February 2023",Materials and Consumables
30/03/2023,People and Places,Cultural and Related Services,132A,Lancashire County Council,22/03/2023,PE148221,32.47,INS306777 Thornton Cleveleys Marsh Mill - Alarm Monitoring,Planned Building Maintenance
30/03/2023,People and Places,Cultural and Related Services,132A,Lancashire County Council,22/03/2023,PE148221,196.04,INS299954 Thornton Cleveleys Marsh Mill - Lightning Protection  Inspection,Planned Building Maintenance
30/03/2023,Resources,Central Services to the Public,131C,Lancashire County Council,21/03/2023,RS147993,496,Wyre Council Con29 Searches for January 2023 - 31 @ 16.00 each,L.C.C. Search Fees
30/03/2023,People and Places,Support Services,135B,Lancashire County Council,21/03/2023,PE145145,5555.74,Incorrect amount on invoice for professional fees in respect of service contracts July-September 2022,Planned Building Maintenance
30/03/2023,People and Places,Support Services,135B,Lancashire County Council,22/03/2023,PE148221,3977.34,INS273258 Poulton le Fylde Civic Centre - PAT,Planned Building Maintenance
30/03/2023,People and Places,Environmental Services,132B,Lancashire County Council,22/03/2023,PE148221,22.36,INS273528 Fleetwood Cemetery Office - PAT,Planned Building Maintenance
30/03/2023,People and Places,Cultural and Related Services,132A,Lancashire County Council,22/03/2023,PE148221,174,INS294083 Fleetwood Memorial Bowls - Legionella Risk Assessment,Planned Building Maintenance
30/03/2023,People and Places,Cultural and Related Services,132A,Lancashire County Council,22/03/2023,PE148221,208.87,INS293880 Fleetwood Tennis Pavillion - Legionella Risk Assessment,Planned Building Maintenance
30/03/2023,People and Places,Planning and Development Servs,132C,Lancashire County Council,22/03/2023,PE148221,141.59,INS299182 Fleetwood Copse Road  Depot - Fire Alarm Maintenance (Main),Alarm Systems and Security - Annual
30/03/2023,People and Places,Planning and Development Servs,132C,Lancashire County Council,22/03/2023,PE148221,46.01,INS299183 Fleetwood Copse Road Depot - Fire Alarm Maintenance (Transport),Alarm Systems and Security - Annual
30/03/2023,People and Places,Planning and Development Servs,132C,Lancashire County Council,22/03/2023,PE148221,10.75,INS299184 Fleetwood Copse Road Depot - Disabled WC Alarm,Alarm Systems and Security - Annual
30/03/2023,People and Places,Support Services,135B,Lancashire County Council,21/03/2023,PE148163,-5555.74,Incorrect amount on invoice for professional fees in respect of service contracts July-September 2022,Planned Building Maintenance
30/03/2023,People and Places,Cultural and Related Services,132A,Lancashire County Council,24/03/2023,PE148297,3584,Lancashire Environmental Record Network (LERN) MoA 22/23  (FAO Nik Bruce),Biodiversity Duty
30/03/2023,People and Places,Cultural and Related Services,132A,Lancashire County Council,22/03/2023,PE148221,208.87,INS293881 Thornton Cleveleys Little Theatre  - Legionella Risk Assessment,Planned Building Maintenance
30/03/2023,People and Places,Cultural and Related Services,132A,J P LENNARD LTD,24/03/2023,PE148313,3769.86,"order for equipment to support the HAF programme at Fylde Coast YMCA. Please can the swimming pool related items be sent to Fleetwood Leisure centre, The Esplanade, Fleetwood, FY7 6HF and the other items be sent to Thornton Leisure Centre, Victoria Road E",Project Costs
30/03/2023,People and Places,Cultural and Related Services,132A,J P LENNARD LTD,24/03/2023,PE148294,2929.9,"order for equipment to support the HAF programme at Fylde Coast YMCA. Please can the swimming pool related items be sent to Fleetwood Leisure centre, The Esplanade, Fleetwood, FY7 6HF and the other items be sent to Thornton Leisure Centre, Victoria Road E",Project Costs
30/03/2023,People and Places,Cultural and Related Services,132A,J P LENNARD LTD,28/03/2023,PE148384,89.21,"order for equipment to support the HAF programme at Fylde Coast YMCA. Please can the swimming pool related items be sent to Fleetwood Leisure centre, The Esplanade, Fleetwood, FY7 6HF and the other items be sent to Thornton Leisure Centre, Victoria Road E",Project Costs
30/03/2023,People and Places,Cultural and Related Services,132A,J P LENNARD LTD,28/03/2023,PE148383,1028.96,"order for equipment to support the HAF programme at Fylde Coast YMCA. Please can the swimming pool related items be sent to Fleetwood Leisure centre, The Esplanade, Fleetwood, FY7 6HF and the other items be sent to Thornton Leisure Centre, Victoria Road E",Project Costs
30/03/2023,People and Places,Cultural and Related Services,132A,Lyreco UK LTD,03/03/2023,PE147698,48.6,A4 Copier Paper,Stationery
30/03/2023,People and Places,Support Services,135B,Lyreco UK LTD,23/03/2023,PE147697,564,"Offset via PE148262 Supply 4 boxes of A4 lyreco white paper, code 157796 at 5.40 per ream (5 reams in a box)   Delivery to Wyre Council, Copse Road Depot, Fleetwood, FY7 6RP",Purchase of Tools or Equipment
30/03/2023,People and Places,Support Services,135B,Malcolm McCulloch & Sons LTD,30/03/2023,PE148504,134,2 x Winter coveralls @ 67.00 ech,Protective Clothing
30/03/2023,People and Places,Support Services,135B,Malcolm McCulloch & Sons LTD,29/03/2023,PE148466,67,Winter Coveralls,Protective Clothing
30/03/2023,People and Places,Planning and Development Servs,132C,Malcolm McCulloch & Sons LTD,29/03/2023,PE148465,120,15 Centre feed rolls,Cleaning Materials
30/03/2023,People and Places,Planning and Development Servs,132C,Malcolm McCulloch & Sons LTD,30/03/2023,PE148504,263.7,15 Centre feed rolls 180.00 6 toilet rolls 83.70,Cleaning Materials
30/03/2023,People and Places,Support Services,135B,Malcolm McCulloch & Sons LTD,29/03/2023,PE148465,55.8,15 Centre feed rolls,Materials and Consumables
30/03/2023,People and Places,Support Services,135B,Malcolm McCulloch & Sons LTD,29/03/2023,PE148465,83.7,Toilet rolls,Materials and Consumables
30/03/2023,Resources,Support Services,135B,Phoenix Software LTD,24/03/2023,RS148317,94.76,Photoshop for teams Subscription New - Licence - 1 Month - Level 2 - Multiple Platforms - 1Licence Subscription New - Licence.,Software Maintenance
30/03/2023,Resources,Support Services,135B,Phoenix Software LTD,24/03/2023,RS148317,103.02,Acrobat Professional - DC for teamsTeam Licensing Subscription - New - Multiple Platforms 2- 1 Month - Level 2 (10 - 49) - *Existing Acrobat Pro DC customers only* Licence,Software Maintenance
30/03/2023,Resources,Support Services,135B,Phoenix Software LTD,21/03/2023,RS148093,774.07,Azure overage for period ending Feb 2023,Software Maintenance
30/03/2023,People and Places,Cultural and Related Services,132A,Road Safety Services LTD,29/03/2023,PE148454,2190,"Local Event Organisers`s Training 2023For the delivery of 2 x LANTRA Training days at the Civic Centre to accredit 20 x volunteer marshals. The cost for 2 x full days is 2,540",Creative People and Places Contribution
30/03/2023,People and Places,Environmental Services,132B,Scarab Sweepers Ltd,02/03/2023,PE147606,1947.6,sweeper brushes and carriage,Materials and Consumables
30/03/2023,People and Places,Environmental Services,132B,Scarab Sweepers Ltd,22/03/2023,PE148185,265.58,Sweeper brushes,Materials and Consumables
30/03/2023,People and Places,Planning and Development Servs,132C,Suez Recycling And Recovery UK LTD,06/03/2023,PE147735,1120.29,waste removal market suez June 22 to March 23,Refuse Collection
30/03/2023,Resources,Support Services,135B,NEC Software Solutions UK Limited,08/03/2023,RS147837,950,SUPPLIER REFERENCE:MB / 140141Supplier Software:English NDR Legislation Changes 2023,Software Maintenance
30/03/2023,Resources,Central Services to the Public,131C,NEC Software Solutions UK Limited,30/03/2023,RS148502,300,SUPPLIER REFERENCE: SL / CRM 140817Consultancy Services. Project Description: Rollover Sign Off.To be delivered: Outside normal working hours. To be delivered: Offsite,Consultants Fees
30/03/2023,People and Places,Environmental Services,132B, Travis Perkins Trading CO LTD,22/03/2023,PE148151,1331.2, supply and delivery of 52 ultracrete pothole repair 25kg tubs,Materials and Consumables
30/03/2023,People and Places,Environmental Services,132B,Travis Perkins Trading CO LTD,08/03/2023,PE147685,1456,56 bags QC 6,Materials and Consumables
30/03/2023,People and Places,Cultural and Related Services,132A,Nisbetts Next Day Catering Equipment,20/03/2023,PE148119,849.9,Bolero faux leather dining Chair Black (Box 2),Purchase Furniture
30/03/2023,People and Places,Cultural and Related Services,132A,Nisbetts Next Day Catering Equipment,28/03/2023,PE148311,15.99,Small catering first aid kit - FT589,First Aid Supplies
30/03/2023,People and Places,Cultural and Related Services,132A,Nisbetts Next Day Catering Equipment,07/03/2023,PE147832,59.99,FO18 - Folding Step Stool 2 Tread,Purchase of Tools or Equipment
30/03/2023,People and Places,Support Services,135B,LABC,21/03/2023,PE148177,2575.81,LABC Annual Membership fee,Purchase of Publications
30/03/2023,People and Places,Support Services,135B,LABC,22/03/2023,PE148214,310,"Emerging Talent Conference - 4 and 5 September 2023 - Charlie Thwaites, Building Control",Technical Training
30/03/2023,Resources,Support Services,135B,Experian Ltd,08/03/2023,RS147792,5,One stop search - person,Debtor Tracing
30/03/2023,Resources,Support Services,135B,Experian Ltd,08/03/2023,RS147791,2054.81,CV plus - manual invoice Annual bill one-off,Debtor Tracing
30/03/2023,Resources,Support Services,135B,Experian Ltd,08/03/2023,RS147839,11,Investigation Services,Debtor Tracing
30/03/2023,People and Places,Cultural and Related Services,132A,Lancashire And North West Magazine,13/03/2023,PE148016,895,Wyre Weddings Feature,Guides
30/03/2023,People and Places,Planning and Development Servs,132C,Lancashire And North West Magazine,13/03/2023,PE148014,895,Fleetwood Market Feature,Promotions - General
30/03/2023,Resources,Corporate and Democratic Core,131A,Link Treasury Services LTD,07/03/2023,RS147816,4000,Treasury Services for the period 01/10/2022 to 31/03/2023,Consultants Fees
30/03/2023,Resources,Current Assets,130B,Whistl Uk Limited,29/03/2023,RS148437,372.62,Annual postage charges 01/04/2022 - 31/03/2022,Stores Purchases
30/03/2023,Resources,Current Assets,130B,Whistl Uk Limited,22/03/2023,RS148182,360.83,Annual postage charges 01/04/2022 - 31/03/2022,Stores Purchases
30/03/2023,Resources,Current Assets,130B,Whistl Uk Limited,07/03/2023,RS147790,572.24,Annual postage charges 01/04/2022 - 31/03/2022,Stores Purchases
30/03/2023,Resources,Current Assets,130B,Whistl Uk Limited,14/03/2023,RS148024,590.37,Annual postage charges 01/04/2022 - 31/03/2022,Stores Purchases
30/03/2023,Resources,Current Assets,130B,Whistl Uk Limited,14/03/2023,RS148024,5.2,Annual postage charges 01/04/2022 - 31/03/2022,Stores Purchases
30/03/2023,Resources,Current Assets,130B,Whistl Uk Limited,01/03/2023,RS147633,883.82,Annual postage charges 01/04/2022 - 31/03/2022,Stores Purchases
30/03/2023,Resources,Current Assets,130B,Whistl Uk Limited,01/03/2023,RS147633,9.8,Annual postage charges 01/04/2022 - 31/03/2022,Stores Purchases
30/03/2023,People and Places,Public Transport,133G,Wyre Marine Services,23/03/2023,PE148229,8685,"Fleetwood - Knott End Ferry Service. Schedule of payments  12 April 2022             - 11 May 2022                        �,8685.00 12 May 2022             - 11 June 2022                       8,685.00 12 June 2022            - 11 July 2022",Private Contractors
30/03/2023,People and Places,Environmental Services,132B,ALLTITE METAL ROOFING SYSTEMS LTD,02/03/2023,PE147677,10128,"Please remove existing & replace roofline metalwork and RWP�s with TATA Steel HPS 200 Ultra as per your quotation - 27,739.00 + VAT",Responsive Building Maintenance
30/03/2023,People and Places,Environmental Services,132B,Blackburn With Darwen Borough Council,02/03/2023,PE147678,2005.38,Contaminated land checks,Consultants Fees
30/03/2023,People and Places,Planning and Development Servs,132C,Blackburn With Darwen Borough Council,16/03/2023,PE148022,1670.92,Evolutive Subscription 2023,Consultants Fees
30/03/2023,People and Places,Environmental Services,132B,M J Wilkinson,28/03/2023,PE148410,300,Collection of seal and taken back to yard 20/2/23,Hazardous Waste Disposal
30/03/2023,People and Places,Environmental Services,132B,M J Wilkinson,28/03/2023,PE148394,68.65,Hire of Breaker Order no: 1105823/2/23,Vehicle Hire
30/03/2023,People and Places,Environmental Services,132B,M J Wilkinson,28/03/2023,PE148394,364.48,Hire of Benford 9T Dumper Order no: 1105923/2/23 - 24/2/23,Vehicle Hire
30/03/2023,People and Places,Environmental Services,132B,M J Wilkinson,28/03/2023,PE148392,675.52,Hire of Hitachi ZX30Order no: 110546/2/23 - 9/2/23,Vehicle Hire
30/03/2023,People and Places,Environmental Services,132B,M J Wilkinson,28/03/2023,PE148392,147.84,Hire of Breaker to fit ZX30Order no: 11054 6/2/23 - 9/2/23,Vehicle Hire
30/03/2023,People and Places,Environmental Services,132B,M J Wilkinson,28/03/2023,PE148392,52.82,Each way Transport,Vehicle Hire
30/03/2023,People and Places,Environmental Services,132B,M J Wilkinson,28/03/2023,PE148391,473.12,Hire of Hitachi ZX130Order no: 1105230/1/23 - 31/1/23,Vehicle Hire
30/03/2023,People and Places,Environmental Services,132B,M J Wilkinson,28/03/2023,PE148391,506.64,Hire of Hitachi ZX30Order no: 110521/2/23 - 3/2/23,Vehicle Hire
30/03/2023,People and Places,Environmental Services,132B,M J Wilkinson,28/03/2023,PE148391,52.82,Each way Transport,Vehicle Hire
30/03/2023,People and Places,Environmental Services,132B,M J Wilkinson,28/03/2023,PE148391,911.2,Hire of Benford 9T Dumper Order no: 1105330/1/23 - 3/2/23,Vehicle Hire
30/03/2023,People and Places,Environmental Services,132B,M J Wilkinson,28/03/2023,PE148391,36.96,Transport to site,Vehicle Hire
30/03/2023,People and Places,Environmental Services,132B,M J Wilkinson,28/03/2023,PE148393,1182.72,Hire of Hitachi ZX130Order no: 1105613/2/23 - 16/2/23,Vehicle Hire
30/03/2023,People and Places,Environmental Services,132B,M J Wilkinson,28/03/2023,PE148393,728.96,Hire of Benford 9T Dumper Order no: 1105713/2/23 - 16/2/23,Vehicle Hire
30/03/2023,People and Places,Environmental Services,132B,M J Wilkinson,23/03/2023,PE148254,709.68,Hire of Hitachi ZX130Order no 1080017/1/23 to 19/1/23,Vehicle Hire
30/03/2023,People and Places,Environmental Services,132B,M J Wilkinson,23/03/2023,PE148255,506.64,Hire of Hitachi ZX30Order no 1105120/1/23 to 22/1/23 @ 506.64,Vehicle Hire
30/03/2023,People and Places,Environmental Services,132B,M J Wilkinson,23/03/2023,PE148255,110.88,Hire of Breaker to suit ZX30Order no 1105120/1/23 to 22/1/23 @ 110.88,Vehicle Hire
30/03/2023,People and Places,Environmental Services,132B,M J Wilkinson,23/03/2023,PE148255,52.82,Each way Transport,Vehicle Hire
30/03/2023,People and Places,Environmental Services,132B,M J Wilkinson,23/03/2023,PE148253,337.76,Hire of Hitachi ZX30 @ 337.76Order no 107999/1/23 to 10/1/23,Vehicle Hire
30/03/2023,People and Places,Environmental Services,132B,M J Wilkinson,23/03/2023,PE148253,73.92,Hire of Breaker to suit ZX30 73.92Order no 107999/1/23 to 10/1/23,Vehicle Hire
30/03/2023,People and Places,Environmental Services,132B,M J Wilkinson,23/03/2023,PE148253,52.82,Each way Transport,Vehicle Hire
30/03/2023,People and Places,Environmental Services,132B,M J Wilkinson,28/03/2023,PE148411,132.01,Transport 13T from Chatsworth back to seawall 24/2/23,Vehicle Hire
30/03/2023,People and Places,Environmental Services,132B,M J Wilkinson,28/03/2023,PE148394,473.12,Hire of Hitachi ZX130Order no: 1105823/2/23 - 24/2/23,Vehicle Hire
30/03/2023,People and Places,Environmental Services,132B,M J Wilkinson,10/03/2023,PE147968,168.96,Hire of Hitachi ZX16 @ Fleetwood16/12/22 to 21/12/22,Vehicle Hire
30/03/2023,People and Places,Environmental Services,132B,M J Wilkinson,10/03/2023,PE147968,42.22,Each way Transport 16/12/22 to 21/12/22,Vehicle Hire
30/03/2023,People and Places,Environmental Services,132B,M J Wilkinson,10/03/2023,PE147966,132.01,Transport ZX130 to Chatsworth 19/12/22 to 22/12/22Order no 10797,Vehicle Hire
30/03/2023,People and Places,Environmental Services,132B,M J Wilkinson,10/03/2023,PE147967,236.56,Hire of Hitachi ZX1308/12/22 to 8/12/22Order no 10795,Vehicle Hire
30/03/2023,People and Places,Environmental Services,132B,M J Wilkinson,10/03/2023,PE147967,304.16,Hire of 120 Roller 8/12/22 to 9/12/22Order no 10794,Vehicle Hire
30/03/2023,People and Places,Environmental Services,132B,M J Wilkinson,10/03/2023,PE147967,105.64,Transport each way 8/12/22 to 9/12/22Order no 10794,Vehicle Hire
30/03/2023,People and Places,Support Services,135B,M J Wilkinson,28/03/2023,PE148392,66,Hire of labour only Order no: 1105410/2/23,Agency Staff
30/03/2023,People and Places,Support Services,135B,M J Wilkinson,28/03/2023,PE148392,422.4,Hire of Labour only Order no: 110556/2/23 - 9/2/23,Agency Staff
30/03/2023,People and Places,Support Services,135B,M J Wilkinson,28/03/2023,PE148394,105.6,Hire of Labour only Order no: 1105820/2/23,Agency Staff
30/03/2023,People and Places,Support Services,135B,M J Wilkinson,23/03/2023,PE148254,171.6,Hire of Labour only @ 171.60Order no 1080016/1/23 to 20/1/23,Agency Staff
30/03/2023,People and Places,Support Services,135B,M J Wilkinson,23/03/2023,PE148253,211.2,Hire of labour only order no 1079911/1/23 to 12/1/23,Agency Staff
30/03/2023,People and Places,Support Services,135B,M J Wilkinson,23/03/2023,PE148256,382.8,Hire of labour only @ 382.80Order no 107983/1/23 to 6/1/23,Agency Staff
30/03/2023,People and Places,Support Services,135B,M J Wilkinson,10/03/2023,PE147967,316.8,Hire of Labour5/12/22 to 7/12/22Order no 10795,Agency Staff
30/03/2023,People and Places,Support Services,135B,M J Wilkinson,10/03/2023,PE147967,168.88,Hire of Hitachi ZX309/12/22 to 9/12/22Order no 10795,Agency Staff
30/03/2023,People and Places,Support Services,135B,M J Wilkinson,10/03/2023,PE147967,52.82,Each way Transport 9/12/22 to 9/12/22Order no 10795,Agency Staff
30/03/2023,People and Places,Support Services,135B,M J Wilkinson,10/03/2023,PE147966,422.4,Hire of labour only19/12/22 to 19/12/22Order no 10797,Agency Staff
30/03/2023,People and Places,Support Services,135B,M J Wilkinson,10/03/2023,PE147965,488.4,Hire of Labour12/12/22 to 16/12/22order no 10796,Agency Staff
30/03/2023,Resources,Housing General Fund,134A,M J Wilkinson,20/03/2023,PE148015,830.7,"4 North Albion Street, Fleetwood, Rent + Council tax",Private Contractors
30/03/2023,People and Places,Planning and Development Servs,132C,Knight Kavanagh & Page,10/03/2023,PE147920,6513.3,"Green Infrastructure Study, comprising:Playing Pitch and Outdoor Sports StrategyGreen Infrastructure AuditGreen Infrastructure Strategy",Consultants Fees
30/03/2023,People and Places,Planning and Development Servs,132C,Knight Kavanagh & Page,14/03/2023,PE147920,-6513.3,"Green Infrastructure Study, comprising:Playing Pitch and Outdoor Sports StrategyGreen Infrastructure AuditGreen Infrastructure Strategy",Consultants Fees
30/03/2023,People and Places,Planning and Development Servs,132C,Knight Kavanagh & Page,14/03/2023,PE147789,17883.3,"Green Infrastructure Study, comprising:  Playing Pitch and Outdoor Sports Strategy Green Infrastructure Audit Green Infrastructure Strategy",Consultants Fees
30/03/2023,People and Places,Planning and Development Servs,132C,Knight Kavanagh & Page,24/03/2023,PE148143,6513.3,"Green Infrastructure Study, comprising:  Playing Pitch and Outdoor Sports Strategy Green Infrastructure Audit Green Infrastructure Strategy",Consultants Fees
30/03/2023,Resources,Cultural and Related Services,132A,Preston City Council,28/03/2023,RS148417,152.85,3 x Discover Wyre/We Are Wyre pull up banners (beaches/fresh air/generic DW)Delivery to civic centre FAO HAYLEY MCGUFFIE,Guides
30/03/2023,Resources,Support Services,135B,Preston City Council,06/03/2023,RS147731,96.98,Garstang TIC door/window vinyl posters 3 x 1650x800mm 1pp full colour on 200 mic poly prop 2 x 1760x960mm 1pp full colour on 200 mic poly prop Delivered to Civic Centre Poulton for Tuesday 20 Dec,Public Relations
30/03/2023,Resources,Cultural and Related Services,132A,Preston City Council,24/03/2023,RS148279,5.4,Craft and chat100 x A5 1pp4 x A4 1pp,Creative People and Places Contribution
30/03/2023,Resources,Planning and Development Servs,132C,Preston City Council,24/03/2023,RS148279,192,FLEETWOOD MARKET 2 PART NCR BOOKS,Stationery
30/03/2023,Resources,Cultural and Related Services,132A,Preston City Council,06/03/2023,RS147731,92.5,Print @ Preston City Council - Order 4290a Printing of: 2000 x Garstang Walking Festival 2023 -  1/3 A4 Flyers - 92.50 3000 x Garstang Walking Festival 2023 -  A5 12 page Booklet - 559.20,Garstang Walking Festival
30/03/2023,Resources,Environmental Services,132B,Preston City Council,28/03/2023,RS148417,142.5,3000 x Dog ban A5 2pp leaflets 150gsm silk carbon neutral,Promotions - General
30/03/2023,Resources,Cultural and Related Services,132A,Preston City Council,28/03/2023,RS148417,45,1000 x YMCA Your Move Low Impact Classes A5 1pp,Promotions - General
30/03/2023,People and Places,Cultural and Related Services,132A,Preston City Council,06/03/2023,PE147730,375,Panto 22 -A5 full colour 1pp printed digital on 150gsm carbon neutral silk 1-2 day turnaround,Advertising - General
30/03/2023,People and Places,Cultural and Related Services,132A,Preston City Council,06/03/2023,PE147730,66.22,Panto 22 - 3 Bus Stop Posters,Advertising - General
30/03/2023,People and Places,Cultural and Related Services,132A,Preston City Council,24/03/2023,PE148277,66.22,Simon & Garfunkel- 3 Bus Stop Posters (1200x1800 full colour 1pp printed digital on 200mic poly prop,Advertising - General
30/03/2023,People and Places,Cultural and Related Services,132A,Preston City Council,24/03/2023,PE148277,191.22,1200x1800 full colour 1pp printed digital on 200mic poly prop  - Elvis  - Upbeat Beatles  - Bon Jovi,Advertising - General
30/03/2023,People and Places,Cultural and Related Services,132A,Preston City Council,24/03/2023,PE148277,95.61,6 bus stop poster Elvis / Bon Jovi / Upbeat Beatles  1400x1000 full colour 1pp printed digital on 200mic poly prop,Advertising - General
30/03/2023,People and Places,Cultural and Related Services,132A,Preston City Council,24/03/2023,PE148280,1856,"30,0000 copies of Wyre Theatres What`s On Guide",Advertising - General
30/03/2023,People and Places,Cultural and Related Services,132A,Preston City Council,10/03/2023,PE147908,559.2,Print @ Preston City Council - Order 4290aPrinting of:2000 x Garstang Walking Festival 2023 -  1/3 A4 Flyers - 92.503000 x Garstang Walking Festival 2023 -  A5 12 page Booklet - 559.20,Garstang Walking Festival
30/03/2023,Resources,Support Services,135B,Preston City Council,06/03/2023,RS147731,10.25,100 x Wyre Business cards - NICK CLAYTON Reprint of previous error,Central Printer/Copier Paper
30/03/2023,Resources,Cultural and Related Services,132A,Preston City Council,28/03/2023,RS148417,254.75,"5 x pull up banners (50.95 each) 1 x Just Rem generic, 1 x Fun Arts generic, 1 x Fun arts dated, 1 x craft and chat",Community Arts
30/03/2023,People and Places,Environmental Services,132B,DANFO (UK) LTD,15/03/2023,PE148037,21763.1,Public Conveniences - Maintenance and Cleaning 2022/23,Other Establishments
30/03/2023,People and Places,Cultural and Related Services,132A,Fylde Coast YMCA,16/03/2023,PE148089,2333,"Room hire for SEND club on Saturdays with the Play Inclusion Project, January 2023 - March 2024",External Coaching
30/03/2023,People and Places,Support Services,135B,Balmers GM LTD,17/03/2023,PE148108,158.32,Hi vis jacket price increase offset via credit,Protective Clothing
30/03/2023,People and Places,Support Services,135B,Balmers GM LTD,17/03/2023,PE148107,316.65,high vis jacket price increase offset via credit,Protective Clothing
30/03/2023,People and Places,Support Services,135B,Balmers GM LTD,02/03/2023,PE147681,153.37,"FAO Steve PulmanBalmers Stihl MS Protect Cut high visibility jacket1 x LARGEPlease also put a separate order on for another of these jackets in Large.Price is 189.99 each including VAT.Delivery to Wyre Council, FAO Roger Brocklebank",Protective Clothing
30/03/2023,People and Places,Support Services,135B,Balmers GM LTD,21/03/2023,PE148165,4075,"FAO Steve   To Supply  Qty 5 x Husqvarna LB553SQe walk behind pedestrian rotary mowers  Net cost per unit 815 + Vat  Must be Delivered in April 2023  Delivery to Wyre Council, Copse Road Depot, Copse Road, Fleetwood, Lancashire, FY7 6RP",Purchase of Tools or Equipment
30/03/2023,People and Places,Support Services,135B,Balmers GM LTD,02/03/2023,PE147682,306.74,"FAO Steve PulmanBalmers Stihl MS Protect Cut high visibility jacket1 x XL1 x XXLPlease also put a separate order on for another of these jackets in Large.Price is 189.99 each including VAT.Delivery to Wyre Council, FAO Roger Brock",Protective Clothing
30/03/2023,People and Places,Cultural and Related Services,132A,Pipescan LTD,29/03/2023,PE148463,80,"Drain clearance at Marine Hall, The Esplanade on 29/03/2023 as requested by Keely Jones",Responsive Building Maintenance
30/03/2023,People and Places,Cultural and Related Services,132A,Pipescan LTD,22/03/2023,PE147746,900,"Kiosk 6, East Collonade Cafe, The Esplanade, Fleetwood: Drainage repair",Responsive Building Maintenance
30/03/2023,People and Places,Cultural and Related Services,132A,Pipescan LTD,06/03/2023,PE147713,180,"drain clearance at Kiosk 4, The Esplanade, Fleetwood on 01/03/23",Responsive Building Maintenance
30/03/2023,People and Places,Cultural and Related Services,132A,Pipescan LTD,28/03/2023,PE148370,720,"Kiosk 3, Laidleys Walk, Fleetwood: manhole remedial work on 27/03/23",Responsive Building Maintenance
30/03/2023,People and Places,Cultural and Related Services,132A,Keep Britain Tidy,08/03/2023,PE147848,369,Memorial Parks green flag application 23/24,Green Flag and Other Awards
30/03/2023,People and Places,Cultural and Related Services,132A,Keep Britain Tidy,08/03/2023,PE147851,369,The Mounts green flag application 23/24,Green Flag and Other Awards
30/03/2023,People and Places,Cultural and Related Services,132A,Keep Britain Tidy,08/03/2023,PE147850,369,Vicarage Park entry to Green Flag Award 2023,Green Flag and Other Awards
30/03/2023,People and Places,Cultural and Related Services,132A,Keep Britain Tidy,08/03/2023,PE147849,369,Wyre Estuary Country park Green Flag,Green Flag and Other Awards
30/03/2023,Resources,Support Services,135B,People Asset Management LTD,21/03/2023,RS148192,750,scanning 1000 documents at 75p per document,Occupational Health Fees
30/03/2023,Resources,Support Services,135B,People Asset Management LTD,21/03/2023,RS148192,95,Secure collection fee,Occupational Health Fees
30/03/2023,Resources,Support Services,135B,People Asset Management LTD,15/03/2023,RS147749,675.68,Monthly fee (Aug to March 22,Occupational Health Fees
30/03/2023,Resources,Support Services,135B,People Asset Management LTD,15/03/2023,RS147749,230.85,Monthly fee (Aug to March 22,Occupational Health Fees
30/03/2023,People and Places,Support Services,135B,Chris Allen Garages LTD,10/03/2023,PE147963,154.45,Lockset,Materials and Consumables
30/03/2023,People and Places,Support Services,135B,Chris Allen Garages LTD,10/03/2023,PE147962,424.86,latch,Materials and Consumables
30/03/2023,People and Places,Environmental Services,132B,Chris Allen Garages LTD,10/03/2023,PE147964,335.12,Pad seat cushionCover Assy,Daywork Materials (Excl.Tyres)
30/03/2023,Resources,Support Services,135B,Bill Rogerson Safety Services LTD,28/03/2023,RS148347,410,to delivery of First Aid at Work x 2 delegates: Marianne Unwin and Tim Coulton 15th and 17th March at your premises,Corporate Training - Health and Safety
30/03/2023,Resources,Cultural and Related Services,132A,Bill Rogerson Safety Services LTD,28/03/2023,RS148310,150,Emergency first aid for volunteers - Julia Scott and Tom Halstead 15/3/23,Training - Non HR Controlled
30/03/2023,People and Places,Parking Services,133F,A1 Streamline Road,08/03/2023,PE147034,500,Work carried out at Wheatsheaf Way car park Poulton,"Paths, Roads and Car Park Mtnce Annual"
30/03/2023,Resources,Central Services to the Public,131C,Jacobs Enforcement Agency,29/03/2023,RS148448,310,Compliance and Enforecement paid diret (Case ID 33751801 our ref 71609755,Enforcement Agents` Fees
30/03/2023,Resources,Central Services to the Public,131C,Jacobs Enforcement Agency,08/03/2023,RS147862,150,compliance paid direct,Enforcement Agents` Fees
30/03/2023,Resources,Housing General Fund,134A,Jacobs Enforcement Agency,08/03/2023,RS147855,298.05,15% commission on 1987.00 recovered,Enforcement Agents` Fees
30/03/2023,People and Places,Environmental Services,132B,Townscape Products LTD,20/03/2023,PE148149,11975,Your quotation no:B11216 01/02/2023Please supply28 BAR/0021I - Fleetwood Intermediate Octagonal Performa-cast polymer post with galvanised steel core - below ground fix - painted Black (RAL2004)2 BAR/0021E - Fleetwood End Octagonal Performa-ca,Materials and Consumables
30/03/2023,People and Places,Cultural and Related Services,132A,MSG Media Limited,14/03/2023,PE148049,750,LINK MAG April 2023 - 15k 12pp DL Brochure  Distribution for Whats on Guide,Advertising - General
30/03/2023,People and Places,Environmental Services,132B,Osborne Richardson,30/03/2023,PE148496,151.2,To provide Contaminated land & Air Quality Consultancy April 2022-March 2023(Annual purchase order to draw invoices from throughout the year),Consultants Fees
30/03/2023,People and Places,Environmental Services,132B,Osborne Richardson,22/03/2023,PE148144,579.6,To provide Contaminated land & Air Quality Consultancy April 2022-March 2023  (Annual purchase order to draw invoices from throughout the year),Consultants Fees
30/03/2023,Resources,Housing General Fund,134A,Mapleleaf Letting Centre LTD,13/03/2023,RS148000,700,"Asylum support 3 hapton street, Thornton rent for period 23rd feb - 22nd march 2023",Private Contractors
30/03/2023,People and Places,Cultural and Related Services,132A,Active Lancashire LTD,23/03/2023,PE148266,502.75,ESF WPHC output allocation ; Jul-Dec 2022 for the Business Health Matters Programme,Project Costs
30/03/2023,People and Places,Cultural and Related Services,132A,Active Lancashire LTD,10/03/2023,PE147930,2000,Wyre Council - Local Authority contribution to Active Lancashire 2022 / 23,Lancashire Sport Contribution
30/03/2023,Resources,Planning and Development Servs,132C,Daisy Communications LTD,17/03/2023,RS147780,10.71,Monthly Phone Charges,Telephone - Buildings and Offices
30/03/2023,Resources,Support Services,135B,Daisy Communications LTD,17/03/2023,RS147780,16.95,Monthly Phone Charges,Internet and Telephone Charges
30/03/2023,Resources,Planning and Development Servs,132C,Daisy Communications LTD,17/03/2023,RS147780,42.91,Monthly Phone Charges,Advertising - General
30/03/2023,Resources,Cultural and Related Services,132A,Daisy Communications LTD,17/03/2023,RS147780,10.71,Monthly Phone Charges,Telephone - Buildings and Offices
30/03/2023,Resources,Cultural and Related Services,132A,Daisy Communications LTD,17/03/2023,RS147780,33.43,Monthly Phone Charges,Telephone - Buildings and Offices
30/03/2023,Resources,Environmental Services,132B,Daisy Communications LTD,17/03/2023,RS147780,10.71,Monthly Phone Charges,Telephone - Buildings and Offices
30/03/2023,Resources,Planning and Development Servs,132C,Daisy Communications LTD,17/03/2023,RS147780,0.52,Monthly Phone Charges,Telephone - Buildings and Offices
30/03/2023,Resources,Support Services,135B,Daisy Communications LTD,17/03/2023,RS147780,33.3,Monthly Phone Charges,Telephone - Buildings and Offices
30/03/2023,Resources,Support Services,135B,Daisy Communications LTD,17/03/2023,RS147780,10.71,Monthly Phone Charges,Alarm Systems and Security - Annual
30/03/2023,Resources,Support Services,135B,Daisy Communications LTD,17/03/2023,RS147780,44.26,Monthly Phone Charges,Internet and Telephone Charges
30/03/2023,Resources,Support Services,135B,Daisy Communications LTD,17/03/2023,RS147780,21.42,Monthly Phone Charges,Internet and Telephone Charges
30/03/2023,Resources,Cultural and Related Services,132A,Daisy Communications LTD,17/03/2023,RS147780,60.95,Monthly Phone Charges,Telephone - Buildings and Offices
30/03/2023,Resources,Cultural and Related Services,132A,Daisy Communications LTD,17/03/2023,RS147780,11.12,Monthly Phone Charges,Telephone - Buildings and Offices
30/03/2023,Resources,Cultural and Related Services,132A,Daisy Communications LTD,17/03/2023,RS147780,10.71,Monthly Phone Charges,Telephone - Buildings and Offices
30/03/2023,Resources,Environmental Services,132B,Daisy Communications LTD,17/03/2023,RS147780,32.14,Monthly Phone Charges,Telephone - Buildings and Offices
30/03/2023,Resources,Support Services,135B,Daisy Communications LTD,17/03/2023,RS147780,10.71,Monthly Phone Charges,Telephone - Buildings and Offices
30/03/2023,Resources,Support Services,135B,Daisy Communications LTD,17/03/2023,RS147780,1622.56,Monthly Phone Charges,Telephone - Buildings and Offices
30/03/2023,Resources,Cultural and Related Services,132A,Daisy Communications LTD,17/03/2023,RS147780,21.42,Monthly Phone Charges,Telephone - Buildings and Offices
30/03/2023,Resources,Cultural and Related Services,132A,Daisy Communications LTD,17/03/2023,RS147780,10.71,Monthly Phone Charges,Telephone - Buildings and Offices
30/03/2023,Resources,Cultural and Related Services,132A,Daisy Communications LTD,17/03/2023,RS147780,66.6,Monthly Phone Charges,Telephone - Buildings and Offices
30/03/2023,Resources,Cultural and Related Services,132A,Daisy Communications LTD,17/03/2023,RS147780,27.65,Monthly Phone Charges,Internet and Telephone Charges
30/03/2023,Resources,Corporate and Democratic Core,131A,Daisy Communications LTD,17/03/2023,RS147780,10.71,Monthly Phone Charges,Internet and Telephone Charges
30/03/2023,Resources,Planning and Development Servs,132C,Daisy Communications LTD,17/03/2023,RS147780,2.2,Monthly Phone Charges,Telephone - Buildings and Offices
30/03/2023,Resources,Cultural and Related Services,132A,Daisy Communications LTD,17/03/2023,RS147780,10.71,Monthly Phone Charges,Internet and Telephone Charges
30/03/2023,Resources,Support Services,135B,Daisy Communications LTD,17/03/2023,RS147780,2.2,Monthly Phone Charges,Telephone - Buildings and Offices
30/03/2023,People and Places,Parking Services,133F,NSL Services Group,21/03/2023,PE148167,3509.22,Variable Fee - Car Park Enforcement NSL Feb 2023,Private Contractors
30/03/2023,People and Places,Support Services,135B,RH Environmental LTD,24/03/2023,PE148328,726,Annual Subscription to The Noise App @ 726/YearPeriod Covered 24/05/23 - 23/05/24,Purchase of Publications
30/03/2023,People and Places,Support Services,135B,RH Environmental LTD,24/03/2023,PE148328,3822,RIAMS Subscription @   3822/YearPeriod Covered 01/04/23 - 31/03/24,Purchase of Publications
30/03/2023,People and Places,Support Services,135B,RH Environmental LTD,24/03/2023,PE148328,150,Subscription to CPD facility @ 150/YearPeriod Covered 01/04/23 - 31/03/24,Purchase of Publications
30/03/2023,People and Places,Support Services,135B,RH Environmental LTD,24/03/2023,PE148328,150,Subscription to Formatted Notices @ 150/YearPeriod Covered 01/04/23 - 31/03/24 Making a Total Cost of 4848 + VAT,Purchase of Publications
30/03/2023,People and Places,Environmental Services,132B,Robert Pinkus Property Management LTD,15/03/2023,PE147638,200,Garstang - Park Hill Rd WC`s: 25/03/23 to 23/09/23 qtly svc charge,Rents
30/03/2023,People and Places,Cultural and Related Services,132A,Robert Pinkus Property Management LTD,15/03/2023,PE147637,2645.48,"Garstang Park Hill Road, Unit 1 TIC: 25/03/23 to 31/05/23 rent",Rents
30/03/2023,People and Places,Cultural and Related Services,132A,Robert Pinkus Property Management LTD,15/03/2023,PE147637,327.89,"Garstang Park Hill Road, Unit 1 TIC: 25/03/23 to 31/05/23 service charge",Rents
30/03/2023,People and Places,Support Services,135B,Sefton Council,23/03/2023,PE148260,755,Northern Sub Group Annual Membership fees 2022/23Customer ID: 30196323,Corporate and Professional Subscriptions
30/03/2023,People and Places,Planning and Development Servs,132C,Tameside Metropolitan Borough Council,23/03/2023,PE148261,9306,Provision of ecological advice from Tameside Metropolitan Council (GMEU) April 22 - March 23,Consultants Fees
30/03/2023,People and Places,Cultural and Related Services,132A,Play Inclusion Project,24/03/2023,PE148306,693.96,Saturday SEND club delivery at YMCA Fleetwood (twice monthly).,External Coaching
30/03/2023,People and Places,Cultural and Related Services,132A,Play Inclusion Project,14/03/2023,PE148046,693.96,Saturday SEND club delivery at YMCA Fleetwood (twice monthly).,External Coaching
30/03/2023,People and Places,Cultural and Related Services,132A,Play Inclusion Project,14/03/2023,PE148047,693.96,Saturday SEND club delivery at YMCA Fleetwood (twice monthly).,External Coaching
30/03/2023,People and Places,Cultural and Related Services,132A,Northern Print Distribution,20/03/2023,PE148168,195,5k distribution of Whats on Guide - Marine Hall,Advertising - General
30/03/2023,People and Places,Planning and Development Servs,132C,Northern Print Distribution,21/03/2023,PE147852,550,Bags of Info for the Kids direct mail drop Fleetwood Market,Promotions - General
30/03/2023,Resources,Environmental Services,132B,D Hollowell & Sons LTD,20/03/2023,RS148118,795,REDACT,Other Rechargeable Services
30/03/2023,People and Places,"Cultural, Environ and Planning",137B,Marine Management Organisation,29/03/2023,PE148435,2567.5,BAND 3 LICENCE,Contract (New CCR)
30/03/2023,People and Places,"Cultural, Environ and Planning",137B,Marine Management Organisation,28/03/2023,PE148140,1541.75,Band 3 licence,Contract (New CCR)
30/03/2023,People and Places,Highways,133B,Dr Tree Surgeons,27/03/2023,PE148341,1620,"Quote Number: 703Quote Ref: Moorland Road1 Tree work as per Tree Survey.1,2,3 G1 ,G2,G3,4 ,G4,G5 5 & 6 .1,200.00 1,200.001 Traffic Management . 420.00 420.00Total Net Amount: 1,620.00VAT @ 20%: 324.00Quote Total: 1,944.00",Maintenance of Trees and Shrubs
30/03/2023,People and Places,Highways,133B,Dr Tree Surgeons,01/03/2023,PE147676,380,Quote Number: 681 Quote Ref: 37 Stafford AveThe removal of four trees & stump grind at Verge pop 37 StaffordAve.380.00 Total Net Amount: 380.00VAT @ 20%: 76.00Quote Total: 456.00,Maintenance of Trees and Shrubs
30/03/2023,People and Places,Support Services,135B,Dr Tree Surgeons,14/03/2023,PE148045,500,Quote Number: 687 - Quote Ref: 47 Hawthorne Ave Garstang1 The removal of two White beams.The crown li ing and trimming back of one Alder tree fromNeighbouring Property.500.00 Total Net Amount: 500.00VAT @ 20%: 100.00Quote Total: 600.0,Special Maintenance - Trees
30/03/2023,People and Places,Support Services,135B,Dr Tree Surgeons,23/03/2023,PE148270,900,"Quote Number: 718Quote Ref: Play Area Carlton The re&#8208;pollarding of two large Willow trees, play area at Carlton. 900.00 900.00Total Net Amount: 900.00VAT @ 20%: 180.00Quote Total: 1,080.00",Special Maintenance - Trees
30/03/2023,People and Places,Support Services,135B,Dr Tree Surgeons,23/03/2023,PE148271,900,"Quote Number: 705Quote Ref: Tower Close1 Tree work &#8208; To deadwood and crown lift  over footpath and deadwood .3 x man team for the day , once we have carried out the workhighlighted we will fill the rest of the day carrying out other work",Special Maintenance - Trees
30/03/2023,People and Places,Support Services,135B,Dr Tree Surgeons,01/03/2023,PE147675,650,"Quotation 542 - Rear of 19 Derby Road, PLF1 Carry out works to Ash tree and Sycamore tree encroaching onto reargarden.Sycamore&#8208; Remove large lower laterals and prune back higher canap�to blend in.Ash tree &#8208; Leaning towards garden -",Special Maintenance - Trees
30/03/2023,People and Places,Support Services,135B,Dr Tree Surgeons,27/03/2023,PE148337,1150,Quote Number: 7041 The removal of major deadwood from 1 x Mature Elm 3 x MatureSycamore .750.00 750.001 To Fell mature Sycamore to ground Level . 400.00 400.001 To Stump grind sycamore stump . 100.00 100.00** Please note if these two jobs ca,Special Maintenance - Trees
30/03/2023,People and Places,Support Services,135B,Teleshore UK LTD,08/03/2023,PE147873,950,Supply and deliver as per quote: Q11611 Rectangular panels 90`` x 18`` 475.00 per pair x 2,Materials and Consumables
30/03/2023,People and Places,Support Services,135B,Teleshore UK LTD,08/03/2023,PE147873,300,Speed braces 27`` - 39`` 60.00 each x 5,Materials and Consumables
30/03/2023,People and Places,Support Services,135B,Teleshore UK LTD,08/03/2023,PE147873,36,Black cast ratchet bar for speed brace 18.00 each x 2,Materials and Consumables
30/03/2023,People and Places,Support Services,135B,Teleshore UK LTD,08/03/2023,PE147873,67,"Carriage 67.00Delivery to Wyre Council, Copse Road Depot, Copse Road, Fleetwood, FY7 6RP.",Materials and Consumables
30/03/2023,People and Places,Cultural and Related Services,132A,Cleveleys Community Church,21/03/2023,PE148200,520,"Room hire for the gentle exercise sessions delivered by Gemma Shaw, Monday 10.30-11.30am at 20 per week from 12th September for 6 months. 520 in total.",Project Costs
30/03/2023,People and Places,Cultural and Related Services,132A,Cleveleys Community Church,21/03/2023,PE148207,480,Room hire for Creative Wellbeing project at Cleveleys Community Centre8 X weekly sessions running Thursday`s 1pm - 4pm from 2nd March -to 20th April 2023 inclusiveFee - 60 X 8 = 480,Project Costs
30/03/2023,People and Places,"Cultural, Environ and Planning",137B,Electricity North West Limited,22/03/2023,PE147986,2381,"Fleetwood Market, 36 Adelaide St, Fleetwood FY7 6AD.  Electricity Service Connection.  Quote Reference: 5500237734/B (dated 6th October 2022) FAO Paul Sutton",Contract (New CCR)
30/03/2023,People and Places,Support Services,135B,GB  Sport & Leisure UK LTD,20/03/2023,PE148116,126,SP-08-032 Sit In Spring Rider Bottom Part Seat Support Bracket,Playground Equipment
30/03/2023,People and Places,Support Services,135B,GB  Sport & Leisure UK LTD,20/03/2023,PE148116,25,Delivery,Playground Equipment
30/03/2023,People and Places,Support Services,135B,GB  Sport & Leisure UK LTD,08/03/2023,PE147738,38,SP-36-111 Monohinge Gate Post Caps - yellow,Playground Equipment
30/03/2023,People and Places,Support Services,135B,GB  Sport & Leisure UK LTD,08/03/2023,PE147738,156,"REC-SPARES 2,7m combi rope c/w M12 x 200mm long eyebolts at each end",Playground Equipment
30/03/2023,People and Places,Support Services,135B,GB  Sport & Leisure UK LTD,08/03/2023,PE147738,192,SP-08-020 Ledon Spring Handle Bar - 700mm long c/w fittings for wide elephant spring rocker,Playground Equipment
30/03/2023,People and Places,Support Services,135B,GB  Sport & Leisure UK LTD,08/03/2023,PE147738,125,IMPEX Import/Export admin Fee,Playground Equipment
30/03/2023,People and Places,Support Services,135B,GB  Sport & Leisure UK LTD,08/03/2023,PE147738,142.1,Delivery,Playground Equipment
30/03/2023,People and Places,Support Services,135B,GB  Sport & Leisure UK LTD,08/03/2023,PE147738,19,SP-43-002 Rubber Crumb - Black - Top - 25kgs,Playground Equipment
30/03/2023,People and Places,Support Services,135B,GB  Sport & Leisure UK LTD,08/03/2023,PE147738,16,SP-43-002A Rubber Crumb - Black - Base - 25kgs,Playground Equipment
30/03/2023,People and Places,Support Services,135B,GB  Sport & Leisure UK LTD,08/03/2023,PE147738,40,SP-05-032 Pendulum Seat Rubber Sleeve for 6mm Chain - 2m lengths,Playground Equipment
30/03/2023,People and Places,Support Services,135B,GB  Sport & Leisure UK LTD,08/03/2023,PE147738,270,SP-36-029 Prosafe Gate Motor Only,Playground Equipment
30/03/2023,People and Places,Support Services,135B,GB  Sport & Leisure UK LTD,08/03/2023,PE147738,565,SP-36-022A Monohinge Gate Complete Closer Set & Damper Kit - Left Hand Opens In - Gate A or D,Playground Equipment
30/03/2023,People and Places,Environmental Services,132B,Veolia ES (UK) LTD,16/03/2023,PE148079,4584.66,Bin delivery,"Provision of Bins, Boxes and Sacks"
30/03/2023,People and Places,Environmental Services,132B,Veolia ES (UK) LTD,01/03/2023,PE147668,4584.66,Bin delivery,"Provision of Bins, Boxes and Sacks"
30/03/2023,People and Places,Environmental Services,132B,Veolia ES (UK) LTD,01/03/2023,PE147668,178535.32,Domestic Waste Management Collection Contract 2022/23,Refuse Collection Contract
30/03/2023,People and Places,Environmental Services,132B,Veolia ES (UK) LTD,01/03/2023,PE147668,1664.35,Pension pass through,Refuse Collection Contract
30/03/2023,People and Places,Environmental Services,132B,Veolia ES (UK) LTD,16/03/2023,PE148079,178535.32,Domestic Waste Management Collection Contract 2022/23,Refuse Collection Contract
30/03/2023,People and Places,Environmental Services,132B,Veolia ES (UK) LTD,16/03/2023,PE148079,1472.68,Pension pass through,Refuse Collection Contract
30/03/2023,People and Places,Support Services,135B,Allstar Business Solutions LTD,22/03/2023,PE148145,43.24,Petrol 09/03/23,Petrol
30/03/2023,People and Places,Support Services,135B,Allstar Business Solutions LTD,16/03/2023,PE147740,58.87,Fuel Charges,Petrol
30/03/2023,People and Places,Support Services,135B,Allstar Business Solutions LTD,16/03/2023,PE147740,84.21,Fuel Charges,Fuel
30/03/2023,People and Places,Support Services,135B,Allstar Business Solutions LTD,22/03/2023,PE148145,167.63,Diesel 01 to 08/03/23,Fuel
30/03/2023,People and Places,Support Services,135B,Allstar Business Solutions LTD,16/03/2023,PE147740,65.42,Fuel Charges,Petrol
30/03/2023,People and Places,Support Services,135B,Allstar Business Solutions LTD,22/03/2023,PE148145,39.98,Petrol 07/03/23,Petrol
30/03/2023,People and Places,Support Services,135B,Allstar Business Solutions LTD,16/03/2023,PE147740,85.16,Fuel Charges,Petrol
30/03/2023,People and Places,Corporate and Democratic Core,131A,Critiqom LTD,28/03/2023,PE148418,10260,60k Wyre Voice Publication,Printing
30/03/2023,Resources,Central Services to the Public,131C,Critiqom LTD,17/03/2023,RS148083,1360.69,Daily Bills,Postage
30/03/2023,Resources,Central Services to the Public,131C,Critiqom LTD,17/03/2023,RS148082,329.26,Daily Bills,Postage
30/03/2023,Resources,Central Services to the Public,131C,Critiqom LTD,17/03/2023,RS148082,5.94,Daily Bills - Energy Surcharge,Postage
30/03/2023,Resources,Central Services to the Public,131C,Critiqom LTD,17/03/2023,RS148082,169.07,IQ post - Electoral,Postage
30/03/2023,Resources,Central Services to the Public,131C,Critiqom LTD,17/03/2023,RS148082,3.05,IQ post - Electoral - Energy Surcharge,Postage
30/03/2023,Resources,Support Services,135B,Critiqom LTD,17/03/2023,RS148082,1228.8,IQ post - Off Serv Admin,Postage
30/03/2023,Resources,Support Services,135B,Critiqom LTD,17/03/2023,RS148082,49.48,IQ post - Off Serv Admin - Energy Surcharge,Postage
30/03/2023,Resources,Support Services,135B,Critiqom LTD,17/03/2023,RS148083,364.49,Council Tax Reminders,Postage
30/03/2023,Resources,Support Services,135B,Critiqom LTD,17/03/2023,RS148083,18.77,NNDR Reminders,Postage
30/03/2023,Resources,Support Services,135B,Critiqom LTD,17/03/2023,RS148083,187.14,Council Tax Summons,Postage
30/03/2023,Resources,Support Services,135B,Critiqom LTD,17/03/2023,RS148083,8.02,NNDR Summons,Postage
30/03/2023,Resources,Support Services,135B,Critiqom LTD,17/03/2023,RS148082,2.13,IQ post - Recovery,Postage
30/03/2023,Resources,Support Services,135B,Critiqom LTD,17/03/2023,RS148082,0.04,IQ post - Recovery - Energy Surcharge,Postage
30/03/2023,Resources,Support Services,135B,Critiqom LTD,17/03/2023,RS148082,115.19,Ctax Reminders,Postage
30/03/2023,Resources,Support Services,135B,Critiqom LTD,17/03/2023,RS148082,2.08,Ctax Reminders - Energy Surcharge,Postage
30/03/2023,Resources,Support Services,135B,Critiqom LTD,17/03/2023,RS148082,2.96,NNDR Reminders,Postage
30/03/2023,Resources,Support Services,135B,Critiqom LTD,17/03/2023,RS148082,0.05,NNDR Reminders - Energy Surcharge,Postage
30/03/2023,Resources,Support Services,135B,Critiqom LTD,17/03/2023,RS148082,66.99,Ctax Summons,Postage
30/03/2023,Resources,Support Services,135B,Critiqom LTD,17/03/2023,RS148082,1.21,Ctax Summons - Energy Surcharge,Postage
30/03/2023,Resources,Support Services,135B,Critiqom LTD,17/03/2023,RS148082,2.32,NNDR Summons,Postage
30/03/2023,Resources,Support Services,135B,Critiqom LTD,17/03/2023,RS148082,0.04,NNDR Summons - Energy Surcharge,Postage
30/03/2023,Resources,Support Services,135B,Critiqom LTD,17/03/2023,RS148082,438.68,IQ Post - Planning,Postage
30/03/2023,Resources,Support Services,135B,Critiqom LTD,17/03/2023,RS148082,7.92,IQ Post - Planning - Energy Surcharge,Postage
30/03/2023,Resources,Housing General Fund,134A,Critiqom LTD,17/03/2023,RS148083,117.43,Benefit Notifications,Postage
30/03/2023,Resources,Housing General Fund,134A,Critiqom LTD,17/03/2023,RS148082,27.7,Benefit Notifications,Postage
30/03/2023,Resources,Housing General Fund,134A,Critiqom LTD,17/03/2023,RS148082,0.5,Benefit Notifications - Energy Surcharge,Postage
30/03/2023,Resources,Support Services,135B,Critiqom LTD,17/03/2023,RS148082,806.14,IQ post - CC,Postage
30/03/2023,Resources,Support Services,135B,Critiqom LTD,17/03/2023,RS148082,14.55,IQ post - CC - Energy Surcharge,Postage
30/03/2023,Resources,Central Services to the Public,131C,Critiqom LTD,17/03/2023,RS148082,1512.33,HSF3 Huggg DBR Letters,Household Support Fund
30/03/2023,People and Places,Central Services to the Public,131C,Critiqom LTD,29/03/2023,PE148419,600,WBC501 Technical AB,Contain Outbreak Management Fund
30/03/2023,People and Places,Central Services to the Public,131C,Critiqom LTD,29/03/2023,PE148419,1470,60k Elections A5 Wyre Voice Insert,Printing
30/03/2023,People and Places,Cultural and Related Services,132A,Carlsberg UK LTD,07/03/2023,PE147778,1812.98,Marine Hall Bar order 2/3/23,Drinks
30/03/2023,People and Places,Cultural and Related Services,132A,Carlsberg UK LTD,28/03/2023,PE148191,1439.43,Bar - Marine Hall,Drinks
30/03/2023,People and Places,Cultural and Related Services,132A,Northern Citrus Products LTD,17/03/2023,PE148100,540.06,Kiosk stock,Kiosk stock
30/03/2023,People and Places,Planning and Development Servs,132C,Terence Barker LTD,22/03/2023,PE148122,275,"Carry out Silver Service on pump, Copse Road Depot, Fleetwood",Maintenance of Tools or Equipment
30/03/2023,People and Places,Support Services,135B,Terence Barker LTD,27/03/2023,PE148343,386.1,Fuel fobs,Vehicle Tracking System
30/03/2023,People and Places,Cultural and Related Services,132A,Tina Warren,23/03/2023,PE148264,675,Fee for 3 X Art Buffet Sessions at Market House Studios - 225 per sessionTotal payable = 675,Project Costs
30/03/2023,People and Places,Cultural and Related Services,132A,Tina Warren,23/03/2023,PE148265,1320,Payment for creative sessions at Cleveleys Community Centre as part of the Creative Wellbeing project starting 2nd March 2023,Project Costs
30/03/2023,Resources,Central Services to the Public,131C,Print Image Facilities LLP,20/03/2023,RS148172,3669.8,Wyre 2023 Poll Card postage - Balance of first issue  7875 poll cards,Postage
30/03/2023,Resources,Central Services to the Public,131C,Print Image Facilities LLP,13/03/2023,RS147982,35321.09,"Wyre Council Elections 2023 Poll Card Postage - 78,144 poll cards  90% of overall postage",Postage
30/03/2023,People and Places,Environmental Services,132B,Everglades Nurseries TD,01/03/2023,PE147660,578.8,Document Number 168180Date:10/10/2022Acc No: W05TreesQuercus ilex 8-10 cm x 3 108.00 = 324.00Ulmus Lutece 8/10cm Girth x5 42.00 = 210.00SundriesTree Stakes 3 Inch 3 Inch x8 4.25 = 34.00Tree Ties 8 1.35 x8 =  10.80All deli,Maintenance of Trees and Shrubs
30/03/2023,People and Places,Support Services,135B,Everglades Nurseries TD,15/03/2023,PE147661,468,6 January 2023 tree planting quotation (provided via e-mail and follow up call with Scott)x1 prunus serenata shirotae 8-10 girth 54.00 x3 rowan 8-10 girth only pot grown 40.00x5 Quercus petrea 8-10 girth 48.00x9 three inch diameter stakes 4.50,Materials and Consumables
30/03/2023,People and Places,"Cultural, Environ and Planning",137B,KEYSTONE DESIGN LTD,29/03/2023,PE148462,8700,"To David Hadwin,Keystone Design Associated Ltd,Development House,261 Church Street,Blackpool.FY1 3PB.Carry out precondition surveys along the permanent works frontage for the Wyre Beach Management Scheme.100 per property, 750 block of",Consultants Fees (New CCR)
30/03/2023,People and Places,"Cultural, Environ and Planning",137B,KEYSTONE DESIGN LTD,22/03/2023,PE148216,750,Building survey of Morvern Care Home,Consultants Fees (New CCR)
30/03/2023,People and Places,"Cultural, Environ and Planning",137B,KEYSTONE DESIGN LTD,22/03/2023,PE148213,7900,"To David Hadwin, Keystone Design Associated Ltd, Development House, 261 Church Street, Blackpool. FY1 3PB.  Carry out precondition surveys along the delivery route for the Wyre Beach Management Scheme as per quote emailed 12/01/23.  100 per property, 75",Consultants Fees (New CCR)
30/03/2023,People and Places,Cultural and Related Services,132A,Fleetwood Town Community Trust,28/03/2023,PE148372,1000,Training for staff to deliver activity sessions for older people,Project Costs
30/03/2023,People and Places,Cultural and Related Services,132A,Fleetwood Town Community Trust,06/03/2023,PE147768,7390,"TRY Sport delivery quarter 3, (October - December 2022)",External Coaching
30/03/2023,People and Places,Cultural and Related Services,132A,Fleetwood Town Community Trust,28/03/2023,PE148371,7390,TRY Sport quarter 4 - jan - march 2023,External Coaching
30/03/2023,People and Places,Support Services,135B,Cheshire Turf Machinery LTD,27/03/2023,PE148345,2831.66,HUSQ BAT B/PACK BLOWER 1 NS 405.00 405.00HQ520IHD70 HUSQVARNA BAT H/CUTTER 1 NS 330.00 330.00HQBLI950X HUSQ BATTERY B/PACK 1 NS 860.00 860.00HQBLI200X HUSQVARNA 36V BATTERY 2 NS 155.00 310.00HQLC551IV HUSQVARNA 51CM BAT MOW 1 NS 885.00 885.00HQ5,Purchase of Tools or Equipment
30/03/2023,People and Places,Support Services,135B,M D Security,30/03/2023,PE148497,60,Civic Centre: Scope out detection for rooms with door gards fitted,Alarm Systems and Security - Responsive
30/03/2023,People and Places,Support Services,135B,M D Security,27/03/2023,PE148322,90,Civic Centre: replace exit sign adjacent room 131,Alarm Systems and Security - Responsive
30/03/2023,People and Places,Support Services,135B,M D Security,27/03/2023,PE148324,93.88,Civic Annex: Replaced call point device 22 due to fault,Alarm Systems and Security - Responsive
30/03/2023,People and Places,Support Services,135B,M D Security,27/03/2023,PE148323,90,civic Centre: to replace exit sign adjacent toom 119,Alarm Systems and Security - Responsive
30/03/2023,People and Places,Environmental Services,132B,M D Security,20/03/2023,PE147893,70,Replaced Zone 2 workshop shutter junction box at Chatsworth Depot,Alarm Systems and Security - Responsive
30/03/2023,People and Places,Planning and Development Servs,132C,M D Security,27/03/2023,PE148325,60,Copse Rd Depot: Callout  22/2/23. Fault on alarm reset shutter sweeper shead tested fine,Responsive Building Maintenance
30/03/2023,People and Places,Cultural and Related Services,132A,M D Security,27/03/2023,PE148304,50,Rossall Tower - attended site on 27/10/22. CCTV vandalised found wood panel on the back to be removed and exposed cables. Tuck them higher up the wood panel,CCTV Running Costs
30/03/2023,People and Places,Environmental Services,132B,M D Security,27/03/2023,PE148336,250,"CCTV 6 Monthly Service May 2022 Chatsworth Depot, Fleetwood",CCTV Running Costs
30/03/2023,People and Places,Planning and Development Servs,132C,M D Security,02/03/2023,PE147642,1063.33,Fleetwood Office: Repair to PC motherboard due to water ingression. New Windows 10 Pro licence due to hardware change.  Revisit to put new Windows key in,Maintenance of Tools or Equipment
30/03/2023,People and Places,Support Services,135B,M D Security,22/03/2023,PE148206,60,Civic Centre: Emergency light test for 03/23,Planned Building Maintenance
30/03/2023,People and Places,Support Services,135B,M D Security,02/03/2023,PE147600,60,Civic Centre: Emergency light test for 02/23,Planned Building Maintenance
30/03/2023,People and Places,Planning and Development Servs,132C,M D Security,30/03/2023,PE148381,250,Bi-annual CCTV service Copse Road Depot  Service every 6-months,CCTV Running Costs
30/03/2023,People and Places,Planning and Development Servs,132C,M D Security,29/03/2023,PE148382,250,Bi-annual CCTV service Copse Road Depot  Service every 6-months,CCTV Running Costs
30/03/2023,People and Places,Planning and Development Servs,132C,M D Security,01/03/2023,PE147641,90,Fleetwood Market: Moved CCTV PC into Julian`s office and set up.  Moved cctv PC omtp <arket Supervisor office and set up. Found dault on PC removed from site to repair,Alarm Systems and Security - Responsive
30/03/2023,People and Places,Planning and Development Servs,132C,M D Security,27/03/2023,PE148305,50,Fleetwood Market Studios staff training on cctv 15/11/22,Alarm Systems and Security - Responsive
30/03/2023,People and Places,Planning and Development Servs,132C,M D Security,27/03/2023,PE148291,60,Rossall Tower: Callout to fault on side door. Cleaned plates and re-greased setup and left working,Alarm Systems and Security - Responsive
30/03/2023,Resources,Central Services to the Public,131C,Inform CPI,08/03/2023,RS147875,7500,Analyse Local - ForecastingRV FinderAnalyse & Localise 2023,Consultants Fees
30/03/2023,Resources,Central Services to the Public,131C,Inform CPI,27/03/2023,RS148298,450,"Unit 27 Freeport Shopping Village, Anchorage Rd, Fleetwood & Midwood Caravan Park, Head Dyke Lane, Pilling",Consultants Fees
30/03/2023,Resources,Central Services to the Public,131C,Inform CPI,10/03/2023,RS147817,10,"Part Plot 5 Main Ave, Burn Hall Ind Est, Fleetwood, FY7 8FR (BA Ref: N00160750016011)",Consultants Fees
30/03/2023,Resources,Central Services to the Public,131C,Inform CPI,13/03/2023,RS147981,640,"Hutchsion 3G (WYR14970) Fleetwood Roundabout, FY7 8JX (BA REf N00120330489023)",Consultants Fees
30/03/2023,People and Places,Support Services,135B,Walkers Nurseries & Plant Centre,08/03/2023,PE147847,765,Supply White Garden Mum Remembrance day/sunday - Delivery on the 10th November in the morning Supply Annual 180 pre hardened white Crysanths Quotation 180 White Garden Mums in 15cm pots 4.25 each 765 total including delivery but excluding VAT,Materials and Consumables
30/03/2023,People and Places,Cultural and Related Services,132A,Steve Tuckey Cycles,29/03/2023,PE148461,681,Annual maintenance of `Social Ride` bicycles,Maintenance of Tools or Equipment
30/03/2023,People and Places,Cultural and Related Services,132A,Steve Tuckey Cycles,23/03/2023,PE148263,880.5,Annual maintenance for Wyre Wheels bikes.,Maintenance of Tools or Equipment
30/03/2023,People and Places,"Cultural, Environ and Planning",137B,Wyre Rivers Trust,24/03/2023,PE148327,8000,Eco-COBS Arm Hill Site Project management 2022/23,Consultants Fees (New CCR)
30/03/2023,People and Places,Environmental Services,132B,N Power LTD,08/03/2023,PE147761,0.33,Electricity Charges for the period 01/02/23-28/02/23,Electricity
30/03/2023,People and Places,Environmental Services,132B,N Power LTD,08/03/2023,PE147760,209.95,Electricity charges for the period 01/02/23-28/02/23,Electricity
30/03/2023,People and Places,Parking Services,133F,N Power LTD,08/03/2023,PE147761,1.82,Electricity Charges for the period 01/02/23-28/02/23,Electricity
30/03/2023,People and Places,Parking Services,133F,N Power LTD,08/03/2023,PE147762,286.05,Electricity chrges for the period 01/02/23-28/02/23,Electricity
30/03/2023,People and Places,Parking Services,133F,N Power LTD,08/03/2023,PE147760,1177.46,Electricity charges for the period 01/02/23-28/02/23,Electricity
30/03/2023,People and Places,Environmental Services,132B,N Power LTD,06/03/2023,PE147759,0.53,Town Centre CCTV Cameras Unmetered Supply,CCTV Running Costs
30/03/2023,People and Places,Environmental Services,132B,N Power LTD,06/03/2023,PE147759,7.99,Town Centre CCTV Cameras Unmetered Supply,CCTV Running Costs
30/03/2023,People and Places,Environmental Services,132B,N Power LTD,06/03/2023,PE147759,49.47,Town Centre CCTV Cameras Unmetered Supply,CCTV Running Costs
30/03/2023,People and Places,Environmental Services,132B,N Power LTD,06/03/2023,PE147759,1.6,Town Centre CCTV Cameras Unmetered Supply,CCTV Running Costs
30/03/2023,People and Places,Environmental Services,132B,N Power LTD,06/03/2023,PE147759,2.7,Town Centre CCTV Cameras Unmetered Supply,CCTV Running Costs
30/03/2023,People and Places,Environmental Services,132B,N Power LTD,06/03/2023,PE147759,73.93,Town Centre CCTV Cameras Unmetered Supply,CCTV Running Costs
30/03/2023,People and Places,Current Assets,130B,Standard Fuel Oils,22/03/2023,PE148180,43800.08,"SUPPLY DIESEL TO COPSE ROAD DEPOT, FLEETWOOD  36005 LTRS 121.65 PPL  16/3/23",Stock - Copse Road Fuel
30/03/2023,People and Places,Support Services,135B,Steve Wear Blinds,06/03/2023,PE147756,250,Vertical Blinds fitted in room 34,Purchase Furniture
30/03/2023,People and Places,Support Services,135B,Steve Wear Blinds,06/03/2023,PE147755,190,Vertical Blinds fitted in room 61/62,Purchase Furniture
30/03/2023,People and Places,Support Services,135B,Steve Wear Blinds,29/03/2023,PE147757,494,Vertical Blinds fitted in room 74,Comp Hardware Purchases
30/03/2023,People and Places,Support Services,135B,Steve Wear Blinds,06/03/2023,PE147754,110,Vertical Blinds fitted in room 143,Purchase Furniture
30/03/2023,People and Places,Cultural and Related Services,132A,L W C Drinks LTD,29/03/2023,PE148446,687.95,Bar - Marine Hall,Drinks
30/03/2023,People and Places,Cultural and Related Services,132A,L W C Drinks LTD,03/03/2023,PE147716,1806.03,Marine Hall Bar,Drinks
30/03/2023,People and Places,Environmental Services,132B,CTS Traffic And Transportation  LTD,21/03/2023,PE148142,2005,"Wyre Council unmet demand survey starting around March 2022. 12,500 + VAT",Taxi Unmet Demand Study
30/03/2023,People and Places,Environmental Services,132B,CTS Traffic And Transportation  LTD,21/03/2023,PE148142,995,WAV and adapted vehicles 995 + VAT,Taxi Unmet Demand Study
30/03/2023,People and Places,Environmental Services,132B,CTS Traffic And Transportation  LTD,21/03/2023,PE148142,750,The industry structure review 750 + VAT,Taxi Unmet Demand Study
30/03/2023,Resources,Housing General Fund,134A,Mobility Care Services,29/03/2023,RS148432,287,REDACT,Minor Adaptations
30/03/2023,Resources,Housing General Fund,134A,Mobility Care Services,29/03/2023,RS148352,287,REDACT,Minor Adaptations
30/03/2023,Resources,Housing General Fund,134A,Mobility Care Services,29/03/2023,RS148434,66,REDACT,Minor Adaptations
30/03/2023,Resources,Housing General Fund,134A,Mobility Care Services,29/03/2023,RS148433,287,REDACT,Minor Adaptations
30/03/2023,Resources,Housing General Fund,134A,Mobility Care Services,07/03/2023,RS147821,480,REDACT,Minor Adaptations
30/03/2023,Resources,Housing General Fund,134A,Mobility Care Services,07/03/2023,RS147823,308,REDACT,Minor Adaptations
30/03/2023,Resources,Housing General Fund,134A,Mobility Care Services,07/03/2023,RS147822,520,REDACT,Minor Adaptations
30/03/2023,Resources,Housing General Fund,134A,Mobility Care Services,07/03/2023,RS147824,465,REDACT,Minor Adaptations
30/03/2023,Resources,Housing General Fund,134A,Mobility Care Services,13/03/2023,RS148012,680,REDACT,Minor Adaptations
30/03/2023,People and Places,Environmental Services,132B,Calico Enterprise,16/03/2023,PE148059,2250,Bulky Matters Contract Calico 2022/23,Refuse Collection Contract
30/03/2023,People and Places,Environmental Services,132B,Calico Enterprise,21/03/2023,PE148113,2335.97,Bulky Matters Contract Calico 2022/23,Refuse Collection Contract
30/03/2023,People and Places,Environmental Services,132B,Calico Enterprise,16/03/2023,PE148057,2250,Bulky Matters Contract Calico 2022/23,Refuse Collection Contract
30/03/2023,People and Places,Environmental Services,132B,Calico Enterprise,16/03/2023,PE148064,2433.3,Bulky Matters Contract Calico 2022/23,Refuse Collection Contract
30/03/2023,People and Places,Environmental Services,132B,Calico Enterprise,16/03/2023,PE148063,1946.64,Bulky Matters Contract Calico 2022/23,Refuse Collection Contract
30/03/2023,People and Places,Environmental Services,132B,Calico Enterprise,16/03/2023,PE148062,10462.89,Bulky Matters Contract Calico 2022/23,Refuse Collection Contract
30/03/2023,People and Places,Environmental Services,132B,Calico Enterprise,16/03/2023,PE148062,2250,Bulky Matters Contract Calico 2022/23,Refuse Collection Contract
30/03/2023,People and Places,Environmental Services,132B,Calico Enterprise,16/03/2023,PE148061,1849.33,Bulky Matters Contract Calico 2022/23,Refuse Collection Contract
30/03/2023,People and Places,Environmental Services,132B,Calico Enterprise,16/03/2023,PE148057,10462.89,Bulky Matters Contract Calico 2022/23,Refuse Collection Contract
30/03/2023,People and Places,Environmental Services,132B,Calico Enterprise,16/03/2023,PE148065,10462.89,Bulky Matters Contract Calico 2022/23,Refuse Collection Contract
30/03/2023,People and Places,Environmental Services,132B,Calico Enterprise,16/03/2023,PE148065,2250,Bulky Matters Contract Calico 2022/23,Refuse Collection Contract
30/03/2023,People and Places,Environmental Services,132B,Calico Enterprise,16/03/2023,PE148067,1946.64,Bulky Matters Contract Calico 2022/23,Refuse Collection Contract
30/03/2023,People and Places,Environmental Services,132B,Calico Enterprise,16/03/2023,PE148058,1946.64,Bulky Matters Contract Calico 2022/23,Refuse Collection Contract
30/03/2023,People and Places,Environmental Services,132B,Calico Enterprise,16/03/2023,PE148060,1946.64,Bulky Matters Contract Calico 2022/23,Refuse Collection Contract
30/03/2023,People and Places,Environmental Services,132B,Calico Enterprise,16/03/2023,PE148059,10462.89,Bulky Matters Contract Calico 2022/23,Refuse Collection Contract
30/03/2023,People and Places,Environmental Services,132B,3D Environmental LTD,21/03/2023,PE148179,949.21,"Re: 63 Duddon Avenue, Fleetwood  To remove the large amount of miscellaneous general waste (including POP and mattresses where necessary) from the external areas of the property, as discussed  ,ESTIMATE - 900",Boarding Up Premises/House Clearance
30/03/2023,People and Places,Environmental Services,132B,Poulton Pets LTD,21/03/2023,PE147983,1475.7,Provision of stray dog kennel service 2022/23,Impounded Dogs Costs
30/03/2023,People and Places,Highways,133B,Greens Environmental LTD,21/03/2023,PE148109,450,"1Estimate for removal of waste based on 10,000L at 15 per 1000L.150  TOTAL:1950.00",Maint. of Unadopted Assets - Engineers
30/03/2023,People and Places,Highways,133B,Greens Environmental LTD,21/03/2023,PE148109,1050,1The full day provision of a jet vac and men for the following works:  - Remove all contaminated water from the fountain chamber until empty. - Remove all silt and contaminated waste from the silt trap until empty. - Enter chamber at Cleveleys water feat,Maint. of Unadopted Assets - Engineers
30/03/2023,People and Places,Highways,133B,Greens Environmental LTD,17/03/2023,PE148096,750,"1Critical works to the caf� cove fountain overflow and surrounding area:The half day provision of a jet vac and 2 men for Monday afternoon 27/02/23.Investigate, jet, clean and remove all surface blockages from the fountain vicinity as agreed with K",Maint. of Unadopted Assets - Engineers
30/03/2023,People and Places,Cultural and Related Services,132A,Greens Environmental LTD,23/03/2023,PE148209,12090,Due to pumps failure - carry out regular uplifts to chamber situated between Marine Hall and YMCA Fleetwood.  All as per your estimate (500.00 plus vat - tanker hire and 15.00 per 1000 litres removed) - rolling order until pumps are repaired and re-instat,Responsive Building Maintenance
30/03/2023,People and Places,Cultural and Related Services,132A,Greens Environmental LTD,23/03/2023,PE148208,15180,Due to pumps failure - carry out regular uplifts to chamber situated between Marine Hall and YMCA Fleetwood.  All as per your estimate (500.00 plus vat - tanker hire and 15.00 per 1000 litres removed) - rolling order until pumps are repaired and re-instat,Responsive Building Maintenance
30/03/2023,People and Places,Support Services,135B,Greens Environmental LTD,06/03/2023,PE147758,50,"Empty, carry out clean and service the chemical toilet at Preesall Cemetery, Preesall30 per visit Code to gain access to the toilet is 1907located to the rear of the chapelContact Gareth Bates on 07732399499 if you are having a problem with acces",Maintenance of Tools or Equipment
30/03/2023,People and Places,Cultural and Related Services,132A,John Wilson Productions Ltd,22/03/2023,PE148080,5600,Upbeat Beatles 03/03/23 ticket sales,Refund of Ticket Sales to Ext Promoters
30/03/2023,People and Places,Cultural and Related Services,132A,John Wilson Productions Ltd,21/03/2023,PE148081,5038.34,Bon Jovi experience 04/03/23 ticket sales,Refund of Ticket Sales to Ext Promoters
30/03/2023,Resources,Corporate and Democratic Core,131A,Cabinet Office National Fraud Initiative,29/03/2023,RS148450,2535,NFI 2022/23 National Exercise,National Fraud Initiative
30/03/2023,People and Places,Environmental Services,132B,Gillivervet LTD,30/03/2023,PE148509,273.83,4 x Horse riding centre inspections as per invoice dated 1st March 2023,Veterinary Fees
30/03/2023,People and Places,Environmental Services,132B,Gillivervet LTD,30/03/2023,PE148508,367.13,4 x Horse riding centre inspections as per invoice dated 1st March 2023,Veterinary Fees
30/03/2023,People and Places,Environmental Services,132B,Gillivervet LTD,30/03/2023,PE148507,407.16,4 x Horse riding centre inspections as per invoice dated 1st March 2023,Veterinary Fees
30/03/2023,People and Places,Environmental Services,132B,Gillivervet LTD,30/03/2023,PE148506,107.16,4 x Horse riding centre inspections as per invoice dated 1st March 2023,Veterinary Fees
30/03/2023,Resources,Support Services,135B,European Electronique LTD,27/03/2023,RS148353,46617.56,"x2 GUARDiAN Appliances (Small Spec) : 20TB Front End Capacity: 5 Years(60 Months) Support, Installation & Project Management Included :",Disaster Recovery
30/03/2023,Resources,Support Services,135B,PSTAX Consulting Limited,16/03/2023,RS148087,3350,PSTAX Club Membership 2023/24,Corporate and Professional Subscriptions
30/03/2023,Resources,Support Services,135B,PSTAX Consulting Limited,29/03/2023,RS148459,420,Introduction to VAT Part 1 and 2,Training - Non HR Controlled
30/03/2023,People and Places,Cultural and Related Services,132A,NEWSQUEST MEDIA GROUP,30/03/2023,PE147711,825,1x full page in March edition of Lancashire Life to promote Garstang Walking Festival,Advertising - General
30/03/2023,Resources,Support Services,135B,LG FUTURES LTD,06/03/2023,RS147704,7645,Collection Fund Suite - 2023/24,Corporate and Professional Subscriptions
30/03/2023,Resources,"Cultural, Environ and Planning",137B,Vivid Resourcing Ltd,15/03/2023,RS147710,8160,Fleetwood Market Project - Steve Solsby time,Contract (New CCR)
30/03/2023,People and Places,Cultural and Related Services,132A,WATER PLUS LTD,28/03/2023,PE148355,-2820.91,"Highway Drainage Marine Hall, The Esplanade, FLEETWOOD, FY7 6HF",Surface Water/Highway Drainage
30/03/2023,People and Places,Cultural and Related Services,132A,WATER PLUS LTD,28/03/2023,PE147510,2109.95,Highway Drainage,Surface Water/Highway Drainage
30/03/2023,People and Places,Cultural and Related Services,132A,WATER PLUS LTD,28/03/2023,PE146745,688.03,Water/Wastewater Charges for the period 10 September 2022 - 10 December 2068,Surface Water/Highway Drainage
30/03/2023,People and Places,Cultural and Related Services,132A,WATER PLUS LTD,28/03/2023,PE147510,162.68,Highway Drainage,Surface Water/Highway Drainage
30/03/2023,People and Places,Cultural and Related Services,132A,WATER PLUS LTD,28/03/2023,PE146749,162.68,Water/Wastwater Charges for the period 10 August 2021 to 10 January 2023,Surface Water/Highway Drainage
30/03/2023,People and Places,Cultural and Related Services,132A,WATER PLUS LTD,28/03/2023,PE146745,157.43,Water/Wastewater Charges for the period 10 September 2022 - 10 December 2074,Surface Water/Highway Drainage
30/03/2023,People and Places,Cultural and Related Services,132A,WATER PLUS LTD,27/03/2023,PE143847,169.82,Water/waste water charges,Surface Water/Highway Drainage
30/03/2023,People and Places,Cultural and Related Services,132A,WATER PLUS LTD,27/03/2023,PE146744,162.68,Water/Wastewater Charges for the period 10 September 2022 - 10 November  2022,Surface Water/Highway Drainage
30/03/2023,People and Places,Cultural and Related Services,132A,WATER PLUS LTD,27/03/2023,PE145322,622.01,Water/Wastewater charges,Surface Water/Highway Drainage
30/03/2023,People and Places,Cultural and Related Services,132A,WATER PLUS LTD,27/03/2023,PE143848,169.82,Water/waste Water Charges,Surface Water/Highway Drainage
30/03/2023,People and Places,Environmental Services,132B,WATER PLUS LTD,27/03/2023,PE146744,12.03,Water/Wastewater Charges for the period 10 September 2022 - 10 November  2022,Surface Water/Highway Drainage
30/03/2023,People and Places,Environmental Services,132B,WATER PLUS LTD,27/03/2023,PE143848,15.6,Water/waste Water Charges,Surface Water/Highway Drainage
30/03/2023,People and Places,Environmental Services,132B,WATER PLUS LTD,27/03/2023,PE145322,15.09,Water/Wastewater charges,Surface Water/Highway Drainage
30/03/2023,People and Places,Environmental Services,132B,WATER PLUS LTD,27/03/2023,PE145322,149.24,Water/Wastewater charges,Surface Water/Highway Drainage
30/03/2023,People and Places,Environmental Services,132B,WATER PLUS LTD,27/03/2023,PE143848,154.22,Water/waste Water Charges,Surface Water/Highway Drainage
30/03/2023,People and Places,Environmental Services,132B,WATER PLUS LTD,27/03/2023,PE146744,150.65,Water/Wastewater Charges for the period 10 September 2022 - 10 November  2022,Surface Water/Highway Drainage
30/03/2023,People and Places,Environmental Services,132B,WATER PLUS LTD,27/03/2023,PE143847,154.22,Water/waste water charges,Surface Water/Highway Drainage
30/03/2023,People and Places,Environmental Services,132B,WATER PLUS LTD,28/03/2023,PE147510,150.65,Highway Drainage,Surface Water/Highway Drainage
30/03/2023,People and Places,Environmental Services,132B,WATER PLUS LTD,28/03/2023,PE146749,150.65,Water/Wastwater Charges for the period 10 August 2021 to 10 January 2023,Surface Water/Highway Drainage
30/03/2023,People and Places,Environmental Services,132B,WATER PLUS LTD,28/03/2023,PE146745,145.79,Water/Wastewater Charges for the period 10 September 2022 - 10 December 2078,Surface Water/Highway Drainage
30/03/2023,People and Places,Environmental Services,132B,WATER PLUS LTD,28/03/2023,PE146749,341.24,Water/Wastwater Charges for the period 10 August 2021 to 10 January 2023,Surface Water/Highway Drainage
30/03/2023,People and Places,Cultural and Related Services,132A,WATER PLUS LTD,27/03/2023,PE143848,714.53,Water/waste Water Charges,Surface Water/Highway Drainage
30/03/2023,People and Places,Cultural and Related Services,132A,WATER PLUS LTD,27/03/2023,PE146744,710.96,Water/Wastewater Charges for the period 10 September 2022 - 10 November  2022,Surface Water/Highway Drainage
30/03/2023,People and Places,Cultural and Related Services,132A,WATER PLUS LTD,27/03/2023,PE143847,714.53,Water/waste water charges,Surface Water/Highway Drainage
30/03/2023,People and Places,Cultural and Related Services,132A,WATER PLUS LTD,27/03/2023,PE145322,691.48,Water/Wastewater charges,Surface Water/Highway Drainage
30/03/2023,People and Places,Cultural and Related Services,132A,WATER PLUS LTD,28/03/2023,PE147508,-688.03,"Marine Hall, The Esplanade, FLEETWOOD, FY7 6HF Highway Drainage 10-11-2022 to 10-12-2022",Surface Water/Highway Drainage
30/03/2023,People and Places,Cultural and Related Services,132A,WATER PLUS LTD,27/03/2023,PE145322,3.02,Water/Wastewater charges,Water Charges-Metered
30/03/2023,People and Places,Cultural and Related Services,132A,WATER PLUS LTD,27/03/2023,PE145322,1.83,Water/Wastewater charges,Water Charges-Metered
30/03/2023,People and Places,Cultural and Related Services,132A,WATER PLUS LTD,27/03/2023,PE143848,7.95,Water/waste Water Charges,Water Charges-Metered
30/03/2023,People and Places,Cultural and Related Services,132A,WATER PLUS LTD,27/03/2023,PE143848,3.78,Water/waste Water Charges,Water Charges-Metered
30/03/2023,People and Places,Cultural and Related Services,132A,WATER PLUS LTD,27/03/2023,PE146744,6.55,Water/Wastewater Charges for the period 10 September 2022 - 10 November  2022,Water Charges-Metered
30/03/2023,People and Places,Cultural and Related Services,132A,WATER PLUS LTD,27/03/2023,PE146744,1.89,Water/Wastewater Charges for the period 10 September 2022 - 10 November  2022,Water Charges-Metered
30/03/2023,People and Places,Cultural and Related Services,132A,WATER PLUS LTD,27/03/2023,PE143847,6.55,Water/waste water charges,Water Charges-Metered
30/03/2023,People and Places,Cultural and Related Services,132A,WATER PLUS LTD,27/03/2023,PE143847,1.89,Water/waste water charges,Water Charges-Metered
30/03/2023,People and Places,Cultural and Related Services,132A,WATER PLUS LTD,27/03/2023,PE144621,6.24,water/wastewater charges,Water Charges-Metered
30/03/2023,People and Places,Cultural and Related Services,132A,WATER PLUS LTD,27/03/2023,PE144621,3.78,water/wastewater charges,Water Charges-Metered
30/03/2023,People and Places,Cultural and Related Services,132A,WATER PLUS LTD,28/03/2023,PE146745,16.42,Water/Wastewater Charges for the period 10 September 2022 - 10 December 2037,Water Charges-Metered
30/03/2023,People and Places,Cultural and Related Services,132A,WATER PLUS LTD,28/03/2023,PE147510,6.55,Water Charge,Water Charges-Metered
30/03/2023,People and Places,Cultural and Related Services,132A,WATER PLUS LTD,28/03/2023,PE147510,1.89,Water Standing Charge,Water Charges-Metered
30/03/2023,People and Places,Cultural and Related Services,132A,WATER PLUS LTD,28/03/2023,PE146749,6.72,Water/Wastwater Charges for the period 10 August 2021 to 10 January 2023,Water Charges-Metered
30/03/2023,People and Places,Environmental Services,132B,WATER PLUS LTD,27/03/2023,PE143848,19.17,Water/waste Water Charges,Surface Water/Highway Drainage
30/03/2023,People and Places,Environmental Services,132B,WATER PLUS LTD,27/03/2023,PE145322,18.54,Water/Wastewater charges,Surface Water/Highway Drainage
30/03/2023,People and Places,Environmental Services,132B,WATER PLUS LTD,27/03/2023,PE143847,19.17,Water/waste water charges,Surface Water/Highway Drainage
30/03/2023,People and Places,Environmental Services,132B,WATER PLUS LTD,27/03/2023,PE146744,12.03,Water/Wastewater Charges for the period 10 September 2022 - 10 November  2022,Surface Water/Highway Drainage
30/03/2023,People and Places,Environmental Services,132B,WATER PLUS LTD,28/03/2023,PE146749,12.03,Water/Wastwater Charges for the period 10 August 2021 to 10 January 2023,Surface Water/Highway Drainage
30/03/2023,People and Places,Environmental Services,132B,WATER PLUS LTD,28/03/2023,PE146745,11.64,Water/Wastewater Charges for the period 10 September 2022 - 10 December 2076,Surface Water/Highway Drainage
30/03/2023,People and Places,Environmental Services,132B,WATER PLUS LTD,28/03/2023,PE147510,12.03,Highway Drainage,Surface Water/Highway Drainage
30/03/2023,People and Places,Environmental Services,132B,WATER PLUS LTD,28/03/2023,PE146749,12.03,Water/Wastwater Charges for the period 10 August 2021 to 10 January 2023,Surface Water/Highway Drainage
30/03/2023,People and Places,Environmental Services,132B,WATER PLUS LTD,28/03/2023,PE146745,11.64,Water/Wastewater Charges for the period 10 September 2022 - 10 December 2077,Surface Water/Highway Drainage
30/03/2023,People and Places,Environmental Services,132B,WATER PLUS LTD,28/03/2023,PE147510,12.03,Highway Drainage,Surface Water/Highway Drainage
30/03/2023,People and Places,Environmental Services,132B,WATER PLUS LTD,27/03/2023,PE143847,15.6,Water/waste water charges,Surface Water/Highway Drainage
30/03/2023,People and Places,Cultural and Related Services,132A,WATER PLUS LTD,27/03/2023,PE145322,10.59,Water/Wastewater charges,Surface Water/Highway Drainage
30/03/2023,People and Places,Cultural and Related Services,132A,WATER PLUS LTD,27/03/2023,PE143847,3.57,Water/waste water charges,Surface Water/Highway Drainage
30/03/2023,People and Places,Cultural and Related Services,132A,WATER PLUS LTD,27/03/2023,PE143848,10.71,Water/waste Water Charges,Surface Water/Highway Drainage
30/03/2023,People and Places,Cultural and Related Services,132A,WATER PLUS LTD,27/03/2023,PE145322,3.45,Water/Wastewater charges,Surface Water/Highway Drainage
30/03/2023,People and Places,Cultural and Related Services,132A,WATER PLUS LTD,27/03/2023,PE143847,3.57,Water/waste water charges,Surface Water/Highway Drainage
30/03/2023,People and Places,Cultural and Related Services,132A,WATER PLUS LTD,27/03/2023,PE143848,3.57,Water/waste Water Charges,Surface Water/Highway Drainage
30/03/2023,People and Places,Cultural and Related Services,132A,WATER PLUS LTD,10/03/2023,PE147878,42.22,"The New Wave, North Prom, Thornton-Cleveleys 01/04/23 to 31/03/24",Surface Water/Highway Drainage
30/03/2023,People and Places,Planning and Development Servs,132C,WATER PLUS LTD,28/03/2023,PE147510,36.09,Highway Drainage,Surface Water/Highway Drainage
30/03/2023,People and Places,Environmental Services,132B,WATER PLUS LTD,28/03/2023,PE147510,7.08,Sewerage Charge,Sewerage
30/03/2023,People and Places,Environmental Services,132B,WATER PLUS LTD,28/03/2023,PE146745,6.96,Water/Wastewater Charges for the period 10 September 2022 - 10 December 2062,Sewerage
30/03/2023,People and Places,Environmental Services,132B,WATER PLUS LTD,28/03/2023,PE146749,7.08,Water/Wastwater Charges for the period 10 August 2021 to 10 January 2023,Sewerage
30/03/2023,People and Places,Environmental Services,132B,WATER PLUS LTD,27/03/2023,PE145322,14.05,Water/Wastewater charges,Sewerage
30/03/2023,People and Places,Environmental Services,132B,WATER PLUS LTD,27/03/2023,PE143847,3.51,Water/waste water charges,Sewerage
30/03/2023,People and Places,Environmental Services,132B,WATER PLUS LTD,27/03/2023,PE143848,3.51,Water/waste Water Charges,Sewerage
30/03/2023,People and Places,Environmental Services,132B,WATER PLUS LTD,27/03/2023,PE146744,7.08,Water/Wastewater Charges for the period 10 September 2022 - 10 November  2022,Sewerage
30/03/2023,People and Places,Cultural and Related Services,132A,WATER PLUS LTD,27/03/2023,PE143847,318.67,Water/waste water charges,Surface Water/Highway Drainage
30/03/2023,People and Places,Cultural and Related Services,132A,WATER PLUS LTD,27/03/2023,PE143848,318.67,Water/waste Water Charges,Surface Water/Highway Drainage
30/03/2023,People and Places,Cultural and Related Services,132A,WATER PLUS LTD,27/03/2023,PE145322,308.39,Water/Wastewater charges,Surface Water/Highway Drainage
30/03/2023,People and Places,Planning and Development Servs,132C,WATER PLUS LTD,27/03/2023,PE145322,6.9,Water/Wastewater charges,Surface Water/Highway Drainage
30/03/2023,People and Places,Planning and Development Servs,132C,WATER PLUS LTD,27/03/2023,PE143848,7.14,Water/waste Water Charges,Surface Water/Highway Drainage
30/03/2023,People and Places,Planning and Development Servs,132C,WATER PLUS LTD,27/03/2023,PE143847,7.14,Water/waste water charges,Surface Water/Highway Drainage
30/03/2023,People and Places,Planning and Development Servs,132C,WATER PLUS LTD,27/03/2023,PE143847,39.66,Water/waste water charges,Surface Water/Highway Drainage
30/03/2023,People and Places,Planning and Development Servs,132C,WATER PLUS LTD,27/03/2023,PE146744,36.09,Water/Wastewater Charges for the period 10 September 2022 - 10 November  2022,Surface Water/Highway Drainage
30/03/2023,People and Places,Planning and Development Servs,132C,WATER PLUS LTD,27/03/2023,PE143848,39.66,Water/waste Water Charges,Surface Water/Highway Drainage
30/03/2023,People and Places,Planning and Development Servs,132C,WATER PLUS LTD,27/03/2023,PE145322,38.37,Water/Wastewater charges,Surface Water/Highway Drainage
30/03/2023,People and Places,Planning and Development Servs,132C,WATER PLUS LTD,28/03/2023,PE146749,36.09,Water/Wastwater Charges for the period 10 August 2021 to 10 January 2023,Surface Water/Highway Drainage
30/03/2023,People and Places,Planning and Development Servs,132C,WATER PLUS LTD,28/03/2023,PE146745,34.92,Water/Wastewater Charges for the period 10 September 2022 - 10 December 2081,Surface Water/Highway Drainage
30/03/2023,People and Places,Planning and Development Servs,132C,WATER PLUS LTD,27/03/2023,PE146751,25.75,"Highway Dept, Copse Rd, Fleetwood 10/09/22 to 10/01/23",Sewerage
30/03/2023,People and Places,Planning and Development Servs,132C,WATER PLUS LTD,27/03/2023,PE145322,46.84,Water/Wastewater charges,Sewerage
30/03/2023,People and Places,Planning and Development Servs,132C,WATER PLUS LTD,27/03/2023,PE145322,53.59,Water/Wastewater charges,Sewerage
30/03/2023,People and Places,Planning and Development Servs,132C,WATER PLUS LTD,27/03/2023,PE143848,49.18,Water/waste Water Charges,Sewerage
30/03/2023,People and Places,Planning and Development Servs,132C,WATER PLUS LTD,27/03/2023,PE143848,3277.33,Water/waste Water Charges,Sewerage
30/03/2023,People and Places,Planning and Development Servs,132C,WATER PLUS LTD,27/03/2023,PE146744,41.15,Water/Wastewater Charges for the period 10 September 2022 - 10 November  2022,Sewerage
30/03/2023,People and Places,Planning and Development Servs,132C,WATER PLUS LTD,27/03/2023,PE146744,56.32,Water/Wastewater Charges for the period 10 September 2022 - 10 November  2022,Sewerage
30/03/2023,People and Places,Planning and Development Servs,132C,WATER PLUS LTD,27/03/2023,PE143847,49.18,Water/waste water charges,Sewerage
30/03/2023,People and Places,Planning and Development Servs,132C,WATER PLUS LTD,27/03/2023,PE143847,55.5,Water/waste water charges,Sewerage
30/03/2023,People and Places,Planning and Development Servs,132C,WATER PLUS LTD,27/03/2023,PE146746,58.6,"Highway Dept, Copse Rd, Fleetwood. 10/12/22 to 10/01/23",Sewerage
30/03/2023,People and Places,Planning and Development Servs,132C,WATER PLUS LTD,28/03/2023,PE146749,58.11,Water/Wastwater Charges for the period 10 August 2021 to 10 January 2023,Sewerage
30/03/2023,People and Places,Planning and Development Servs,132C,WATER PLUS LTD,28/03/2023,PE146745,107.33,Water/Wastewater Charges for the period 10 September 2022 - 10 December 2064,Sewerage
30/03/2023,People and Places,Planning and Development Servs,132C,WATER PLUS LTD,28/03/2023,PE147510,62.17,Sewerage Charge,Sewerage
30/03/2023,People and Places,Planning and Development Servs,132C,WATER PLUS LTD,28/03/2023,PE147510,54.54,Total Charge per DPID,Sewerage
30/03/2023,People and Places,Central Services to the Public,131C,WATER PLUS LTD,28/03/2023,PE146749,12.03,Water/Wastwater Charges for the period 10 August 2021 to 10 January 2023,Surface Water/Highway Drainage
30/03/2023,People and Places,Central Services to the Public,131C,WATER PLUS LTD,28/03/2023,PE146745,11.64,Water/Wastewater Charges for the period 10 September 2022 - 10 December 2067,Surface Water/Highway Drainage
30/03/2023,People and Places,Central Services to the Public,131C,WATER PLUS LTD,27/03/2023,PE143848,15.6,Water/waste Water Charges,Surface Water/Highway Drainage
30/03/2023,People and Places,Central Services to the Public,131C,WATER PLUS LTD,28/03/2023,PE147510,12.03,Highway Drainage,Surface Water/Highway Drainage
30/03/2023,People and Places,Central Services to the Public,131C,WATER PLUS LTD,27/03/2023,PE145322,15.09,Water/Wastewater charges,Surface Water/Highway Drainage
30/03/2023,People and Places,Central Services to the Public,131C,WATER PLUS LTD,27/03/2023,PE146744,12.03,Water/Wastewater Charges for the period 10 September 2022 - 10 November  2022,Surface Water/Highway Drainage
30/03/2023,People and Places,Central Services to the Public,131C,WATER PLUS LTD,27/03/2023,PE143847,15.6,Water/waste water charges,Surface Water/Highway Drainage
30/03/2023,People and Places,Cultural and Related Services,132A,WATER PLUS LTD,27/03/2023,PE146744,315.11,Water/Wastewater Charges for the period 10 September 2022 - 10 November  2022,Surface Water/Highway Drainage
30/03/2023,People and Places,Cultural and Related Services,132A,WATER PLUS LTD,27/03/2023,PE143848,318.68,Water/waste Water Charges,Surface Water/Highway Drainage
30/03/2023,People and Places,Cultural and Related Services,132A,WATER PLUS LTD,27/03/2023,PE143847,318.68,Water/waste water charges,Surface Water/Highway Drainage
30/03/2023,People and Places,Cultural and Related Services,132A,WATER PLUS LTD,27/03/2023,PE145322,308.39,Water/Wastewater charges,Surface Water/Highway Drainage
30/03/2023,People and Places,Cultural and Related Services,132A,WATER PLUS LTD,28/03/2023,PE147510,315.11,Highway Drainage,Surface Water/Highway Drainage
30/03/2023,People and Places,Cultural and Related Services,132A,WATER PLUS LTD,28/03/2023,PE146749,315.11,Water/Wastwater Charges for the period 10 August 2021 to 10 January 2023,Surface Water/Highway Drainage
30/03/2023,People and Places,Cultural and Related Services,132A,WATER PLUS LTD,28/03/2023,PE146745,304.94,Water/Wastewater Charges for the period 10 September 2022 - 10 December 2069,Surface Water/Highway Drainage
30/03/2023,People and Places,Cultural and Related Services,132A,WATER PLUS LTD,28/03/2023,PE147510,315.1,Highway Drainage,Surface Water/Highway Drainage
30/03/2023,People and Places,Cultural and Related Services,132A,WATER PLUS LTD,28/03/2023,PE146749,315.1,Water/Wastwater Charges for the period 10 August 2021 to 10 January 2023,Surface Water/Highway Drainage
30/03/2023,People and Places,Cultural and Related Services,132A,WATER PLUS LTD,28/03/2023,PE146745,304.94,Water/Wastewater Charges for the period 10 September 2022 - 10 December 2073,Surface Water/Highway Drainage
30/03/2023,People and Places,Cultural and Related Services,132A,WATER PLUS LTD,27/03/2023,PE146744,315.1,Water/Wastewater Charges for the period 10 September 2022 - 10 November  2022,Surface Water/Highway Drainage
30/03/2023,People and Places,Planning and Development Servs,132C,WATER PLUS LTD,14/03/2023,PE147518,174.44,"C22LU188935 Unit 8 Dock Ave, Fleetwood, FY7 6PS, sewerage 22/06/22 to 01/01/23",Sewerage
30/03/2023,People and Places,Planning and Development Servs,132C,WATER PLUS LTD,10/03/2023,PE147880,25.47,"Unit 8, Dock Ave, Fleetwood 01/02/23 to 01/03/23",Sewerage
30/03/2023,People and Places,Planning and Development Servs,132C,WATER PLUS LTD,13/03/2023,PE147517,28.17,"C22LUI88935 Unit 8 Dock Ave, Fleetwood, FY7 6PS, 01/01/23 to 01/02/23 sewerage",Sewerage
30/03/2023,People and Places,Planning and Development Servs,132C,WATER PLUS LTD,13/03/2023,PE147517,3.78,"C22LUI88935 Unit 8 Dock Ave, Fleetwood, FY7 6PS, 01/01/23 to 01/02/23 durface water/drainage",Surface Water/Highway Drainage
30/03/2023,People and Places,Planning and Development Servs,132C,WATER PLUS LTD,10/03/2023,PE147880,3.43,"Unit 8, Dock Ave, Fleetwood 01/02/23 to 01/03/23",Surface Water/Highway Drainage
30/03/2023,People and Places,Planning and Development Servs,132C,WATER PLUS LTD,14/03/2023,PE147518,23.67,"C22LU188935 Unit 8 Dock Ave, Fleetwood, FY7 6PS surface water/highway drainage 22/06/22 to 01/01/23",Surface Water/Highway Drainage
30/03/2023,People and Places,Cultural and Related Services,132A,WATER PLUS LTD,27/03/2023,PE145322,3.45,Water/Wastewater charges,Surface Water/Highway Drainage
30/03/2023,People and Places,Cultural and Related Services,132A,WATER PLUS LTD,27/03/2023,PE143847,3.57,Water/waste water charges,Surface Water/Highway Drainage
30/03/2023,People and Places,Cultural and Related Services,132A,WATER PLUS LTD,27/03/2023,PE143848,3.57,Water/waste Water Charges,Surface Water/Highway Drainage
30/03/2023,People and Places,Cultural and Related Services,132A,WATER PLUS LTD,27/03/2023,PE143848,1.71,Water/waste Water Charges,Water Charges-Metered
30/03/2023,People and Places,Cultural and Related Services,132A,WATER PLUS LTD,27/03/2023,PE145322,27.01,Water/Wastewater charges,Water Charges-Metered
30/03/2023,People and Places,Cultural and Related Services,132A,WATER PLUS LTD,27/03/2023,PE145322,1.65,Water/Wastewater charges,Water Charges-Metered
30/03/2023,People and Places,Cultural and Related Services,132A,WATER PLUS LTD,28/03/2023,PE146745,28.66,Water/Wastewater Charges for the period 10 September 2022 - 10 December 2025,Water Charges-Metered
30/03/2023,People and Places,Cultural and Related Services,132A,WATER PLUS LTD,28/03/2023,PE146749,57.95,Water/Wastwater Charges for the period 10 August 2021 to 10 January 2023,Water Charges-Metered
30/03/2023,People and Places,Cultural and Related Services,132A,WATER PLUS LTD,28/03/2023,PE147510,27.11,Water Charge,Water Charges-Metered
30/03/2023,People and Places,Cultural and Related Services,132A,WATER PLUS LTD,28/03/2023,PE147510,1.71,Water Standing Charge,Water Charges-Metered
30/03/2023,People and Places,Cultural and Related Services,132A,WATER PLUS LTD,27/03/2023,PE146744,1.71,Water/Wastewater Charges for the period 10 September 2022 - 10 November  2022,Water Charges-Metered
30/03/2023,People and Places,Cultural and Related Services,132A,WATER PLUS LTD,27/03/2023,PE146744,28.82,Water/Wastewater Charges for the period 10 September 2022 - 10 November  2022,Water Charges-Metered
30/03/2023,People and Places,Cultural and Related Services,132A,WATER PLUS LTD,27/03/2023,PE143847,28.82,Water/waste water charges,Water Charges-Metered
30/03/2023,People and Places,Cultural and Related Services,132A,WATER PLUS LTD,27/03/2023,PE143847,1.71,Water/waste water charges,Water Charges-Metered
30/03/2023,People and Places,Cultural and Related Services,132A,WATER PLUS LTD,27/03/2023,PE143848,28.82,Water/waste Water Charges,Water Charges-Metered
30/03/2023,People and Places,Cultural and Related Services,132A,WATER PLUS LTD,28/03/2023,PE147510,8.26,Water Charge,Water Charges-Metered
30/03/2023,People and Places,Cultural and Related Services,132A,WATER PLUS LTD,28/03/2023,PE147510,3.67,Water Standing Charge,Water Charges-Metered
30/03/2023,People and Places,Cultural and Related Services,132A,WATER PLUS LTD,28/03/2023,PE146749,80.47,Water/Wastwater Charges for the period 10 August 2021 to 10 January 2023,Water Charges-Metered
30/03/2023,People and Places,Cultural and Related Services,132A,WATER PLUS LTD,28/03/2023,PE146745,10,Water/Wastewater Charges for the period 10 September 2022 - 10 December 2032,Water Charges-Metered
30/03/2023,People and Places,Cultural and Related Services,132A,WATER PLUS LTD,27/03/2023,PE145322,6.45,Water/Wastewater charges,Water Charges-Metered
30/03/2023,People and Places,Cultural and Related Services,132A,WATER PLUS LTD,27/03/2023,PE145322,3.55,Water/Wastewater charges,Water Charges-Metered
30/03/2023,People and Places,Cultural and Related Services,132A,WATER PLUS LTD,27/03/2023,PE146744,3.67,Water/Wastewater Charges for the period 10 September 2022 - 10 November  2022,Water Charges-Metered
30/03/2023,People and Places,Cultural and Related Services,132A,WATER PLUS LTD,27/03/2023,PE146744,6.55,Water/Wastewater Charges for the period 10 September 2022 - 10 November  2022,Water Charges-Metered
30/03/2023,People and Places,Cultural and Related Services,132A,WATER PLUS LTD,27/03/2023,PE143847,6.55,Water/waste water charges,Water Charges-Metered
30/03/2023,People and Places,Cultural and Related Services,132A,WATER PLUS LTD,27/03/2023,PE143847,3.67,Water/waste water charges,Water Charges-Metered
30/03/2023,People and Places,Cultural and Related Services,132A,WATER PLUS LTD,27/03/2023,PE143848,6.55,Water/waste Water Charges,Water Charges-Metered
30/03/2023,People and Places,Cultural and Related Services,132A,WATER PLUS LTD,27/03/2023,PE143848,3.67,Water/waste Water Charges,Water Charges-Metered
30/03/2023,People and Places,Planning and Development Servs,132C,WATER PLUS LTD,27/03/2023,PE143848,12.03,Water/waste Water Charges,Surface Water/Highway Drainage
30/03/2023,People and Places,Planning and Development Servs,132C,WATER PLUS LTD,27/03/2023,PE145322,11.64,Water/Wastewater charges,Surface Water/Highway Drainage
30/03/2023,People and Places,Planning and Development Servs,132C,WATER PLUS LTD,27/03/2023,PE146744,12.03,Water/Wastewater Charges for the period 10 September 2022 - 10 November  2022,Surface Water/Highway Drainage
30/03/2023,People and Places,Planning and Development Servs,132C,WATER PLUS LTD,27/03/2023,PE143847,12.03,Water/waste water charges,Surface Water/Highway Drainage
30/03/2023,People and Places,Planning and Development Servs,132C,WATER PLUS LTD,28/03/2023,PE147510,12.03,Highway Drainage,Surface Water/Highway Drainage
30/03/2023,People and Places,Planning and Development Servs,132C,WATER PLUS LTD,28/03/2023,PE146745,11.64,Water/Wastewater Charges for the period 10 September 2022 - 10 December 2080,Surface Water/Highway Drainage
30/03/2023,People and Places,Planning and Development Servs,132C,WATER PLUS LTD,28/03/2023,PE146749,12.03,Water/Wastwater Charges for the period 10 August 2021 to 10 January 2023,Surface Water/Highway Drainage
30/03/2023,People and Places,Environmental Services,132B,WATER PLUS LTD,27/03/2023,PE146744,526.67,Water/Wastewater Charges for the period 10 September 2022 - 10 November  2022,Sewerage
30/03/2023,People and Places,Environmental Services,132B,WATER PLUS LTD,27/03/2023,PE145322,493.15,Water/Wastewater charges,Sewerage
30/03/2023,People and Places,Environmental Services,132B,WATER PLUS LTD,27/03/2023,PE143847,451.96,Water/waste water charges,Sewerage
30/03/2023,People and Places,Planning and Development Servs,132C,WATER PLUS LTD,27/03/2023,PE146744,3.57,Water/Wastewater Charges for the period 10 September 2022 - 10 November  2022,Sewerage
30/03/2023,People and Places,Planning and Development Servs,132C,WATER PLUS LTD,28/03/2023,PE147510,3.57,Sewerage Charge,Sewerage
30/03/2023,People and Places,Planning and Development Servs,132C,WATER PLUS LTD,28/03/2023,PE146745,3.45,Water/Wastewater Charges for the period 10 September 2022 - 10 December 2065,Sewerage
30/03/2023,People and Places,Planning and Development Servs,132C,WATER PLUS LTD,28/03/2023,PE146749,3.57,Water/Wastwater Charges for the period 10 August 2021 to 10 January 2023,Sewerage
30/03/2023,People and Places,Cultural and Related Services,132A,WATER PLUS LTD,28/03/2023,PE146749,64.46,Water/Wastwater Charges for the period 10 August 2021 to 10 January 2023,Sewerage
30/03/2023,People and Places,Cultural and Related Services,132A,WATER PLUS LTD,27/03/2023,PE143848,48.01,Water/waste Water Charges,Sewerage
30/03/2023,People and Places,Cultural and Related Services,132A,WATER PLUS LTD,27/03/2023,PE145322,46.84,Water/Wastewater charges,Sewerage
30/03/2023,People and Places,Cultural and Related Services,132A,WATER PLUS LTD,27/03/2023,PE146744,51.58,Water/Wastewater Charges for the period 10 September 2022 - 10 November  2022,Sewerage
30/03/2023,People and Places,Cultural and Related Services,132A,WATER PLUS LTD,27/03/2023,PE143847,48.01,Water/waste water charges,Sewerage
30/03/2023,People and Places,Cultural and Related Services,132A,WATER PLUS LTD,27/03/2023,PE146744,815.54,Water/Wastewater Charges for the period 10 September 2022 - 10 November  2022,Sewerage
30/03/2023,People and Places,Cultural and Related Services,132A,WATER PLUS LTD,27/03/2023,PE143847,233.01,Water/waste water charges,Sewerage
30/03/2023,People and Places,Cultural and Related Services,132A,WATER PLUS LTD,27/03/2023,PE145322,544.24,Water/Wastewater charges,Sewerage
30/03/2023,People and Places,Cultural and Related Services,132A,WATER PLUS LTD,28/03/2023,PE148355,-965.73,"Sewerage Charge Marine Gardens, The Esplanade, FLEETWOOD, FY7 6HE",Sewerage
30/03/2023,People and Places,Cultural and Related Services,132A,WATER PLUS LTD,27/03/2023,PE143848,693.73,Water/waste Water Charges,Sewerage
30/03/2023,People and Places,Cultural and Related Services,132A,WATER PLUS LTD,28/03/2023,PE147510,1238.41,Sewerage Charge,Sewerage
30/03/2023,People and Places,Cultural and Related Services,132A,WATER PLUS LTD,28/03/2023,PE146745,495.87,Water/Wastewater Charges for the period 10 September 2022 - 10 December 2053,Sewerage
30/03/2023,People and Places,Cultural and Related Services,132A,WATER PLUS LTD,28/03/2023,PE146749,2001.5,Water/Wastwater Charges for the period 10 August 2021 to 10 January 2023,Sewerage
30/03/2023,People and Places,Cultural and Related Services,132A,WATER PLUS LTD,28/03/2023,PE146745,10.48,Water/Wastewater Charges for the period 10 September 2022 - 10 December 2057,Sewerage
30/03/2023,People and Places,Cultural and Related Services,132A,WATER PLUS LTD,28/03/2023,PE146749,10.6,Water/Wastwater Charges for the period 10 August 2021 to 10 January 2023,Sewerage
30/03/2023,People and Places,Cultural and Related Services,132A,WATER PLUS LTD,28/03/2023,PE147510,10.6,Sewerage Charge,Sewerage
30/03/2023,People and Places,Cultural and Related Services,132A,WATER PLUS LTD,27/03/2023,PE145322,7.03,Water/Wastewater charges,Sewerage
30/03/2023,People and Places,Cultural and Related Services,132A,WATER PLUS LTD,27/03/2023,PE143848,7.03,Water/waste Water Charges,Sewerage
30/03/2023,People and Places,Cultural and Related Services,132A,WATER PLUS LTD,27/03/2023,PE146744,10.6,Water/Wastewater Charges for the period 10 September 2022 - 10 November  2022,Sewerage
30/03/2023,People and Places,Cultural and Related Services,132A,WATER PLUS LTD,27/03/2023,PE143847,7.03,Water/waste water charges,Sewerage
30/03/2023,People and Places,Cultural and Related Services,132A,WATER PLUS LTD,27/03/2023,PE143847,7.02,Water/waste water charges,Sewerage
30/03/2023,People and Places,Cultural and Related Services,132A,WATER PLUS LTD,27/03/2023,PE146744,12.99,Water/Wastewater Charges for the period 10 September 2022 - 10 November  2022,Sewerage
30/03/2023,People and Places,Cultural and Related Services,132A,WATER PLUS LTD,27/03/2023,PE145322,10.53,Water/Wastewater charges,Sewerage
30/03/2023,People and Places,Cultural and Related Services,132A,WATER PLUS LTD,27/03/2023,PE143848,7.02,Water/waste Water Charges,Sewerage
30/03/2023,People and Places,Cultural and Related Services,132A,WATER PLUS LTD,28/03/2023,PE147510,12.99,Sewerage Charge,Sewerage
30/03/2023,People and Places,Cultural and Related Services,132A,WATER PLUS LTD,28/03/2023,PE146745,12.75,Water/Wastewater Charges for the period 10 September 2022 - 10 December 2058,Sewerage
30/03/2023,People and Places,Cultural and Related Services,132A,WATER PLUS LTD,28/03/2023,PE146749,12.99,Water/Wastwater Charges for the period 10 August 2021 to 10 January 2023,Sewerage
30/03/2023,People and Places,Environmental Services,132B,WATER PLUS LTD,28/03/2023,PE147510,539.27,Sewerage Charge,Sewerage
30/03/2023,People and Places,Environmental Services,132B,WATER PLUS LTD,28/03/2023,PE146745,438.33,Water/Wastewater Charges for the period 10 September 2022 - 10 December 2063,Sewerage
30/03/2023,People and Places,Environmental Services,132B,WATER PLUS LTD,28/03/2023,PE146749,570.87,Water/Wastwater Charges for the period 10 August 2021 to 10 January 2023,Sewerage
30/03/2023,People and Places,Environmental Services,132B,WATER PLUS LTD,27/03/2023,PE143848,453.11,Water/waste Water Charges,Sewerage
30/03/2023,People and Places,Environmental Services,132B,WATER PLUS LTD,27/03/2023,PE144621,1.89,water/wastewater charges,Water Charges-Metered
30/03/2023,People and Places,Environmental Services,132B,WATER PLUS LTD,27/03/2023,PE143847,702.03,Water/waste water charges,Water Charges-Metered
30/03/2023,People and Places,Environmental Services,132B,WATER PLUS LTD,27/03/2023,PE143847,26.87,Water/waste water charges,Water Charges-Metered
30/03/2023,People and Places,Cultural and Related Services,132A,WATER PLUS LTD,27/03/2023,PE143847,52.69,Water/waste water charges,Sewerage
30/03/2023,People and Places,Cultural and Related Services,132A,WATER PLUS LTD,27/03/2023,PE146744,59.77,Water/Wastewater Charges for the period 10 September 2022 - 10 November  2022,Sewerage
30/03/2023,People and Places,Cultural and Related Services,132A,WATER PLUS LTD,27/03/2023,PE145322,66.74,Water/Wastewater charges,Sewerage
30/03/2023,People and Places,Cultural and Related Services,132A,WATER PLUS LTD,27/03/2023,PE143848,52.69,Water/waste Water Charges,Sewerage
30/03/2023,People and Places,Cultural and Related Services,132A,WATER PLUS LTD,28/03/2023,PE146745,57.31,Water/Wastewater Charges for the period 10 September 2022 - 10 December 2051,Sewerage
30/03/2023,People and Places,Cultural and Related Services,132A,WATER PLUS LTD,28/03/2023,PE146749,59.77,Water/Wastwater Charges for the period 10 August 2021 to 10 January 2023,Sewerage
30/03/2023,People and Places,Cultural and Related Services,132A,WATER PLUS LTD,28/03/2023,PE147510,59.77,Sewerage Charge,Sewerage
30/03/2023,People and Places,Cultural and Related Services,132A,WATER PLUS LTD,28/03/2023,PE147510,64.46,Sewerage Charge,Sewerage
30/03/2023,People and Places,Cultural and Related Services,132A,WATER PLUS LTD,28/03/2023,PE146745,50.29,Water/Wastewater Charges for the period 10 September 2022 - 10 December 2052,Sewerage
30/03/2023,People and Places,Central Services to the Public,131C,WATER PLUS LTD,27/03/2023,PE143848,76.8,Water/waste Water Charges,Water Charges-Metered
30/03/2023,People and Places,Central Services to the Public,131C,WATER PLUS LTD,27/03/2023,PE143848,3.67,Water/waste Water Charges,Water Charges-Metered
30/03/2023,People and Places,Central Services to the Public,131C,WATER PLUS LTD,27/03/2023,PE146744,76.8,Water/Wastewater Charges for the period 10  September 2022 - 10 November 2022,Water Charges-Metered
30/03/2023,People and Places,Central Services to the Public,131C,WATER PLUS LTD,27/03/2023,PE146744,3.67,Water/Wastewater Charges for the period 10 September 2022 - 10 November  2022,Water Charges-Metered
30/03/2023,People and Places,Central Services to the Public,131C,WATER PLUS LTD,27/03/2023,PE143847,76.8,Water/waste water charges,Water Charges-Metered
30/03/2023,People and Places,Central Services to the Public,131C,WATER PLUS LTD,27/03/2023,PE145322,74.99,Water/Wastewater charges,Water Charges-Metered
30/03/2023,People and Places,Central Services to the Public,131C,WATER PLUS LTD,27/03/2023,PE145322,3.55,Water/Wastewater charges,Water Charges-Metered
30/03/2023,People and Places,Central Services to the Public,131C,WATER PLUS LTD,27/03/2023,PE143847,3.67,Water/waste water charges,Water Charges-Metered
30/03/2023,People and Places,Central Services to the Public,131C,WATER PLUS LTD,28/03/2023,PE147510,76.8,Water Charge,Water Charges-Metered
30/03/2023,People and Places,Central Services to the Public,131C,WATER PLUS LTD,28/03/2023,PE147510,3.67,Water Standing Charge,Water Charges-Metered
30/03/2023,People and Places,Central Services to the Public,131C,WATER PLUS LTD,28/03/2023,PE146745,78.54,Water/Wastewater Charges for the period 10 September 2022 - 10 December 2022,Water Charges-Metered
30/03/2023,People and Places,Central Services to the Public,131C,WATER PLUS LTD,28/03/2023,PE146749,80.47,Water/Wastwater Charges for the period 10  August 2021 to 10 January 2023,Water Charges-Metered
30/03/2023,People and Places,Cultural and Related Services,132A,WATER PLUS LTD,28/03/2023,PE147510,548.45,Water Charge,Water Charges-Metered
30/03/2023,People and Places,Cultural and Related Services,132A,WATER PLUS LTD,28/03/2023,PE147510,25.58,Water Standing Charge,Water Charges-Metered
30/03/2023,People and Places,Cultural and Related Services,132A,WATER PLUS LTD,28/03/2023,PE148355,-697.64,"water charge Marine Hall, The Esplanade, FLEETWOOD, FY7 6HF",Water Charges-Metered
30/03/2023,People and Places,Cultural and Related Services,132A,WATER PLUS LTD,28/03/2023,PE146745,222.34,Water/Wastewater Charges for the period 10 September 2022 - 10 December 2023,Water Charges-Metered
30/03/2023,People and Places,Cultural and Related Services,132A,WATER PLUS LTD,27/03/2023,PE145322,152.7,Water/Wastewater charges,Water Charges-Metered
30/03/2023,People and Places,Cultural and Related Services,132A,WATER PLUS LTD,27/03/2023,PE145322,8.34,Water/Wastewater charges,Water Charges-Metered
30/03/2023,People and Places,Cultural and Related Services,132A,WATER PLUS LTD,27/03/2023,PE143847,198.47,Water/waste water charges,Water Charges-Metered
30/03/2023,People and Places,Cultural and Related Services,132A,WATER PLUS LTD,27/03/2023,PE143847,8.62,Water/waste water charges,Water Charges-Metered
30/03/2023,People and Places,Cultural and Related Services,132A,WATER PLUS LTD,27/03/2023,PE146744,8.62,Water/Wastewater Charges for the period 10 September 2022 - 10 November  2022,Water Charges-Metered
30/03/2023,People and Places,Cultural and Related Services,132A,WATER PLUS LTD,27/03/2023,PE146744,149.19,Water/Wastewater Charges for the period 10 September 2022 - 10 November  2022,Water Charges-Metered
30/03/2023,People and Places,Cultural and Related Services,132A,WATER PLUS LTD,27/03/2023,PE143848,387.59,Water/waste Water Charges,Water Charges-Metered
30/03/2023,People and Places,Cultural and Related Services,132A,WATER PLUS LTD,27/03/2023,PE143848,8.62,Water/waste Water Charges,Water Charges-Metered
30/03/2023,People and Places,Cultural and Related Services,132A,WATER PLUS LTD,27/03/2023,PE146744,3.12,Water/Wastewater Charges for the period 10 September 2022 - 10 November  2022,Water Charges-Metered
30/03/2023,People and Places,Cultural and Related Services,132A,WATER PLUS LTD,27/03/2023,PE146744,1.89,Water/Wastewater Charges for the period 10 September 2022 - 10 November  2022,Water Charges-Metered
30/03/2023,People and Places,Cultural and Related Services,132A,WATER PLUS LTD,27/03/2023,PE143847,3.12,Water/waste water charges,Water Charges-Metered
30/03/2023,People and Places,Cultural and Related Services,132A,WATER PLUS LTD,27/03/2023,PE143847,1.89,Water/waste water charges,Water Charges-Metered
30/03/2023,People and Places,Cultural and Related Services,132A,WATER PLUS LTD,27/03/2023,PE143848,3.12,Water/waste Water Charges,Water Charges-Metered
30/03/2023,People and Places,Cultural and Related Services,132A,WATER PLUS LTD,27/03/2023,PE143848,1.89,Water/waste Water Charges,Water Charges-Metered
30/03/2023,People and Places,Cultural and Related Services,132A,WATER PLUS LTD,27/03/2023,PE145322,3.02,Water/Wastewater charges,Water Charges-Metered
30/03/2023,People and Places,Cultural and Related Services,132A,WATER PLUS LTD,27/03/2023,PE145322,1.83,Water/Wastewater charges,Water Charges-Metered
30/03/2023,People and Places,Cultural and Related Services,132A,WATER PLUS LTD,28/03/2023,PE146749,5.01,Water/Wastwater Charges for the period 10 August 2021 to 10 January 2023,Water Charges-Metered
30/03/2023,People and Places,Cultural and Related Services,132A,WATER PLUS LTD,28/03/2023,PE146745,4.85,Water/Wastewater Charges for the period 10 September 2022 - 10 December 2026,Water Charges-Metered
30/03/2023,People and Places,Cultural and Related Services,132A,WATER PLUS LTD,28/03/2023,PE147510,3.12,Water Charge,Water Charges-Metered
30/03/2023,People and Places,Cultural and Related Services,132A,WATER PLUS LTD,28/03/2023,PE147510,1.89,Water Standing Charge,Water Charges-Metered
30/03/2023,People and Places,Environmental Services,132B,WATER PLUS LTD,28/03/2023,PE147510,765.72,Water Charge,Water Charges-Metered
30/03/2023,People and Places,Environmental Services,132B,WATER PLUS LTD,28/03/2023,PE147510,31.94,Water Standing Charge,Water Charges-Metered
30/03/2023,People and Places,Environmental Services,132B,WATER PLUS LTD,28/03/2023,PE146749,844.69,Water/Wastwater Charges for the period 10 August 2021 to 10 January 2023,Water Charges-Metered
30/03/2023,People and Places,Environmental Services,132B,WATER PLUS LTD,28/03/2023,PE146745,647.87,Water/Wastewater Charges for the period 10 September 2022 - 10 December 2042,Water Charges-Metered
30/03/2023,People and Places,Environmental Services,132B,WATER PLUS LTD,27/03/2023,PE145322,767.48,Water/Wastewater charges,Water Charges-Metered
30/03/2023,People and Places,Environmental Services,132B,WATER PLUS LTD,27/03/2023,PE145322,31.29,Water/Wastewater charges,Water Charges-Metered
30/03/2023,People and Places,Environmental Services,132B,WATER PLUS LTD,27/03/2023,PE143848,713.11,Water/waste Water Charges,Water Charges-Metered
30/03/2023,People and Places,Environmental Services,132B,WATER PLUS LTD,27/03/2023,PE143848,32,Water/waste Water Charges,Water Charges-Metered
30/03/2023,People and Places,Environmental Services,132B,WATER PLUS LTD,27/03/2023,PE146744,30.41,Water/Wastewater Charges for the period 10 September 2022 - 10 November  2022,Water Charges-Metered
30/03/2023,People and Places,Environmental Services,132B,WATER PLUS LTD,27/03/2023,PE146744,743.01,Water/Wastewater Charges for the period 10 September 2022 - 10 November  2022,Water Charges-Metered
30/03/2023,People and Places,Environmental Services,132B,WATER PLUS LTD,27/03/2023,PE144621,3.12,water/wastewater charges,Water Charges-Metered
30/03/2023,People and Places,Cultural and Related Services,132A,WATER PLUS LTD,28/03/2023,PE147510,21.97,Water Charge,Water Charges-Metered
30/03/2023,People and Places,Cultural and Related Services,132A,WATER PLUS LTD,28/03/2023,PE147510,3.67,Water Standing Charge,Water Charges-Metered
30/03/2023,People and Places,Cultural and Related Services,132A,WATER PLUS LTD,28/03/2023,PE146745,25.42,Water/Wastewater Charges for the period 10 September 2022 - 10 December 2027,Water Charges-Metered
30/03/2023,People and Places,Cultural and Related Services,132A,WATER PLUS LTD,28/03/2023,PE146749,25.64,Water/Wastwater Charges for the period 10 August 2021 to 10 January 2023,Water Charges-Metered
30/03/2023,People and Places,Cultural and Related Services,132A,WATER PLUS LTD,27/03/2023,PE145322,21.87,Water/Wastewater charges,Water Charges-Metered
30/03/2023,People and Places,Cultural and Related Services,132A,WATER PLUS LTD,27/03/2023,PE145322,3.55,Water/Wastewater charges,Water Charges-Metered
30/03/2023,People and Places,Cultural and Related Services,132A,WATER PLUS LTD,27/03/2023,PE143848,21.97,Water/waste Water Charges,Water Charges-Metered
30/03/2023,People and Places,Cultural and Related Services,132A,WATER PLUS LTD,27/03/2023,PE143848,3.67,Water/waste Water Charges,Water Charges-Metered
30/03/2023,People and Places,Cultural and Related Services,132A,WATER PLUS LTD,27/03/2023,PE143847,21.97,Water/waste water charges,Water Charges-Metered
30/03/2023,People and Places,Cultural and Related Services,132A,WATER PLUS LTD,27/03/2023,PE143847,3.67,Water/waste water charges,Water Charges-Metered
30/03/2023,People and Places,Cultural and Related Services,132A,WATER PLUS LTD,27/03/2023,PE146744,21.97,Water/Wastewater Charges for the period 10 September 2022 - 10 November  2022,Water Charges-Metered
30/03/2023,People and Places,Cultural and Related Services,132A,WATER PLUS LTD,27/03/2023,PE146744,3.67,Water/Wastewater Charges for the period 10 September 2022 - 10 November  2022,Water Charges-Metered
30/03/2023,People and Places,Cultural and Related Services,132A,WATER PLUS LTD,27/03/2023,PE146744,49.39,Water/Wastewater Charges for the period 10 September 2022 - 10 November  2022,Water Charges-Metered
30/03/2023,People and Places,Cultural and Related Services,132A,WATER PLUS LTD,27/03/2023,PE146744,12.29,Water/Wastewater Charges for the period 10 September 2022 - 10 November  2022,Water Charges-Metered
30/03/2023,People and Places,Cultural and Related Services,132A,WATER PLUS LTD,27/03/2023,PE143847,49.39,Water/waste water charges,Water Charges-Metered
30/03/2023,People and Places,Cultural and Related Services,132A,WATER PLUS LTD,27/03/2023,PE143847,12.29,Water/waste water charges,Water Charges-Metered
30/03/2023,People and Places,Cultural and Related Services,132A,WATER PLUS LTD,27/03/2023,PE143848,49.39,Water/waste Water Charges,Water Charges-Metered
30/03/2023,People and Places,Cultural and Related Services,132A,WATER PLUS LTD,27/03/2023,PE143848,12.29,Water/waste Water Charges,Water Charges-Metered
30/03/2023,People and Places,Cultural and Related Services,132A,WATER PLUS LTD,27/03/2023,PE146742,-1069.18,Toilets Warrenhurst Park,Water Charges-Metered
30/03/2023,People and Places,Cultural and Related Services,132A,WATER PLUS LTD,27/03/2023,PE145322,62.69,Water/Wastewater charges,Water Charges-Metered
30/03/2023,People and Places,Cultural and Related Services,132A,WATER PLUS LTD,27/03/2023,PE145322,24.18,Water/Wastewater charges,Water Charges-Metered
30/03/2023,People and Places,Cultural and Related Services,132A,WATER PLUS LTD,27/03/2023,PE146748,630.4,"Toilets, Warrenhurst Park, Fleetwood 10/10/20 to 10/08/21",Water Charges-Metered
30/03/2023,People and Places,Cultural and Related Services,132A,WATER PLUS LTD,28/03/2023,PE146745,59.46,Water/Wastewater Charges for the period 10 September 2022 - 10 December 2031,Water Charges-Metered
30/03/2023,People and Places,Cultural and Related Services,132A,WATER PLUS LTD,28/03/2023,PE146749,184.02,Water/Wastwater Charges for the period 10 August 2021 to 10 January 2023,Water Charges-Metered
30/03/2023,People and Places,Cultural and Related Services,132A,WATER PLUS LTD,28/03/2023,PE147510,187.5,Water Standing Charge,Water Charges-Metered
30/03/2023,People and Places,Cultural and Related Services,132A,WATER PLUS LTD,28/03/2023,PE147509,587.34,"Toilets, Warrenhurst Park, FLEETWOOD, FY7  6SH 10/10/20 to 10/09/21",Water Charges-Metered
30/03/2023,People and Places,Cultural and Related Services,132A,WATER PLUS LTD,28/03/2023,PE147509,107.24,"Toilets, Warrenhurst Park, FLEETWOOD, FY7 6SH 10/10/20 to 10/09/21",Water Charges-Metered
30/03/2023,People and Places,Cultural and Related Services,132A,WATER PLUS LTD,28/03/2023,PE148356,54.42,"Water Charge Toilets, Warrenhurst Park, Fleetwood, FY7 6SH",Water Charges-Metered
30/03/2023,People and Places,Cultural and Related Services,132A,WATER PLUS LTD,28/03/2023,PE148356,9.35,"Water Standing Charge Toilets, Warrenhurst Park, Fleetwood, FY7 6SH",Water Charges-Metered
30/03/2023,People and Places,Cultural and Related Services,132A,WATER PLUS LTD,28/03/2023,PE147510,921.38,Water Charge,Water Charges-Metered
30/03/2023,People and Places,Cultural and Related Services,132A,WATER PLUS LTD,28/03/2023,PE148355,-921.38,"water charge Toilets, Warrenhurst Park, FLEETWOOD, FY7 6SH",Water Charges-Metered
30/03/2023,People and Places,Cultural and Related Services,132A,WATER PLUS LTD,28/03/2023,PE147508,-669.16,"Toilets, Warrenhurst Park, FLEETWOOD, FY7 6SH Water Charge 10-10-2020 to 10-01-2022",Water Charges-Metered
30/03/2023,People and Places,Environmental Services,132B,WATER PLUS LTD,28/03/2023,PE147510,28.51,Water Charge,Water Charges-Metered
30/03/2023,People and Places,Environmental Services,132B,WATER PLUS LTD,28/03/2023,PE147510,7.11,Water Standing Charge,Water Charges-Metered
30/03/2023,People and Places,Environmental Services,132B,WATER PLUS LTD,28/03/2023,PE146749,39.05,Water/Wastwater Charges for the period 10 August 2021 to 10 January 2023,Water Charges-Metered
30/03/2023,People and Places,Environmental Services,132B,WATER PLUS LTD,28/03/2023,PE146745,35.2,Water/Wastewater Charges for the period 10 September 2022 - 10 December 2038,Water Charges-Metered
30/03/2023,People and Places,Environmental Services,132B,WATER PLUS LTD,27/03/2023,PE145322,59.16,Water/Wastewater charges,Water Charges-Metered
30/03/2023,People and Places,Environmental Services,132B,WATER PLUS LTD,27/03/2023,PE145322,6.89,Water/Wastewater charges,Water Charges-Metered
30/03/2023,People and Places,Environmental Services,132B,WATER PLUS LTD,27/03/2023,PE143848,26.8,Water/waste Water Charges,Water Charges-Metered
30/03/2023,People and Places,Environmental Services,132B,WATER PLUS LTD,27/03/2023,PE143848,7.11,Water/waste Water Charges,Water Charges-Metered
30/03/2023,People and Places,Environmental Services,132B,WATER PLUS LTD,27/03/2023,PE143847,26.8,Water/waste water charges,Water Charges-Metered
30/03/2023,People and Places,Environmental Services,132B,WATER PLUS LTD,27/03/2023,PE143847,7.11,Water/waste water charges,Water Charges-Metered
30/03/2023,People and Places,Environmental Services,132B,WATER PLUS LTD,27/03/2023,PE146744,7.11,Water/Wastewater Charges for the period 10 September 2022 - 10 November  2022,Water Charges-Metered
30/03/2023,People and Places,Environmental Services,132B,WATER PLUS LTD,27/03/2023,PE146744,28.51,Water/Wastewater Charges for the period 10 September 2022 - 10 November  2022,Water Charges-Metered
30/03/2023,People and Places,Environmental Services,132B,WATER PLUS LTD,27/03/2023,PE146744,6.55,Water/Wastewater Charges for the period 10 September 2022 - 10 November  2022,Water Charges-Metered
30/03/2023,People and Places,Environmental Services,132B,WATER PLUS LTD,27/03/2023,PE146744,1.71,Water/Wastewater Charges for the period 10 September 2022 - 10 November  2022,Water Charges-Metered
30/03/2023,People and Places,Environmental Services,132B,WATER PLUS LTD,27/03/2023,PE143847,4.83,Water/waste water charges,Water Charges-Metered
30/03/2023,People and Places,Environmental Services,132B,WATER PLUS LTD,27/03/2023,PE143847,1.71,Water/waste water charges,Water Charges-Metered
30/03/2023,People and Places,Environmental Services,132B,WATER PLUS LTD,27/03/2023,PE143848,37.39,Water/waste Water Charges,Water Charges-Metered
30/03/2023,People and Places,Environmental Services,132B,WATER PLUS LTD,27/03/2023,PE143848,1.71,Water/waste Water Charges,Water Charges-Metered
30/03/2023,People and Places,Environmental Services,132B,WATER PLUS LTD,27/03/2023,PE145322,6.45,Water/Wastewater charges,Water Charges-Metered
30/03/2023,People and Places,Environmental Services,132B,WATER PLUS LTD,27/03/2023,PE145322,1.65,Water/Wastewater charges,Water Charges-Metered
30/03/2023,People and Places,Environmental Services,132B,WATER PLUS LTD,28/03/2023,PE146749,8.26,Water/Wastwater Charges for the period 10 August 2021 to 10 January 2023,Water Charges-Metered
30/03/2023,People and Places,Environmental Services,132B,WATER PLUS LTD,28/03/2023,PE146745,8.1,Water/Wastewater Charges for the period 10 September 2022 - 10 December 2039,Water Charges-Metered
30/03/2023,People and Places,Environmental Services,132B,WATER PLUS LTD,28/03/2023,PE147510,6.55,Water Charge,Water Charges-Metered
30/03/2023,People and Places,Environmental Services,132B,WATER PLUS LTD,28/03/2023,PE147510,1.71,Water Standing Charge,Water Charges-Metered
30/03/2023,People and Places,Environmental Services,132B,WATER PLUS LTD,28/03/2023,PE147510,18.54,Water Charge,Water Charges-Metered
30/03/2023,People and Places,Environmental Services,132B,WATER PLUS LTD,28/03/2023,PE147510,1.89,Water Standing Charge,Water Charges-Metered
30/03/2023,People and Places,Environmental Services,132B,WATER PLUS LTD,28/03/2023,PE146745,18.56,Water/Wastewater Charges for the period 10 September 2022 - 10 December 2040,Water Charges-Metered
30/03/2023,People and Places,Environmental Services,132B,WATER PLUS LTD,28/03/2023,PE146749,20.43,Water/Wastwater Charges for the period 10 August 2021 to 10 January 2023,Water Charges-Metered
30/03/2023,People and Places,Environmental Services,132B,WATER PLUS LTD,27/03/2023,PE145322,35.58,Water/Wastewater charges,Water Charges-Metered
30/03/2023,People and Places,Environmental Services,132B,WATER PLUS LTD,27/03/2023,PE143848,16.83,Water/waste Water Charges,Water Charges-Metered
30/03/2023,People and Places,Environmental Services,132B,WATER PLUS LTD,27/03/2023,PE143848,1.89,Water/waste Water Charges,Water Charges-Metered
30/03/2023,People and Places,Environmental Services,132B,WATER PLUS LTD,27/03/2023,PE145322,1.83,Water/Wastewater charges,Water Charges-Metered
30/03/2023,People and Places,Environmental Services,132B,WATER PLUS LTD,27/03/2023,PE143847,16.83,Water/waste water charges,Water Charges-Metered
30/03/2023,People and Places,Environmental Services,132B,WATER PLUS LTD,27/03/2023,PE143847,1.89,Water/waste water charges,Water Charges-Metered
30/03/2023,People and Places,Cultural and Related Services,132A,WATER PLUS LTD,28/03/2023,PE146749,89.04,Water/Wastwater Charges for the period 10 August 2021 to 10 January 2023,Water Charges-Metered
30/03/2023,People and Places,Cultural and Related Services,132A,WATER PLUS LTD,28/03/2023,PE146745,85.4,Water/Wastewater Charges for the period 10 September 2022 - 10 December 2028,Water Charges-Metered
30/03/2023,People and Places,Cultural and Related Services,132A,WATER PLUS LTD,27/03/2023,PE143848,80.23,Water/waste Water Charges,Water Charges-Metered
30/03/2023,People and Places,Cultural and Related Services,132A,WATER PLUS LTD,27/03/2023,PE143848,3.67,Water/waste Water Charges,Water Charges-Metered
30/03/2023,People and Places,Cultural and Related Services,132A,WATER PLUS LTD,28/03/2023,PE147510,85.37,Water Charge,Water Charges-Metered
30/03/2023,People and Places,Cultural and Related Services,132A,WATER PLUS LTD,28/03/2023,PE147510,3.67,Water Standing Charge,Water Charges-Metered
30/03/2023,People and Places,Cultural and Related Services,132A,WATER PLUS LTD,27/03/2023,PE145322,100.69,Water/Wastewater charges,Water Charges-Metered
30/03/2023,People and Places,Cultural and Related Services,132A,WATER PLUS LTD,27/03/2023,PE145322,3.55,Water/Wastewater charges,Water Charges-Metered
30/03/2023,People and Places,Cultural and Related Services,132A,WATER PLUS LTD,27/03/2023,PE143847,80.23,Water/waste water charges,Water Charges-Metered
30/03/2023,People and Places,Cultural and Related Services,132A,WATER PLUS LTD,27/03/2023,PE143847,3.67,Water/waste water charges,Water Charges-Metered
30/03/2023,People and Places,Environmental Services,132B,WATER PLUS LTD,27/03/2023,PE146744,1.89,Water/Wastewater Charges for the period 10 September 2022 - 10 November  2022,Water Charges-Metered
30/03/2023,People and Places,Environmental Services,132B,WATER PLUS LTD,27/03/2023,PE146744,18.54,Water/Wastewater Charges for the period 10 September 2022 - 10 November  2022,Water Charges-Metered
30/03/2023,People and Places,Environmental Services,132B,WATER PLUS LTD,27/03/2023,PE143847,8.26,Water/waste water charges,Water Charges-Metered
30/03/2023,People and Places,Environmental Services,132B,WATER PLUS LTD,27/03/2023,PE143847,1.71,Water/waste water charges,Water Charges-Metered
30/03/2023,People and Places,Environmental Services,132B,WATER PLUS LTD,27/03/2023,PE146744,8.26,Water/Wastewater Charges for the period 10 September 2022 - 10 November  2022,Water Charges-Metered
30/03/2023,People and Places,Environmental Services,132B,WATER PLUS LTD,27/03/2023,PE146744,1.71,Water/Wastewater Charges for the period 10 September 2022 - 10 November  2022,Water Charges-Metered
30/03/2023,People and Places,Environmental Services,132B,WATER PLUS LTD,27/03/2023,PE145322,23.58,Water/Wastewater charges,Water Charges-Metered
30/03/2023,People and Places,Environmental Services,132B,WATER PLUS LTD,27/03/2023,PE145322,1.65,Water/Wastewater charges,Water Charges-Metered
30/03/2023,People and Places,Environmental Services,132B,WATER PLUS LTD,27/03/2023,PE143848,8.26,Water/waste Water Charges,Water Charges-Metered
30/03/2023,People and Places,Environmental Services,132B,WATER PLUS LTD,27/03/2023,PE143848,1.71,Water/waste Water Charges,Water Charges-Metered
30/03/2023,People and Places,Environmental Services,132B,WATER PLUS LTD,28/03/2023,PE146749,9.97,Water/Wastwater Charges for the period 10 August 2021 to 10 January 2023,Water Charges-Metered
30/03/2023,People and Places,Environmental Services,132B,WATER PLUS LTD,28/03/2023,PE146745,9.81,Water/Wastewater Charges for the period 10 September 2022 - 10 December 2041,Water Charges-Metered
30/03/2023,People and Places,Cultural and Related Services,132A,WATER PLUS LTD,27/03/2023,PE146744,3.67,Water/Wastewater Charges for the period 10 September 2022 - 10 November  2022,Water Charges-Metered
30/03/2023,People and Places,Cultural and Related Services,132A,WATER PLUS LTD,27/03/2023,PE146744,85.37,Water/Wastewater Charges for the period 10 September 2022 - 10 November  2022,Water Charges-Metered
30/03/2023,People and Places,Cultural and Related Services,132A,WATER PLUS LTD,27/03/2023,PE146744,73.38,Water/Wastewater Charges for the period 10 September 2022 - 10 November  2022,Water Charges-Metered
30/03/2023,People and Places,Cultural and Related Services,132A,WATER PLUS LTD,27/03/2023,PE146744,8.05,Water/Wastewater Charges for the period 10 September 2022 - 10 November  2022,Water Charges-Metered
30/03/2023,People and Places,Cultural and Related Services,132A,WATER PLUS LTD,27/03/2023,PE143847,73.38,Water/waste water charges,Water Charges-Metered
30/03/2023,People and Places,Cultural and Related Services,132A,WATER PLUS LTD,27/03/2023,PE143847,8.05,Water/waste water charges,Water Charges-Metered
30/03/2023,People and Places,Cultural and Related Services,132A,WATER PLUS LTD,27/03/2023,PE145322,71.56,Water/Wastewater charges,Water Charges-Metered
30/03/2023,People and Places,Cultural and Related Services,132A,WATER PLUS LTD,27/03/2023,PE145322,7.79,Water/Wastewater charges,Water Charges-Metered
30/03/2023,People and Places,Cultural and Related Services,132A,WATER PLUS LTD,27/03/2023,PE143848,73.38,Water/waste Water Charges,Water Charges-Metered
30/03/2023,People and Places,Cultural and Related Services,132A,WATER PLUS LTD,27/03/2023,PE143848,8.05,Water/waste Water Charges,Water Charges-Metered
30/03/2023,People and Places,Cultural and Related Services,132A,WATER PLUS LTD,28/03/2023,PE146745,79.35,Water/Wastewater Charges for the period 10 September 2022 - 10 December 2029,Water Charges-Metered
30/03/2023,People and Places,Environmental Services,132B,WATER PLUS LTD,28/03/2023,PE147510,8.26,Water Charge,Water Charges-Metered
30/03/2023,People and Places,Environmental Services,132B,WATER PLUS LTD,28/03/2023,PE147510,1.71,Water Standing Charge,Water Charges-Metered
30/03/2023,People and Places,Planning and Development Servs,132C,WATER PLUS LTD,28/03/2023,PE147510,3.12,Water Charge,Water Charges-Metered
30/03/2023,People and Places,Planning and Development Servs,132C,WATER PLUS LTD,28/03/2023,PE147510,1.71,Water Standing Charge,Water Charges-Metered
30/03/2023,People and Places,Planning and Development Servs,132C,WATER PLUS LTD,28/03/2023,PE146745,4.67,Water/Wastewater Charges for the period 10 September 2022 - 10 December 2044,Water Charges-Metered
30/03/2023,People and Places,Planning and Development Servs,132C,WATER PLUS LTD,28/03/2023,PE146749,4.83,Water/Wastwater Charges for the period 10 August 2021 to 10 January 2023,Water Charges-Metered
30/03/2023,People and Places,Planning and Development Servs,132C,WATER PLUS LTD,27/03/2023,PE145322,3.02,Water/Wastewater charges,Water Charges-Metered
30/03/2023,People and Places,Planning and Development Servs,132C,WATER PLUS LTD,27/03/2023,PE145322,1.65,Water/Wastewater charges,Water Charges-Metered
30/03/2023,People and Places,Planning and Development Servs,132C,WATER PLUS LTD,27/03/2023,PE146744,1.71,Water/Wastewater Charges for the period 10 September 2022 - 10 November  2022,Water Charges-Metered
30/03/2023,People and Places,Planning and Development Servs,132C,WATER PLUS LTD,27/03/2023,PE146744,3.12,Water/Wastewater Charges for the period 10 September 2022 - 10 November  2022,Water Charges-Metered
30/03/2023,People and Places,Planning and Development Servs,132C,WATER PLUS LTD,27/03/2023,PE143847,3.12,Water/waste water charges,Water Charges-Metered
30/03/2023,People and Places,Planning and Development Servs,132C,WATER PLUS LTD,27/03/2023,PE143847,1.71,Water/waste water charges,Water Charges-Metered
30/03/2023,People and Places,Planning and Development Servs,132C,WATER PLUS LTD,27/03/2023,PE143848,3.12,Water/waste Water Charges,Water Charges-Metered
30/03/2023,People and Places,Planning and Development Servs,132C,WATER PLUS LTD,27/03/2023,PE143848,1.71,Water/waste Water Charges,Water Charges-Metered
30/03/2023,People and Places,Support Services,135B,WATER PLUS LTD,27/03/2023,PE143848,13370.89,Water/waste Water Charges,Water Charges-Metered
30/03/2023,People and Places,Support Services,135B,WATER PLUS LTD,27/03/2023,PE143848,12.28,Water/waste Water Charges,Water Charges-Metered
30/03/2023,People and Places,Support Services,135B,WATER PLUS LTD,27/03/2023,PE143847,9988.06,Water/waste water charges,Water Charges-Metered
30/03/2023,People and Places,Support Services,135B,WATER PLUS LTD,27/03/2023,PE143847,12.28,Water/waste water charges,Water Charges-Metered
30/03/2023,People and Places,Support Services,135B,WATER PLUS LTD,27/03/2023,PE146744,11828.17,Water/Wastewater Charges for the period 10 September 2022 - 10 November  2022,Water Charges-Metered
30/03/2023,People and Places,Support Services,135B,WATER PLUS LTD,27/03/2023,PE146744,12.28,Water/Wastewater Charges for the period 10 September 2022 - 10 November  2022,Water Charges-Metered
30/03/2023,People and Places,Support Services,135B,WATER PLUS LTD,27/03/2023,PE145322,7898.78,Water/Wastewater charges,Water Charges-Metered
30/03/2023,People and Places,Support Services,135B,WATER PLUS LTD,27/03/2023,PE145322,11.89,Water/Wastewater charges,Water Charges-Metered
30/03/2023,People and Places,Support Services,135B,WATER PLUS LTD,29/03/2023,PE143849,53.2,NHM-Measured Water Standard Tariff on 08/02/2022,Water Charges-Metered
30/03/2023,People and Places,Support Services,135B,WATER PLUS LTD,28/03/2023,PE146745,100,Water/Wastewater Charges for the period 10 September 2022 - 10 December 2082,Water Charges-Metered
30/03/2023,People and Places,Cultural and Related Services,132A,WATER PLUS LTD,28/03/2023,PE146749,100.28,Water/Wastwater Charges for the period 10 August 2021 to 10 January 2023,Water Charges-Metered
30/03/2023,People and Places,Cultural and Related Services,132A,WATER PLUS LTD,28/03/2023,PE147510,92.23,Water Charge,Water Charges-Metered
30/03/2023,People and Places,Cultural and Related Services,132A,WATER PLUS LTD,28/03/2023,PE147510,8.05,Water Standing Charge,Water Charges-Metered
30/03/2023,People and Places,Cultural and Related Services,132A,WATER PLUS LTD,28/03/2023,PE147510,1852.23,Water Charge,Water Charges-Metered
30/03/2023,People and Places,Cultural and Related Services,132A,WATER PLUS LTD,28/03/2023,PE147510,21.06,Water Standing Charge,Water Charges-Metered
30/03/2023,People and Places,Cultural and Related Services,132A,WATER PLUS LTD,28/03/2023,PE146745,752.84,Water/Wastewater Charges for the period 10 September 2022 - 10 December 2030,Water Charges-Metered
30/03/2023,People and Places,Cultural and Related Services,132A,WATER PLUS LTD,28/03/2023,PE146749,3007.23,Water/Wastwater Charges for the period 10 August 2021 to 10 January 2023,Water Charges-Metered
30/03/2023,People and Places,Cultural and Related Services,132A,WATER PLUS LTD,27/03/2023,PE143848,1044.46,Water/waste Water Charges,Water Charges-Metered
30/03/2023,People and Places,Cultural and Related Services,132A,WATER PLUS LTD,27/03/2023,PE143848,21.32,Water/waste Water Charges,Water Charges-Metered
30/03/2023,People and Places,Cultural and Related Services,132A,WATER PLUS LTD,27/03/2023,PE145321,-695.1,,Water Charges-Metered
30/03/2023,People and Places,Cultural and Related Services,132A,WATER PLUS LTD,27/03/2023,PE146744,21.06,Water/Wastewater Charges for the period 10 September 2022 - 10 November  2022,Water Charges-Metered
30/03/2023,People and Places,Support Services,135B,WATER PLUS LTD,28/03/2023,PE146749,9801.46,Water/Wastwater Charges for the period 10 August 2021 to 10 January 2023,Water Charges-Metered
30/03/2023,People and Places,Support Services,135B,WATER PLUS LTD,28/03/2023,PE146745,14010.92,Water/Wastewater Charges for the period 10 September 2022 - 10 December 2045,Water Charges-Metered
30/03/2023,People and Places,Support Services,135B,WATER PLUS LTD,28/03/2023,PE147510,15727.72,Water Charge,Water Charges-Metered
30/03/2023,People and Places,Support Services,135B,WATER PLUS LTD,28/03/2023,PE147510,12.28,Water Standing Charge,Water Charges-Metered
30/03/2023,People and Places,Central Services to the Public,131C,WATER PLUS LTD,28/03/2023,PE146745,52.63,Water/Wastewater Charges for the period 10 September 2022 - 10 December 2046,Sewerage
30/03/2023,People and Places,Central Services to the Public,131C,WATER PLUS LTD,28/03/2023,PE146749,53.92,Water/Wastwater Charges for the period 10 August 2021 to 10 January 2023,Sewerage
30/03/2023,People and Places,Central Services to the Public,131C,WATER PLUS LTD,28/03/2023,PE147510,53.92,Sewerage Charge,Sewerage
30/03/2023,People and Places,Central Services to the Public,131C,WATER PLUS LTD,27/03/2023,PE143848,50.35,Water/waste Water Charges,Sewerage
30/03/2023,People and Places,Central Services to the Public,131C,WATER PLUS LTD,27/03/2023,PE146744,53.92,Water/Wastewater Charges for the period 10 September 2022 - 10 November  2022,Sewerage
30/03/2023,People and Places,Central Services to the Public,131C,WATER PLUS LTD,27/03/2023,PE143847,50.35,Water/waste water charges,Sewerage
30/03/2023,People and Places,Central Services to the Public,131C,WATER PLUS LTD,27/03/2023,PE145322,49.18,Water/Wastewater charges,Sewerage
30/03/2023,People and Places,Cultural and Related Services,132A,WATER PLUS LTD,27/03/2023,PE145322,99.72,Water/Wastewater charges,Sewerage
30/03/2023,People and Places,Cultural and Related Services,132A,WATER PLUS LTD,27/03/2023,PE146744,1217.48,Water/Wastewater Charges for the period 10 September 2022 - 10 November  2022,Water Charges-Metered
30/03/2023,People and Places,Cultural and Related Services,132A,WATER PLUS LTD,27/03/2023,PE145322,826.16,Water/Wastewater charges,Water Charges-Metered
30/03/2023,People and Places,Cultural and Related Services,132A,WATER PLUS LTD,27/03/2023,PE145322,21.16,Water/Wastewater charges,Water Charges-Metered
30/03/2023,People and Places,Cultural and Related Services,132A,WATER PLUS LTD,27/03/2023,PE143847,344.13,Water/waste water charges,Water Charges-Metered
30/03/2023,People and Places,Cultural and Related Services,132A,WATER PLUS LTD,27/03/2023,PE143847,5.22,Water/waste water charges,Water Charges-Metered
30/03/2023,People and Places,Cultural and Related Services,132A,WATER PLUS LTD,28/03/2023,PE148355,-1445.17,"water charge Marine Gardens, The Esplanade, FLEETWOOD, FY7 6HE",Water Charges-Metered
30/03/2023,People and Places,Cultural and Related Services,132A,WATER PLUS LTD,28/03/2023,PE147510,13.4,Water Charge,Water Charges-Metered
30/03/2023,People and Places,Cultural and Related Services,132A,WATER PLUS LTD,27/03/2023,PE143847,13.4,Water/waste water charges,Water Charges-Metered
30/03/2023,People and Places,Cultural and Related Services,132A,WATER PLUS LTD,27/03/2023,PE146744,100.88,Water/Wastewater Charges for the period 10 September 2022 - 10 November  2022,Sewerage
30/03/2023,People and Places,Cultural and Related Services,132A,WATER PLUS LTD,27/03/2023,PE143848,257.79,Water/waste Water Charges,Sewerage
30/03/2023,People and Places,Cultural and Related Services,132A,WATER PLUS LTD,27/03/2023,PE143847,133.48,Water/waste water charges,Sewerage
30/03/2023,People and Places,Cultural and Related Services,132A,WATER PLUS LTD,28/03/2023,PE147510,369.82,Sewerage Charge,Sewerage
30/03/2023,People and Places,Cultural and Related Services,132A,WATER PLUS LTD,28/03/2023,PE146745,144.02,Water/Wastewater Charges for the period 10 September 2022 - 10 December 2047,Sewerage
30/03/2023,People and Places,Cultural and Related Services,132A,WATER PLUS LTD,28/03/2023,PE146745,3.45,Water/Wastewater Charges for the period 10 September 2022 - 10 December 2049,Sewerage
30/03/2023,People and Places,Cultural and Related Services,132A,WATER PLUS LTD,28/03/2023,PE146749,3.57,Water/Wastwater Charges for the period 10 August 2021 to 10 January 2023,Sewerage
30/03/2023,People and Places,Cultural and Related Services,132A,WATER PLUS LTD,28/03/2023,PE147510,3.57,Sewerage Charge,Sewerage
30/03/2023,People and Places,Cultural and Related Services,132A,WATER PLUS LTD,27/03/2023,PE146744,3.57,Water/Wastewater Charges for the period 10 September 2022 - 10 November  2022,Sewerage
30/03/2023,People and Places,Cultural and Related Services,132A,WATER PLUS LTD,27/03/2023,PE146744,16.45,Water/Wastewater Charges for the period 10 September 2022 - 10 November  2022,Sewerage
30/03/2023,People and Places,Cultural and Related Services,132A,WATER PLUS LTD,27/03/2023,PE143847,12.88,Water/waste water charges,Sewerage
30/03/2023,People and Places,Cultural and Related Services,132A,WATER PLUS LTD,27/03/2023,PE143848,12.88,Water/waste Water Charges,Sewerage
30/03/2023,People and Places,Cultural and Related Services,132A,WATER PLUS LTD,28/03/2023,PE147510,16.45,Sewerage Charge,Sewerage
30/03/2023,People and Places,Cultural and Related Services,132A,WATER PLUS LTD,28/03/2023,PE146745,16.33,Water/Wastewater Charges for the period 10 September 2022 - 10 December 2050,Sewerage
30/03/2023,People and Places,Cultural and Related Services,132A,WATER PLUS LTD,28/03/2023,PE146749,16.45,Water/Wastwater Charges for the period 10 August 2021 to 10 January 2023,Sewerage
30/03/2023,People and Places,Cultural and Related Services,132A,WATER PLUS LTD,27/03/2023,PE145322,12.88,Water/Wastewater charges,Sewerage
30/03/2023,People and Places,Cultural and Related Services,132A,WATER PLUS LTD,27/03/2023,PE146748,120.9,"Toilets, Warrenhurst Park, Fleetwood 10/10/20 to 10/08/21",Sewerage
30/03/2023,People and Places,Cultural and Related Services,132A,WATER PLUS LTD,27/03/2023,PE145322,38.63,Water/Wastewater charges,Sewerage
30/03/2023,People and Places,Cultural and Related Services,132A,WATER PLUS LTD,28/03/2023,PE146745,33.89,Water/Wastewater Charges for the period 10 September 2022 - 10 December 2054,Sewerage
30/03/2023,People and Places,Cultural and Related Services,132A,WATER PLUS LTD,28/03/2023,PE146749,99.4,Water/Wastwater Charges for the period 10 August 2021 to 10 January 2023,Sewerage
30/03/2023,People and Places,Cultural and Related Services,132A,WATER PLUS LTD,28/03/2023,PE147509,418.42,"Toilets, Warrenhurst Park, FLEETWOOD, FY7 6SH 10/10/20 to 10/09/21",Sewerage
30/03/2023,People and Places,Cultural and Related Services,132A,WATER PLUS LTD,28/03/2023,PE147510,624.61,Sewerage Charge,Sewerage
30/03/2023,People and Places,Cultural and Related Services,132A,WATER PLUS LTD,27/03/2023,PE143847,1.89,Water/waste water charges,Water Charges-Metered
30/03/2023,People and Places,Cultural and Related Services,132A,WATER PLUS LTD,27/03/2023,PE146744,1.89,Water/Wastewater Charges for the period 10 September 2022 - 10 November  2022,Water Charges-Metered
30/03/2023,People and Places,Cultural and Related Services,132A,WATER PLUS LTD,27/03/2023,PE146744,13.4,Water/Wastewater Charges for the period 10 September 2022 - 10 November  2022,Water Charges-Metered
30/03/2023,People and Places,Cultural and Related Services,132A,WATER PLUS LTD,27/03/2023,PE145322,13.3,Water/Wastewater charges,Water Charges-Metered
30/03/2023,People and Places,Cultural and Related Services,132A,WATER PLUS LTD,27/03/2023,PE145322,1.83,Water/Wastewater charges,Water Charges-Metered
30/03/2023,People and Places,Cultural and Related Services,132A,WATER PLUS LTD,27/03/2023,PE143848,13.4,Water/waste Water Charges,Water Charges-Metered
30/03/2023,People and Places,Cultural and Related Services,132A,WATER PLUS LTD,27/03/2023,PE143848,1.89,Water/waste Water Charges,Water Charges-Metered
30/03/2023,People and Places,Cultural and Related Services,132A,WATER PLUS LTD,28/03/2023,PE146749,15.29,Water/Wastwater Charges for the period 10 August 2021 to 10 January 2023,Water Charges-Metered
30/03/2023,People and Places,Cultural and Related Services,132A,WATER PLUS LTD,28/03/2023,PE146745,15.13,Water/Wastewater Charges for the period 10 September 2022 - 10 December 2034,Water Charges-Metered
30/03/2023,People and Places,Cultural and Related Services,132A,WATER PLUS LTD,28/03/2023,PE147510,1.89,Water Standing Charge,Water Charges-Metered
30/03/2023,People and Places,Cultural and Related Services,132A,WATER PLUS LTD,28/03/2023,PE147510,14.81,Water Charge,Water Charges-Metered
30/03/2023,People and Places,Cultural and Related Services,132A,WATER PLUS LTD,28/03/2023,PE147510,3.6,Water Standing Charge,Water Charges-Metered
30/03/2023,People and Places,Cultural and Related Services,132A,WATER PLUS LTD,28/03/2023,PE146749,18.41,Water/Wastwater Charges for the period 10 August 2021 to 10 January 2023,Water Charges-Metered
30/03/2023,People and Places,Cultural and Related Services,132A,WATER PLUS LTD,28/03/2023,PE146745,18.09,Water/Wastewater Charges for the period 10 September 2022 - 10 December 2035,Water Charges-Metered
30/03/2023,People and Places,Cultural and Related Services,132A,WATER PLUS LTD,27/03/2023,PE145322,30.72,Water/Wastewater charges,Water Charges-Metered
30/03/2023,People and Places,Cultural and Related Services,132A,WATER PLUS LTD,27/03/2023,PE145322,9.09,Water/Wastewater charges,Water Charges-Metered
30/03/2023,People and Places,Cultural and Related Services,132A,WATER PLUS LTD,27/03/2023,PE143848,16.52,Water/waste Water Charges,Water Charges-Metered
30/03/2023,People and Places,Cultural and Related Services,132A,WATER PLUS LTD,27/03/2023,PE143848,3.6,Water/waste Water Charges,Water Charges-Metered
30/03/2023,People and Places,Cultural and Related Services,132A,WATER PLUS LTD,27/03/2023,PE146744,14.81,Water/Wastewater Charges for the period 10 September 2022 - 10 November  2022,Water Charges-Metered
30/03/2023,People and Places,Cultural and Related Services,132A,WATER PLUS LTD,27/03/2023,PE146744,3.6,Water/Wastewater Charges for the period 10 September 2022 - 10 November  2022,Water Charges-Metered
30/03/2023,People and Places,Cultural and Related Services,132A,WATER PLUS LTD,27/03/2023,PE143847,16.52,Water/waste water charges,Water Charges-Metered
30/03/2023,People and Places,Cultural and Related Services,132A,WATER PLUS LTD,27/03/2023,PE143847,3.6,Water/waste water charges,Water Charges-Metered
30/03/2023,People and Places,Cultural and Related Services,132A,WATER PLUS LTD,28/03/2023,PE148356,38.35,"Sewerage Charge Toilets, Warrenhurst Park, Fleetwood, FY7 6SH",Sewerage
30/03/2023,People and Places,Cultural and Related Services,132A,WATER PLUS LTD,28/03/2023,PE148355,-624.61,"Sewerage Charge Toilets, Warrenhurst Park, FLEETWOOD, FY7 6SH",Sewerage
30/03/2023,People and Places,Cultural and Related Services,132A,WATER PLUS LTD,27/03/2023,PE143848,31.61,Water/waste Water Charges,Sewerage
30/03/2023,People and Places,Cultural and Related Services,132A,WATER PLUS LTD,27/03/2023,PE146742,-774.7,Toilets Warrenhurst Park,Sewerage
30/03/2023,People and Places,Cultural and Related Services,132A,WATER PLUS LTD,27/03/2023,PE143847,31.61,Water/waste water charges,Sewerage
30/03/2023,People and Places,Cultural and Related Services,132A,WATER PLUS LTD,27/03/2023,PE146744,35.18,Water/Wastewater Charges for the period 10 September 2022 - 10 November  2022,Sewerage
30/03/2023,People and Places,Cultural and Related Services,132A,WATER PLUS LTD,27/03/2023,PE146744,5.91,Water/Wastewater Charges for the period 10 September 2022 - 10 November  2022,Sewerage
30/03/2023,People and Places,Cultural and Related Services,132A,WATER PLUS LTD,27/03/2023,PE143847,2.34,Water/waste water charges,Sewerage
30/03/2023,People and Places,Cultural and Related Services,132A,WATER PLUS LTD,27/03/2023,PE143848,2.34,Water/waste Water Charges,Sewerage
30/03/2023,People and Places,Cultural and Related Services,132A,WATER PLUS LTD,28/03/2023,PE147510,7.08,Sewerage Charge,Sewerage
30/03/2023,People and Places,Cultural and Related Services,132A,WATER PLUS LTD,28/03/2023,PE146745,5.79,Water/Wastewater Charges for the period 10 September 2022 - 10 December 2055,Sewerage
30/03/2023,People and Places,Cultural and Related Services,132A,WATER PLUS LTD,28/03/2023,PE146749,53.92,Water/Wastwater Charges for the period 10 August 2021 to 10 January 2023,Sewerage
30/03/2023,People and Places,Cultural and Related Services,132A,WATER PLUS LTD,27/03/2023,PE145322,2.34,Water/Wastewater charges,Sewerage
30/03/2023,People and Places,Environmental Services,132B,WATER PLUS LTD,28/03/2023,PE146745,22.12,Water/Wastewater Charges for the period 10 September 2022 - 10 December 2060,Sewerage
30/03/2023,People and Places,Environmental Services,132B,WATER PLUS LTD,28/03/2023,PE146749,24.7,Water/Wastwater Charges for the period 10 August 2021 to 10 January 2023,Sewerage
30/03/2023,People and Places,Environmental Services,132B,WATER PLUS LTD,28/03/2023,PE147510,22.36,Sewerage Charge,Sewerage
30/03/2023,People and Places,Environmental Services,132B,WATER PLUS LTD,27/03/2023,PE143848,14.05,Water/waste Water Charges,Sewerage
30/03/2023,People and Places,Environmental Services,132B,WATER PLUS LTD,27/03/2023,PE145322,36.29,Water/Wastewater charges,Sewerage
30/03/2023,People and Places,Environmental Services,132B,WATER PLUS LTD,27/03/2023,PE143847,14.05,Water/waste water charges,Sewerage
30/03/2023,People and Places,Environmental Services,132B,WATER PLUS LTD,27/03/2023,PE146744,22.36,Water/Wastewater Charges for the period 10 September 2022 - 10 November  2022,Sewerage
30/03/2023,People and Places,Environmental Services,132B,WATER PLUS LTD,27/03/2023,PE146744,14.11,Water/Wastewater Charges for the period 10 September 2022 - 10 November  2022,Sewerage
30/03/2023,People and Places,Environmental Services,132B,WATER PLUS LTD,27/03/2023,PE143847,9.37,Water/waste water charges,Sewerage
30/03/2023,People and Places,Cultural and Related Services,132A,WATER PLUS LTD,27/03/2023,PE143847,12.78,Water/waste water charges,Water Charges-Metered
30/03/2023,People and Places,Cultural and Related Services,132A,WATER PLUS LTD,27/03/2023,PE143847,7.27,Water/waste water charges,Water Charges-Metered
30/03/2023,People and Places,Cultural and Related Services,132A,WATER PLUS LTD,27/03/2023,PE146744,7.27,Water/Wastewater Charges for the period 10 September 2022 - 10 November  2022,Water Charges-Metered
30/03/2023,People and Places,Cultural and Related Services,132A,WATER PLUS LTD,27/03/2023,PE146744,17.93,Water/Wastewater Charges for the period 10 September 2022 - 10 November  2022,Water Charges-Metered
30/03/2023,People and Places,Cultural and Related Services,132A,WATER PLUS LTD,28/03/2023,PE147510,17.93,Water Charge,Water Charges-Metered
30/03/2023,People and Places,Cultural and Related Services,132A,WATER PLUS LTD,28/03/2023,PE147510,7.27,Water Standing Charge,Water Charges-Metered
30/03/2023,People and Places,Cultural and Related Services,132A,WATER PLUS LTD,27/03/2023,PE143848,12.78,Water/waste Water Charges,Water Charges-Metered
30/03/2023,People and Places,Cultural and Related Services,132A,WATER PLUS LTD,27/03/2023,PE143848,7.27,Water/waste Water Charges,Water Charges-Metered
30/03/2023,People and Places,Cultural and Related Services,132A,WATER PLUS LTD,27/03/2023,PE145322,103.31,Water/Wastewater charges,Water Charges-Metered
30/03/2023,People and Places,Cultural and Related Services,132A,WATER PLUS LTD,27/03/2023,PE145322,7.03,Water/Wastewater charges,Water Charges-Metered
30/03/2023,People and Places,Cultural and Related Services,132A,WATER PLUS LTD,28/03/2023,PE146749,25.2,Water/Wastwater Charges for the period 10 August 2021 to 10 January 2023,Water Charges-Metered
30/03/2023,People and Places,Cultural and Related Services,132A,WATER PLUS LTD,28/03/2023,PE146745,24.66,Water/Wastewater Charges for the period 10 September 2022 - 10 December 2036,Water Charges-Metered
30/03/2023,People and Places,Environmental Services,132B,WATER PLUS LTD,27/03/2023,PE143848,9.37,Water/waste Water Charges,Sewerage
30/03/2023,People and Places,Environmental Services,132B,WATER PLUS LTD,27/03/2023,PE145322,22.25,Water/Wastewater charges,Sewerage
30/03/2023,People and Places,Environmental Services,132B,WATER PLUS LTD,28/03/2023,PE146745,12.82,Water/Wastewater Charges for the period 10 September 2022 - 10 December 2061,Sewerage
30/03/2023,People and Places,Environmental Services,132B,WATER PLUS LTD,28/03/2023,PE146749,14.11,Water/Wastwater Charges for the period 10 August 2021 to 10 January 2023,Sewerage
30/03/2023,People and Places,Environmental Services,132B,WATER PLUS LTD,28/03/2023,PE147510,14.11,Sewerage Charge,Sewerage
30/03/2023,People and Places,Support Services,135B,WATER PLUS LTD,28/03/2023,PE147510,10433.9,Sewerage Charge,Sewerage
30/03/2023,People and Places,Support Services,135B,WATER PLUS LTD,28/03/2023,PE146745,9287.18,Water/Wastewater Charges for the period 10 September 2022 - 10 December 2066,Sewerage
30/03/2023,People and Places,Support Services,135B,WATER PLUS LTD,28/03/2023,PE146749,6494.79,Water/Wastwater Charges for the period 10 August 2021 to 10 January 2023,Sewerage
30/03/2023,People and Places,Support Services,135B,WATER PLUS LTD,27/03/2023,PE145322,5237.36,Water/Wastewater charges,Sewerage
30/03/2023,People and Places,Support Services,135B,WATER PLUS LTD,27/03/2023,PE143847,6623.14,Water/waste water charges,Sewerage
30/03/2023,People and Places,Support Services,135B,WATER PLUS LTD,27/03/2023,PE146744,7847.28,Water/Wastewater Charges for the period 10 September 2022 - 10 November  2022,Sewerage
30/03/2023,People and Places,Support Services,135B,WATER PLUS LTD,27/03/2023,PE143848,8867.02,Water/waste Water Charges,Sewerage
30/03/2023,People and Places,Cultural and Related Services,132A,WATER PLUS LTD,27/03/2023,PE143848,3.57,Water/waste Water Charges,Surface Water/Highway Drainage
30/03/2023,People and Places,Cultural and Related Services,132A,WATER PLUS LTD,27/03/2023,PE144621,66.9,water/wastewater charges,Surface Water/Highway Drainage
30/03/2023,People and Places,Cultural and Related Services,132A,WATER PLUS LTD,27/03/2023,PE146744,29.88,Water/Wastewater Charges for the period 10 September 2022 - 10 November  2022,Surface Water/Highway Drainage
30/03/2023,People and Places,Cultural and Related Services,132A,WATER PLUS LTD,27/03/2023,PE145322,3.45,Water/Wastewater charges,Surface Water/Highway Drainage
30/03/2023,People and Places,Cultural and Related Services,132A,WATER PLUS LTD,27/03/2023,PE143847,3.57,Water/waste water charges,Surface Water/Highway Drainage
30/03/2023,People and Places,Cultural and Related Services,132A,WATER PLUS LTD,27/03/2023,PE145322,3.45,Water/Wastewater charges,Surface Water/Highway Drainage
30/03/2023,People and Places,Cultural and Related Services,132A,WATER PLUS LTD,27/03/2023,PE143847,3.57,Water/waste water charges,Surface Water/Highway Drainage
30/03/2023,People and Places,Cultural and Related Services,132A,WATER PLUS LTD,27/03/2023,PE143848,3.57,Water/waste Water Charges,Surface Water/Highway Drainage
30/03/2023,People and Places,Cultural and Related Services,132A,WATER PLUS LTD,27/03/2023,PE146744,5.91,Water/Wastewater Charges for the period 10 September 2022 - 10 November  2022,Sewerage
30/03/2023,People and Places,Cultural and Related Services,132A,WATER PLUS LTD,27/03/2023,PE143847,2.34,Water/waste water charges,Sewerage
30/03/2023,People and Places,Cultural and Related Services,132A,WATER PLUS LTD,27/03/2023,PE143848,1.17,Water/waste Water Charges,Sewerage
30/03/2023,People and Places,Environmental Services,132B,WATER PLUS LTD,27/03/2023,PE143848,380.51,Water/waste Water Charges,Surface Water/Highway Drainage
30/03/2023,People and Places,Environmental Services,132B,WATER PLUS LTD,27/03/2023,PE145322,365.2,Water/Wastewater charges,Surface Water/Highway Drainage
30/03/2023,People and Places,Support Services,135B,WATER PLUS LTD,27/03/2023,PE145322,3.45,Water/Wastewater charges,Surface Water/Highway Drainage
30/03/2023,People and Places,Support Services,135B,WATER PLUS LTD,27/03/2023,PE143848,3.57,Water/waste Water Charges,Surface Water/Highway Drainage
30/03/2023,People and Places,Support Services,135B,WATER PLUS LTD,27/03/2023,PE143847,3.57,Water/waste water charges,Surface Water/Highway Drainage
30/03/2023,People and Places,Cultural and Related Services,132A,WATER PLUS LTD,27/03/2023,PE145322,376.3,Water/Wastewater charges,Water Charges-Metered
30/03/2023,People and Places,Cultural and Related Services,132A,WATER PLUS LTD,27/03/2023,PE145322,5.06,Water/Wastewater charges,Water Charges-Metered
30/03/2023,People and Places,Cultural and Related Services,132A,WATER PLUS LTD,27/03/2023,PE146744,387.22,Water/Wastewater Charges for the period 10 September 2022 - 10 November  2022,Water Charges-Metered
30/03/2023,People and Places,Cultural and Related Services,132A,WATER PLUS LTD,27/03/2023,PE146744,5.22,Water/Wastewater Charges for the period 10 September 2022 - 10 November  2022,Water Charges-Metered
30/03/2023,People and Places,Cultural and Related Services,132A,WATER PLUS LTD,27/03/2023,PE143848,387.22,Water/waste Water Charges,Water Charges-Metered
30/03/2023,People and Places,Planning and Development Servs,132C,WATER PLUS LTD,27/03/2023,PE143847,198.16,Water/waste water charges,Water Charges-Metered
30/03/2023,People and Places,Planning and Development Servs,132C,WATER PLUS LTD,27/03/2023,PE143847,13.27,Water/waste water charges,Water Charges-Metered
30/03/2023,People and Places,Planning and Development Servs,132C,WATER PLUS LTD,27/03/2023,PE146744,204.44,Water/Wastewater Charges for the period 10 September 2022 - 10 November  2022,Water Charges-Metered
30/03/2023,People and Places,Planning and Development Servs,132C,WATER PLUS LTD,27/03/2023,PE146744,13.27,Water/Wastewater Charges for the period 10 September 2022 - 10 November  2022,Water Charges-Metered
30/03/2023,People and Places,Cultural and Related Services,132A,WATER PLUS LTD,28/03/2023,PE147510,5.91,Sewerage Charge,Sewerage
30/03/2023,People and Places,Cultural and Related Services,132A,WATER PLUS LTD,28/03/2023,PE146745,11.64,Water/Wastewater Charges for the period 10 September 2022 - 10 December 2059,Sewerage
30/03/2023,People and Places,Cultural and Related Services,132A,WATER PLUS LTD,28/03/2023,PE146749,4.74,Water/Wastwater Charges for the period 10 August 2021 to 10 January 2023,Sewerage
30/03/2023,People and Places,Cultural and Related Services,132A,WATER PLUS LTD,28/03/2023,PE146749,29.88,Water/Wastwater Charges for the period 10 August 2021 to 10 January 2023,Surface Water/Highway Drainage
30/03/2023,People and Places,Cultural and Related Services,132A,WATER PLUS LTD,28/03/2023,PE146745,87.7,Water/Wastewater Charges for the period 10 September 2022 - 10 December 2075,Surface Water/Highway Drainage
30/03/2023,People and Places,Cultural and Related Services,132A,WATER PLUS LTD,28/03/2023,PE147510,29.88,Highway Drainage,Surface Water/Highway Drainage
30/03/2023,People and Places,Cultural and Related Services,132A,WATER PLUS LTD,27/03/2023,PE143848,66.9,Water/waste Water Charges,Surface Water/Highway Drainage
30/03/2023,People and Places,Cultural and Related Services,132A,WATER PLUS LTD,27/03/2023,PE145322,32.36,Water/Wastewater charges,Surface Water/Highway Drainage
30/03/2023,People and Places,Cultural and Related Services,132A,WATER PLUS LTD,27/03/2023,PE143847,33.45,Water/waste water charges,Surface Water/Highway Drainage
30/03/2023,People and Places,Planning and Development Servs,132C,WATER PLUS LTD,10/03/2023,PE147880,36.93,"Unit 8, Dock Ave, Fleetwood 01/02/23 to 01/03/23",Water Charges-Metered
30/03/2023,People and Places,Planning and Development Servs,132C,WATER PLUS LTD,13/03/2023,PE147517,40.84,"C22LUI88935 Unit 8 Dock Ave, Fleetwood, FY7 6PS, 01/01/23 to 01/02/23 metered water",Water Charges-Metered
30/03/2023,People and Places,Planning and Development Servs,132C,WATER PLUS LTD,14/03/2023,PE147518,252.82,"C22LU188935 Unit 8 Dock Ave, Fleetwood, FY7 6PS meter 22/06/22 to 01/01/23",Water Charges-Metered
30/03/2023,People and Places,Planning and Development Servs,132C,WATER PLUS LTD,27/03/2023,PE143848,198.16,Water/waste Water Charges,Water Charges-Metered
30/03/2023,People and Places,Planning and Development Servs,132C,WATER PLUS LTD,27/03/2023,PE143848,13.27,Water/waste Water Charges,Water Charges-Metered
30/03/2023,People and Places,Planning and Development Servs,132C,WATER PLUS LTD,27/03/2023,PE145322,192,Water/Wastewater charges,Water Charges-Metered
30/03/2023,People and Places,Planning and Development Servs,132C,WATER PLUS LTD,27/03/2023,PE145322,12.85,Water/Wastewater charges,Water Charges-Metered
30/03/2023,People and Places,Planning and Development Servs,132C,WATER PLUS LTD,27/03/2023,PE146747,91.71,"Highway Dept, Copse Rd, Fleetwood 10/12/22 to 10/01/23",Water Charges-Metered
30/03/2023,People and Places,Planning and Development Servs,132C,WATER PLUS LTD,27/03/2023,PE146750,91.71,"Highways Dept, Copse Road, Fleetwood 10/12/22 to 10/01/23",Water Charges-Metered
30/03/2023,People and Places,Planning and Development Servs,132C,WATER PLUS LTD,28/03/2023,PE146749,154.41,Water/Wastwater Charges for the period 10 August 2021 to 10 January 2023,Water Charges-Metered
30/03/2023,People and Places,Planning and Development Servs,132C,WATER PLUS LTD,28/03/2023,PE146745,210.05,Water/Wastewater Charges for the period 10 September 2022 - 10 December 2043,Water Charges-Metered
30/03/2023,People and Places,Planning and Development Servs,132C,WATER PLUS LTD,28/03/2023,PE147510,242.43,Water Charge,Water Charges-Metered
30/03/2023,People and Places,Planning and Development Servs,132C,WATER PLUS LTD,28/03/2023,PE147510,44.95,Water Standing Charge,Water Charges-Metered
30/03/2023,People and Places,Cultural and Related Services,132A,WATER PLUS LTD,27/03/2023,PE143848,15.6,Water/waste Water Charges,Surface Water/Highway Drainage
30/03/2023,People and Places,Cultural and Related Services,132A,WATER PLUS LTD,27/03/2023,PE143847,15.6,Water/waste water charges,Surface Water/Highway Drainage
30/03/2023,People and Places,Cultural and Related Services,132A,WATER PLUS LTD,27/03/2023,PE146744,12.03,Water/Wastewater Charges for the period 10 September 2022 - 10 November  2022,Surface Water/Highway Drainage
30/03/2023,People and Places,Cultural and Related Services,132A,WATER PLUS LTD,28/03/2023,PE147510,188.59,Highway Drainage,Surface Water/Highway Drainage
30/03/2023,People and Places,Cultural and Related Services,132A,WATER PLUS LTD,28/03/2023,PE147509,132.99,"Toilets, Warrenhurst Park, FLEETWOOD, FY7 6SH 10/10/20 to 10/09/21",Surface Water/Highway Drainage
30/03/2023,People and Places,Cultural and Related Services,132A,WATER PLUS LTD,28/03/2023,PE148356,11.7,"Highway Drainage Toilets, Warrenhurst Park, Fleetwood, FY7 6SH",Surface Water/Highway Drainage
30/03/2023,People and Places,Cultural and Related Services,132A,WATER PLUS LTD,28/03/2023,PE146749,59.67,Water/Wastwater Charges for the period 10 August 2021 to 10 January 2023,Surface Water/Highway Drainage
30/03/2023,People and Places,Cultural and Related Services,132A,WATER PLUS LTD,28/03/2023,PE146745,11.64,Water/Wastewater Charges for the period 10 September 2022 - 10 December 2070,Surface Water/Highway Drainage
30/03/2023,People and Places,Cultural and Related Services,132A,WATER PLUS LTD,27/03/2023,PE145322,30.69,Water/Wastewater charges,Surface Water/Highway Drainage
30/03/2023,People and Places,Cultural and Related Services,132A,WATER PLUS LTD,27/03/2023,PE146748,379.97,"Toilets, Warrenhurst Park, Fleetwood 10/10/20 to 10/08/21",Surface Water/Highway Drainage
30/03/2023,People and Places,Cultural and Related Services,132A,WATER PLUS LTD,27/03/2023,PE143848,8.26,Water/waste Water Charges,Water Charges-Metered
30/03/2023,People and Places,Cultural and Related Services,132A,WATER PLUS LTD,27/03/2023,PE143848,1.71,Water/waste Water Charges,Water Charges-Metered
30/03/2023,People and Places,Cultural and Related Services,132A,WATER PLUS LTD,27/03/2023,PE143847,6.55,Water/waste water charges,Water Charges-Metered
30/03/2023,People and Places,Cultural and Related Services,132A,WATER PLUS LTD,27/03/2023,PE143847,1.71,Water/waste water charges,Water Charges-Metered
30/03/2023,People and Places,Cultural and Related Services,132A,WATER PLUS LTD,27/03/2023,PE146744,8.26,Water/Wastewater Charges for the period 10 September 2022 - 10 November  2022,Water Charges-Metered
30/03/2023,People and Places,Cultural and Related Services,132A,WATER PLUS LTD,27/03/2023,PE146744,1.71,Water/Wastewater Charges for the period 10 September 2022 - 10 November  2022,Water Charges-Metered
30/03/2023,People and Places,Cultural and Related Services,132A,WATER PLUS LTD,28/03/2023,PE147510,5.07,Water Standing Charge,Water Charges-Metered
30/03/2023,People and Places,Cultural and Related Services,132A,WATER PLUS LTD,28/03/2023,PE147510,17.83,Water Charge,Water Charges-Metered
30/03/2023,People and Places,Cultural and Related Services,132A,WATER PLUS LTD,28/03/2023,PE146745,9.81,Water/Wastewater Charges for the period 10 September 2022 - 10 December 2033,Water Charges-Metered
30/03/2023,People and Places,Cultural and Related Services,132A,WATER PLUS LTD,27/03/2023,PE145322,27.01,Water/Wastewater charges,Water Charges-Metered
30/03/2023,People and Places,Cultural and Related Services,132A,WATER PLUS LTD,27/03/2023,PE145322,1.65,Water/Wastewater charges,Water Charges-Metered
30/03/2023,People and Places,Cultural and Related Services,132A,WATER PLUS LTD,27/03/2023,PE145322,16.39,Water/Wastewater charges,Sewerage
30/03/2023,People and Places,Cultural and Related Services,132A,WATER PLUS LTD,28/03/2023,PE146745,6.96,Water/Wastewater Charges for the period 10 September 2022 - 10 December 2056,Sewerage
30/03/2023,People and Places,Cultural and Related Services,132A,WATER PLUS LTD,28/03/2023,PE147510,16.44,Sewerage Charge,Sewerage
30/03/2023,People and Places,Cultural and Related Services,132A,WATER PLUS LTD,27/03/2023,PE146744,7.08,Water/Wastewater Charges for the period 10 September 2022 - 10 November  2022,Sewerage
30/03/2023,People and Places,Cultural and Related Services,132A,WATER PLUS LTD,27/03/2023,PE143847,2.34,Water/waste water charges,Sewerage
30/03/2023,People and Places,Cultural and Related Services,132A,WATER PLUS LTD,27/03/2023,PE143848,3.51,Water/waste Water Charges,Sewerage
30/03/2023,People and Places,Cultural and Related Services,132A,WATER PLUS LTD,27/03/2023,PE143848,15.6,Water/waste Water Charges,Surface Water/Highway Drainage
30/03/2023,People and Places,Cultural and Related Services,132A,WATER PLUS LTD,27/03/2023,PE143847,15.6,Water/waste water charges,Surface Water/Highway Drainage
30/03/2023,People and Places,Cultural and Related Services,132A,WATER PLUS LTD,27/03/2023,PE146744,12.03,Water/Wastewater Charges for the period 10 September 2022 - 10 November  2022,Surface Water/Highway Drainage
30/03/2023,People and Places,Cultural and Related Services,132A,WATER PLUS LTD,28/03/2023,PE147510,35.7,Highway Drainage,Surface Water/Highway Drainage
30/03/2023,People and Places,Cultural and Related Services,132A,WATER PLUS LTD,28/03/2023,PE146745,11.64,Water/Wastewater Charges for the period 10 September 2022 - 10 December 2072,Surface Water/Highway Drainage
30/03/2023,People and Places,Cultural and Related Services,132A,WATER PLUS LTD,27/03/2023,PE145322,15.09,Water/Wastewater charges,Surface Water/Highway Drainage
30/03/2023,People and Places,Cultural and Related Services,132A,WATER PLUS LTD,27/03/2023,PE145322,15.09,Water/Wastewater charges,Surface Water/Highway Drainage
30/03/2023,People and Places,Cultural and Related Services,132A,WATER PLUS LTD,28/03/2023,PE146749,12.03,Water/Wastwater Charges for the period 10 August 2021 to 10 January 2023,Surface Water/Highway Drainage
30/03/2023,People and Places,Cultural and Related Services,132A,WATER PLUS LTD,28/03/2023,PE146745,11.64,Water/Wastewater Charges for the period 10 September 2022 - 10 December 2071,Surface Water/Highway Drainage
30/03/2023,People and Places,Cultural and Related Services,132A,WATER PLUS LTD,28/03/2023,PE147510,12.03,Highway Drainage,Surface Water/Highway Drainage
30/03/2023,People and Places,Cultural and Related Services,132A,WATER PLUS LTD,27/03/2023,PE146744,12.03,Water/Wastewater Charges for the period 10 September 2022 - 10 November  2022,Surface Water/Highway Drainage
30/03/2023,People and Places,Cultural and Related Services,132A,WATER PLUS LTD,27/03/2023,PE143847,15.6,Water/waste water charges,Surface Water/Highway Drainage
30/03/2023,People and Places,Cultural and Related Services,132A,WATER PLUS LTD,27/03/2023,PE143848,15.6,Water/waste Water Charges,Surface Water/Highway Drainage
30/03/2023,People and Places,Environmental Services,132B,WATER PLUS LTD,28/03/2023,PE146745,330.21,Water/Wastewater Charges for the period 10 September 2022 - 10 December 2079,Surface Water/Highway Drainage
30/03/2023,People and Places,Environmental Services,132B,WATER PLUS LTD,28/03/2023,PE147510,335.03,Highway Drainage,Surface Water/Highway Drainage
30/03/2023,People and Places,Environmental Services,132B,WATER PLUS LTD,28/03/2023,PE147510,29.88,Drainage Charge,Surface Water/Highway Drainage
30/03/2023,People and Places,Environmental Services,132B,WATER PLUS LTD,27/03/2023,PE143847,357.77,Water/waste water charges,Surface Water/Highway Drainage
